Workbook

Sheet B8 (hidden)
A1: Specific Enthalpies of Selected Gases: SI Units, Ĥ (kJ/mol)
A3: Reference state: Gas, Pref = 1atm, Tref = 25°C
A5: T | B5: Air | C5: O2 | D5: N2 | E5: H2 | F5: CO | G5: CO2 | H5: H2O
A6: 0 | B6: -0.72 | C6: -0.73 | D6: -0.73 | E6: -0.72 | F6: -0.73 | G6: -0.92 | H6: -0.84
A7: 25 | B7: 0 | C7: 0 | D7: 0 | E7: 0 | F7: 0 | G7: 0 | H7: 0
A8: 100 | B8: 2.19 | C8: 2.24 | D8: 2.19 | E8: 2.16 | F8: 2.19 | G8: 2.9 | H8: 2.54
A9: 200 | B9: 5.15 | C9: 5.31 | D9: 5.13 | E9: 5.06 | F9: 5.16 | G9: 7.08 | H9: 6.01
A10: 300 | B10: 8.17 | C10: 8.47 | D10: 8.12 | E10: 7.96 | F10: 8.17 | G10: 11.58 | H10: 9.57
A11: 400 | B11: 11.24 | C11: 11.72 | D11: 11.15 | E11: 10.89 | F11: 11.25 | G11: 16.35 | H11: 13.23
A12: 500 | B12: 14.37 | C12: 15.03 | D12: 14.24 | E12: 13.83 | F12: 14.38 | G12: 21.34 | H12: 17.01
A13: 600 | B13: 17.55 | C13: 18.41 | D13: 17.39 | E13: 16.81 | F13: 17.57 | G13: 26.53 | H13: 20.91
A14: 700 | B14: 20.8 | C14: 21.86 | D14: 20.59 | E14: 19.81 | F14: 20.82 | G14: 31.88 | H14: 24.92
A15: 800 | B15: 24.1 | C15: 25.35 | D15: 23.86 | E15: 22.85 | F15: 24.13 | G15: 37.36 | H15: 29.05
A16: 900 | B16: 27.46 | C16: 28.89 | D16: 27.19 | E16: 25.93 | F16: 27.49 | G16: 42.94 | H16: 33.32
A17: 1000 | B17: 30.86 | C17: 32.47 | D17: 30.56 | E17: 29.04 | F17: 30.91 | G17: 48.6 | H17: 37.69
A18: 1100 | B18: 34.31 | C18: 36.07 | D18: 33.99 | E18: 32.19 | F18: 34.37 | G18: 54.33 | H18: 42.18
A19: 1200 | B19: 37.81 | C19: 39.7 | D19: 37.46 | E19: 35.39 | F19: 37.87 | G19: 60.14 | H19: 46.78
A20: 1300 | B20: 41.34 | C20: 43.38 | D20: 40.97 | E20: 38.62 | F20: 41.4 | G20: 65.98 | H20: 51.47
A21: 1400 | B21: 44.89 | C21: 47.07 | D21: 44.51 | E21: 41.9 | F21: 44.95 | G21: 71.89 | H21: 56.25
A22: 1500 | B22: 48.45 | C22: 50.77 | D22: 48.06 | E22: 45.22 | F22: 48.51 | G22: 77.84 | H22: 61.09

Sheet B9 (hidden)
A1: Speicific Enthalpies of Selected Gases: American Engineering Units, Ĥ (Btu/lb-mole)
A3: Reference state: Gas, Pref = 1atm, Tref = 77°F
A5: T | B5: Air | C5: O2 | D5: N2 | E5: H2 | F5: CO | G5: CO2 | H5: H2O
A6: 32 | B6: -312 | C6: -315 | D6: -312 | E6: -310 | F6: -312 | G6: -394 | H6: -361
A7: 77 | B7: 0 | C7: 0 | D7: 0 | E7: 0 | F7: 0 | G7: 0 | H7: 0
A8: 100 | B8: 160 | C8: 162 | D8: 160 | E8: 159 | F8: 160 | G8: 206 | H8: 185
A9: 200 | B9: 858 | C9: 875 | D9: 857 | E9: 848 | F9: 859 | G9: 1132 | H9: 996
A10: 300 | B10: 1563 | C10: 1602 | D10: 1558 | E10: 1539 | F10: 1564 | G10: 2108 | H10: 1818
A11: 400 | B11: 2275 | C11: 2342 | D11: 2265 | E11: 2231 | F11: 2276 | G11: 3129 | H11: 2652
A12: 500 | B12: 2993 | C12: 3094 | D12: 2976 | E12: 2925 | F12: 2994 | G12: 4192 | H12: 3499
A13: 600 | B13: 3719 | C13: 3858 | D13: 3694 | E13: 3621 | F13: 3720 | G13: 5293 | H13: 4359
A14: 700 | B14: 4451 | C14: 4633 | D14: 4418 | E14: 4319 | F14: 4454 | G14: 6429 | H14: 5233
A15: 800 | B15: 5192 | C15: 5418 | D15: 5150 | E15: 5021 | F15: 5195 | G15: 7599 | H15: 6122
A16: 900 | B16: 5940 | C16: 6212 | D16: 5889 | E16: 5725 | F16: 5945 | G16: 8790 | H16: 7025
A17: 1000 | B17: 6695 | C17: 7015 | D17: 6635 | E17: 6433 | F17: 6702 | G17: 10015 | H17: 7944
A18: 1100 | B18: 7459 | C18: 7826 | D18: 7399 | E18: 7145 | F18: 7467 | G18: 11263 | H18: 8880
A19: 1200 | B19: 8230 | C19: 8645 | D19: 8151 | E19: 7861 | F19: 8239 | G19: 12533 | H19: 9831
A20: 1300 | B20: 9010 | C20: 9471 | D20: 8922 | E20: 8581 | F20: 9021 | G20: 13820 | H20: 10799
A21: 1400 | B21: 9797 | C21: 10304 | D21: 9699 | E21: 9306 | F21: 9809 | G21: 15122 | H21: 11783
A22: 1500 | B22: 10590 | C22: 11142 | D22: 10485 | E22: 10035 | F22: 10606 | G22: 16436 | H22: 12783
A23: 1600 | B23: 11392 | C23: 11988 | D23: 11278 | E23: 10769 | F23: 11409 | G23: 17773 | H23: 13798
A24: 1700 | B24: 12200 | C24: 12836 | D24: 12080 | E24: 11509 | F24: 12220 | G24: 19119 | H24: 14831
A25: 1800 | B25: 13016 | C25: 13691 | D25: 12888 | E25: 12254 | F25: 13036 | G25: 20469 | H25: 15877
A26: 1900 | B26: 13837 | C26: 14551 | D26: 13702 | E26: 13003 | F26: 13858 | G26: 21840 | H26: 16941
A27: 2000 | B27: 14663 | C27: 15415 | D27: 14524 | E27: 13759 | F27: 14688 | G27: 23211 | H27: 18019

Sheet B11 (hidden)
A1: Integral Heats of Solution and Mixing at 25°C
B3: ΔĤs (kJ/mol)
A4: r (moleH2O/mol solute) | B4: HCl (g) | C4: NaOH (s) | D4: H2SO4
A5: 0.5 | D5: -15.73
A6: 1 | B6: -26.22 | D6: -28.07
A7: 1.5 | D7: -36.9
A8: 2 | B8: -48.82 | D8: -41.92
A9: 3 | B9: -56.85 | C9: -28.87 | D9: -48.99
A10: 4 | B10: -61.2 | C10: -34.43 | D10: -54.06
A11: 5 | B11: -64.05 | C11: -37.74 | D11: -58.03
A12: 10 | B12: -69.49 | C12: -42.51 | D12: -67.03
A13: 20 | B13: -71.78 | C13: -42.84
A14: 25 | D14: -72.3
A15: 30 | B15: -72.59 | C15: -42.72
A16: 40 | B16: -73 | C16: -42.59
A17: 50 | B17: -73.26 | C17: -42.51 | D17: -73.34
A18: 100 | B18: -73.85 | C18: -42.34 | D18: -73.97
A19: 200 | B19: -74.2 | C19: -42.26
A20: 500 | B20: -74.52 | C20: -42.38 | D20: -76.73
A21: 1000 | B21: -74.68 | C21: -42.47 | D21: -78.57
A22: 2000 | B22: -74.82 | C22: -42.55
A23: 5000 | B23: -74.93 | C23: -42.68 | D23: -84.43
A24: 10000 | B24: -74.99 | C24: -42.72 | D24: -87.07
A25: 50000 | B25: -75.08 | C25: -42.8
A26: 100000 | B26: -75.1 | D26: -93.64
A27: 500000 | D27: -95.31
A28: infinity | B28: -75.14 | C28: -42.89 | D28: -96.19

Sheet Atomic (hidden)
B2: Atomic Number | C2: Symbol | D2: Element | E2: Atomic Weight | F2: Unstable
B3: 89 | C3: Ac | D3: Actinium | E3: 227 | F3: 1
B4: 13 | C4: Al | D4: Aluminium | E4: 26.9815
B5: 95 | C5: Am | D5: Americium | E5: 243 | F5: 1
B6: 51 | C6: Sb | D6: Antimony | E6: 121.75
B7: 18 | C7: Ar | D7: Argon | E7: 39.948
B8: 33 | C8: As | D8: Arsenic | E8: 74.9216
B9: 85 | C9: At | D9: Astatine | E9: 210 | F9: 1
B10: 56 | C10: Ba | D10: Barium | E10: 137.34
B11: 97 | C11: Bk | D11: Berkelium | E11: 247 | F11: 1
B12: 4 | C12: Be | D12: Beryllium | E12: 9.0122
B13: 83 | C13: Bi | D13: Bismuth | E13: 208.98
B14: 107 | C14: Bh | D14: Bohrium | E14: 272 | F14: 1
B15: 5 | C15: B | D15: Boron | E15: 10.811
B16: 35 | C16: Br | D16: Bromine | E16: 79.904
B17: 48 | C17: Cd | D17: Cadmium | E17: 112.4
B18: 20 | C18: Ca | D18: Calcium | E18: 40.08
B19: 98 | C19: Cf | D19: Californium | E19: 251 | F19: 1
B20: 6 | C20: C | D20: Carbon | E20: 12.01115
B21: 58 | C21: Ce | D21: Cerium | E21: 140.12
B22: 55 | C22: Cs | D22: Cesium | E22: 132.905
B23: 17 | C23: Cl | D23: Chlorine | E23: 35.453
B24: 24 | C24: Cr | D24: Chromium | E24: 51.996
B25: 27 | C25: Co | D25: Cobalt | E25: 58.933195
B26: 29 | C26: Cu | D26: Copper | E26: 63.546
B27: 96 | C27: Cm | D27: Curium | E27: 247 | F27: 1
B28: 110 | C28: Ds | D28: Darmstadtium | E28: 281 | F28: 1
B29: 105 | C29: Db | D29: Dubnium | E29: 268 | F29: 1
B30: 66 | C30: Dy | D30: Dysprosium | E30: 162.5
B31: 99 | C31: Es | D31: Einsteinium | E31: 252 | F31: 1
B32: 68 | C32: Er | D32: Erbium | E32: 167.26
B33: 63 | C33: Eu | D33: Europium | E33: 151.96
B34: 100 | C34: Fm | D34: Fermium | E34: 257 | F34: 1
B35: 9 | C35: F | D35: Fluorine | E35: 18.9984032
B36: 87 | C36: Fr | D36: Francium | E36: 223 | F36: 1
B37: 64 | C37: Gd | D37: Gadolinium | E37: 157.25
B38: 31 | C38: Ga | D38: Gallium | E38: 69.72
B39: 32 | C39: Ge | D39: Germanium | E39: 72.59
B40: 79 | C40: Au | D40: Gold | E40: 196.967
B41: 72 | C41: Hf | D41: Hafnium | E41: 178.49
B42: 108 | C42: Hs | D42: Hassium | E42: 270 | F42: 1
B43: 2 | C43: He | D43: Helium | E43: 4.0026
B44: 67 | C44: Ho | D44: Holmium | E44: 164.93
B45: 1 | C45: H | D45: Hydrogen | E45: 1.00797
B46: 49 | C46: In | D46: Indium | E46: 114.82
B47: 53 | C47: I | D47: Iodine | E47: 126.9044
B48: 77 | C48: Ir | D48: Iridium | E48: 192.22
B49: 26 | C49: Fe | D49: Iron | E49: 55.847
B50: 36 | C50: Kr | D50: Krypton | E50: 83.8
B51: 57 | C51: La | D51: Lanthanum | E51: 138.91
B52: 103 | C52: Lr | D52: Lawrencium | E52: 262 | F52: 1
B53: 82 | C53: Pb | D53: Lead | E53: 207.19
B54: 3 | C54: Li | D54: Lithium | E54: 6.939
B55: 71 | C55: Lu | D55: Lutetium | E55: 174.97
B56: 12 | C56: Mg | D56: Magnesium | E56: 24.312
B57: 25 | C57: Mn | D57: Manganese | E57: 54.938
B58: 109 | C58: Mt | D58: Meitnerium | E58: 276 | F58: 1
B59: 101 | C59: Md | D59: Mendelevium | E59: 258 | F59: 1
B60: 80 | C60: Hg | D60: Mercury | E60: 200.59
B61: 42 | C61: Mo | D61: Molybdenum | E61: 95.94
B62: 60 | C62: Nd | D62: Neodymium | E62: 144.24
B63: 10 | C63: Ne | D63: Neon | E63: 20.183
B64: 93 | C64: Np | D64: Neptunium | E64: 237 | F64: 1
B65: 28 | C65: Ni | D65: Nickel | E65: 58.71
B66: 41 | C66: Nb | D66: Niobium | E66: 92.906
B67: 7 | C67: N | D67: Nitrogen | E67: 14.0067
B68: 102 | C68: No | D68: Nobelium | E68: 259 | F68: 1
B69: 76 | C69: Os | D69: Osmium | E69: 190.2
B70: 8 | C70: O | D70: Oxygen | E70: 15.9994
B71: 46 | C71: Pd | D71: Palladium | E71: 106.4
B72: 15 | C72: P | D72: Phosphorus | E72: 30.9738
B73: 78 | C73: Pt | D73: Platinum | E73: 195.09
B74: 94 | C74: Pu | D74: Plutonium | E74: 244 | F74: 1
B75: 84 | C75: Po | D75: Polonium | E75: 209 | F75: 1
B76: 19 | C76: K | D76: Potassium | E76: 39.102
B77: 59 | C77: Pr | D77: Praseodymium | E77: 140.907
B78: 61 | C78: Pm | D78: Promethium | E78: 145 | F78: 1
B79: 91 | C79: Pa | D79: Protactinium | E79: 231.03588
B80: 88 | C80: Ra | D80: Radium | E80: 226 | F80: 1
B81: 86 | C81: Rn | D81: Radon | E81: 222 | F81: 1
B82: 75 | C82: Re | D82: Rhenium | E82: 186.2
B83: 45 | C83: Rh | D83: Rhodium | E83: 102.905
B84: 111 | C84: Rg | D84: Roentgenium | E84: 280 | F84: 1
B85: 37 | C85: Rb | D85: Rubidium | E85: 85.47
B86: 44 | C86: Ru | D86: Ruthenium | E86: 101.07
B87: 104 | C87: Rf | D87: Rutherfordium | E87: 267 | F87: 1
B88: 62 | C88: Sm | D88: Samarium | E88: 150.35
B89: 21 | C89: Sc | D89: Scandium | E89: 44.956
B90: 106 | C90: Sg | D90: Seaborgium | E90: 271 | F90: 1
B91: 34 | C91: Se | D91: Selenium | E91: 78.96
B92: 14 | C92: Si | D92: Silicon | E92: 28.086
B93: 47 | C93: Ag | D93: Silver | E93: 107.868
B94: 11 | C94: Na | D94: Sodium | E94: 22.9898
B95: 38 | C95: Sr | D95: Strontium | E95: 87.62
B96: 16 | C96: S | D96: Sulfur | E96: 32.064
B97: 73 | C97: Ta | D97: Tantalum | E97: 180.948
B98: 43 | C98: Tc | D98: Technetium | E98: 98 | F98: 1
B99: 52 | C99: Te | D99: Tellurium | E99: 127.6
B100: 65 | C100: Tb | D100: Terbium | E100: 158.924
B101: 81 | C101: Tl | D101: Thallium | E101: 204.37
B102: 90 | C102: Th | D102: Thorium | E102: 232.038
B103: 69 | C103: Tm | D103: Thulium | E103: 168.934
B104: 50 | C104: Sn | D104: Tin | E104: 118.69
B105: 22 | C105: Ti | D105: Titanium | E105: 47.9
B106: 74 | C106: W | D106: Tungsten | E106: 183.85
B107: 112 | C107: Uub | D107: Ununbium | E107: 285 | F107: 1
B108: 116 | C108: Uuh | D108: Ununhexium | E108: 293 | F108: 1
B109: 118 | C109: Uuo | D109: Ununoctium | E109: 294 | F109: 1
B110: 115 | C110: Uup | D110: Ununpentium | E110: 288 | F110: 1
B111: 114 | C111: Uuq | D111: Ununquadium | E111: 289 | F111: 1
B112: 113 | C112: Uut | D112: Ununtrium | E112: 284 | F112: 1
B113: 92 | C113: U | D113: Uranium | E113: 238.03
B114: 23 | C114: V | D114: Vanadium | E114: 50.942
B115: 54 | C115: Xe | D115: Xenon | E115: 131.3
B116: 70 | C116: Yb | D116: Ytterbium | E116: 173.04
B117: 39 | C117: Y | D117: Yttrium | E117: 88.905
B118: 30 | C118: Zn | D118: Zinc | E118: 65.37
B119: 40 | C119: Zr | D119: Zirconium | E119: 91.22

Sheet ANTOINE (hidden)
A1: Antione Equation Constants
A4: Compound | B4: Formula | C4: Lower Temp °C | D4: Upper Temp °C | E4: A | F4: B | G4: C
A5: 1,1,1-Trichloroethane | B5: C2H3Cl3 | C5: -5.4 | D5: 16.9 | E5: 8.64344 | F5: 2136.621 | G5: 302.769
A6: 1,1,2-Trichloroethane | B6: C2H3Cl3 | C6: 50 | D6: 113.7 | E6: 6.95185 | F6: 1314.41 | G6: 209.197
A7: 1,1-Dichloroethane | B7: C2H4Cl2 | C7: -38.8 | D7: 17.6 | E7: 6.97702 | F7: 1174.022 | G7: 229.06
A8: 1,2-Dichloroethane | B8: C2H4Cl | C8: -30.8 | D8: 99.4 | E8: 7.0253 | F8: 1271.254 | G8: 222.927
A9: 1,2-Ethylenediamine | B9: C2H8N2 | C9: 26.5 | D9: 117.4 | E9: 7.16871 | F9: 1336.235 | G9: 194.366
A10: 1,4-Dioxane | B10: C4H8O2 | C10: 20 | D10: 105 | E10: 7.43155 | F10: 1554.679 | G10: 240.337
A11: 1-Butanol | B11: C4H10O | C11: 89.2 | D11: 125.7 | E11: 7.36366 | F11: 1305.198 | G11: 173.427
A12: 1-Butene | B12: C4H8 | C12: -77.5 | D12: -3.7 | E12: 6.53101 | F12: 810.261 | G12: 228.066
A13: 1-Decene | B13: C10H20 | C13: 86.8 | D13: 171.6 | E13: 6.95433 | F13: 1497.527 | G13: 197.056
A14: 1-Heptene | B14: C7H14 | C14: 21.6 | D14: 94.5 | E14: 6.91381 | F14: 1265.12 | G14: 220.051
A15: 1-Hexene | B15: C6H12 | C15: 15.9 | D15: 64.3 | E15: 6.8688 | F15: 1154.646 | G15: 226.046
A16: 1-Nonene | B16: C9H18 | C16: 66.6 | D16: 147.9 | E16: 6.95777 | F16: 1437.862 | G16: 205.814
A17: 1-Octene | B17: C8H16 | C17: 44.9 | D17: 122.2 | E17: 6.93637 | F17: 1355.779 | G17: 213.022
A18: 1-Pentanol | B18: C5H12O | C18: 74.7 | D18: 156 | E18: 7.18246 | F18: 1287.625 | G18: 161.33
A19: 1-Pentene | B19: C5H10 | C19: 12.8 | D19: 30.7 | E19: 6.84268 | F19: 1043.206 | G19: 233.344
A20: 1-Propanol | B20: C3H8O | C20: 60.2 | D20: 104.6 | E20: 7.74416 | F20: 1437.686 | G20: 198.463
A21: 2-Butanol | B21: C4H10O | C21: 72.4 | D21: 107.1 | E21: 7.20131 | F21: 1157 | G21: 168.279
A22: 2-Propanol | B22: C3H8O | C22: 52.3 | D22: 89.3 | E22: 7.74021 | F22: 1359.517 | G22: 197.527
A23: Acetaldehyde | B23: C2H4O | C23: -0.2 | D23: 34.4 | E23: 8.00552 | F23: 1600.0017 | G23: 291.809
A24: Acetic acid | B24: C2H4O2 | C24: 29.8 | D24: 126.5 | E24: 7.38782 | F24: 1533.313 | G24: 222.309
A25: Acetic acid | B25: C2H4O2 | C25: 0 | D25: 36 | E25: 7.18807 | F25: 1416.7 | G25: 225
A26: Acetic anhydride | B26: C4H6O3 | C26: 62.8 | D26: 139.4 | E26: 7.14948 | F26: 1444.718 | G26: 199.817
A27: Acetone | B27: C3H6O | C27: -12.9 | D27: 55.3 | E27: 7.11714 | F27: 1210.595 | G27: 229.664
A28: Acrylic acid | B28: C3H4O2 | C28: 20 | D28: 70 | E28: 5.65204 | F28: 648.629 | G28: 154.683
A29: Ammonia | B29: NH3 | C29: -83 | D29: 60 | E29: 7.55466 | F29: 1002.711 | G29: 247.885
A30: Aniline | B30: C6H7N | C30: 102.6 | D30: 185.2 | E30: 7.3201 | F30: 1731.515 | G30: 206.049
A31: Benzene | B31: C6H6 | C31: 14.5 | D31: 80.9 | E31: 6.89272 | F31: 1203.531 | G31: 219.888
A32: Butyric acid | B32: C4H8O2 | C32: 20 | D32: 150 | E32: 8.71019 | F32: 2433.014 | G32: 255.189
A33: Carbon disulfide | B33: CS2 | C33: 3.6 | D33: 79.9 | E33: 6.94279 | F33: 1169.11 | G33: 241.593
A34: Carbon tetrachloride | B34: CCl4 | C34: 14.1 | D34: 76 | E34: 6.87926 | F34: 1212.021 | G34: 226.409
A35: Chlorobenzene | B35: C6H5Cl | C35: 62 | D35: 131.7 | E35: 6.97808 | F35: 1431.053 | G35: 217.55
A36: Chlorobenzene | B36: C6H5Cl | C36: 0 | D36: 42 | E36: 7.1069 | F36: 1500 | G36: 224
A37: Chlorobenzene | B37: C6H5Cl | C37: 42 | D37: 230 | E37: 6.94504 | F37: 1413.12 | G37: 216
A38: Chloroform | B38: CHCl3 | C38: -10.4 | D38: 60.3 | E38: 6.95465 | F38: 1170.966 | G38: 226.232
A39: Chloroform | B39: CHCl3 | C39: -30 | D39: 150 | E39: 6.90328 | F39: 1163.03 | G39: 227.4
A40: Cyclohexane | B40: C6H12 | C40: 19.9 | D40: 81.6 | E40: 6.84941 | F40: 1206.001 | G40: 223.148
A41: Cyclohexanol | B41: C6H12O | C41: 93.7 | D41: 160.7 | E41: 6.2553 | F41: 912.866 | G41: 109.126
A42: Dichloromethane | B42: CH2Cl2 | C42: -40 | D42: 40 | E42: 7.40916 | F42: 1325.938 | G42: 252.616
A43: Diethyl ether | B43: C4H10O | C43: -60.8 | D43: 19.9 | E43: 6.92032 | F43: 1064.066 | G43: 228.799
A44: Diethyl ketone | B44: C5H10O | C44: 56.5 | D44: 111.3 | E44: 7.02529 | F44: 1310.281 | G44: 214.192
A45: Diethylene glycol | B45: C4H10O2 | C45: 130 | D45: 243 | E45: 7.63666 | F45: 1939.359 | G45: 162.714
A46: Dimethyl ether | B46: C2H6O | C46: -78.2 | D46: -24.9 | E46: 6.97603 | F46: 889.264 | G46: 241.957
A47: Dimethylamine | B47: C2H7N | C47: -71.8 | D47: 6.9 | E47: 7.08212 | F47: 960.242 | G47: 221.667
A48: Ethanol | B48: C2H6O | C48: 19.6 | D48: 93.4 | E48: 8.1122 | F48: 1592.864 | G48: 226.184
A49: Ethanolamine | B49: C2H7NO | C49: 65.4 | D49: 170.9 | E49: 7.4568 | F49: 1577.67 | G49: 173.368
A50: Ethyl acetate | B50: C4H8O2 | C50: 15.6 | D50: 75.8 | E50: 7.10179 | F50: 1244.951 | G50: 217.881
A51: Ethyl acetate | B51: C4H8O2 | C51: -20 | D51: 150 | E51: 7.09808 | F51: 1238.71 | G51: 217
A52: Ethyl chloride | B52: C2H5Cl | C52: -55.9 | D52: 12.5 | E52: 6.98647 | F52: 1030.007 | G52: 238.612
A53: Ethylbenzene | B53: C8H10 | C53: 56.5 | D53: 137.1 | E53: 6.9565 | F53: 1423.543 | G53: 213.091
A54: Ethylene glycol | B54: C2H6O2 | C54: 50 | D54: 200 | E54: 8.09083 | F54: 2088.936 | G54: 203.454
A55: Ethylene oxide | B55: C2H4O | C55: 0.3 | D55: 31.8 | E55: 8.69016 | F55: 2005.779 | G55: 334.765
A56: Formaldehyde | B56: HCHO | C56: -109.4 | D56: -22.3 | E56: 7.19578 | F56: 970.595 | G56: 244.124
A57: Formic acid | B57: CH2O2 | C57: 37.4 | D57: 100.7 | E57: 7.58178 | F57: 1699.173 | G57: 260.714
A58: Glycerol | B58: C3H8O3 | C58: 183.3 | D58: 260.4 | E58: 6.16501 | F58: 1036.056 | G58: 28.097
A59: Hydrogen Cyanide | B59: HCN | C59: -16.4 | D59: 46.2 | E59: 7.52823 | F59: 1329.49 | G59: 260.418
A60: i-Butane | B60: C4H10 | C60: -85.1 | D60: -11.6 | E60: 6.78866 | F60: 899.617 | G60: 241.942
A61: i-Heptane | B61: C7H16 | C61: 18.5 | D61: 90.9 | E61: 6.87689 | F61: 1238.122 | G61: 219.783
A62: i-Hexane | B62: C6H14 | C62: 12.8 | D62: 61.1 | E62: 6.86839 | F62: 1151.401 | G62: 228.477
A63: i-Octane | B63: C8H18 | C63: 41.7 | D63: 118.5 | E63: 6.88814 | F63: 1319.529 | G63: 211.625
A64: i-Pentane | B64: C5H12 | C64: 16.3 | D64: 28.6 | E64: 6.73457 | F64: 992.019 | G64: 229.564
A65: Methanol | B65: CH3OH | C65: 14.9 | D65: 83.7 | E65: 8.08097 | F65: 1582.271 | G65: 239.726
A66: Methanol | B66: CH3OH | C66: -20 | D66: 140 | E66: 7.87863 | F66: 1473.11 | G66: 230
A67: Methyl acetate | B67: C3H6O2 | C67: 1.8 | D67: 55.8 | E67: 7.06524 | F67: 1157.63 | G67: 219.726
A68: Methyl bromide | B68: CH3Br | C68: -70 | D68: 3.6 | E68: 7.09084 | F68: 1046.066 | G68: 244.914
A69: Methyl chloride | B69: CH3Cl | C69: -75 | D69: 5 | E69: 7.09349 | F69: 948.582 | G69: 249.336
A70: Methyl ethyl ketone | B70: C4H8O | C70: 42.8 | D70: 88.4 | E70: 7.06356 | F70: 1261.339 | G70: 221.969
A71: Methyl isobutyl ketone | B71: C6H12O | C71: 21.7 | D71: 116.2 | E71: 6.67272 | F71: 1168.408 | G71: 191.944
A72: Methyl methacrylate | B72: C5H8O2 | C72: 39.2 | D72: 89.2 | E72: 8.40919 | F72: 2050.467 | G72: 274.369
A73: Methylamine | B73: CH5N | C73: -83.1 | D73: -6.2 | E73: 7.3369 | F73: 1011.532 | G73: 233.286
A74: Methylcyclohexane | B74: C7H14 | C74: 25.6 | D74: 101.8 | E74: 6.82827 | F74: 1273.673 | G74: 221.723
A75: m-Xylene | B75: C8H10 | C75: 59.2 | D75: 140 | E75: 7.00646 | F75: 1460.183 | G75: 214.827
A76: N,N-Dimethylformamide | B76: C3H7NO | C76: 30 | D76: 90 | E76: 6.92796 | F76: 1400.869 | G76: 196.434
A77: Naphthalene | B77: C10H8 | C77: 80.3 | D77: 179.5 | E77: 7.03358 | F77: 1756.328 | G77: 204.842
A78: n-Butane | B78: C4H10 | C78: -78 | D78: -0.3 | E78: 6.82485 | F78: 943.453 | G78: 239.711
A79: n-Decane | B79: C10H22 | C79: 94.5 | D79: 175.1 | E79: 6.95707 | F79: 1503.568 | G79: 194.738
A80: n-Heptane | B80: C7H16 | C80: 25.9 | D80: 99.3 | E80: 6.90253 | F80: 1267.828 | G80: 216.823
A81: n-Hexane | B81: C6H14 | C81: 13 | D81: 69.5 | E81: 6.88555 | F81: 1175.817 | G81: 224.867
A82: Nitrobenzene | B82: C6H5NO2 | C82: 134.1 | D82: 210.6 | E82: 7.11562 | F82: 1746.586 | G82: 201.783
A83: Nitromethane | B83: CH3NO2 | C83: 55.7 | D83: 136.4 | E83: 7.28166 | F83: 1446.937 | G83: 227.6
A84: n-Nonane | B84: C9H20 | C84: 70.3 | D84: 151.8 | E84: 6.93764 | F84: 1430.459 | G84: 201.808
A85: n-Octane | B85: C8H18 | C85: 52.9 | D85: 126.6 | E85: 6.91874 | F85: 1351.756 | G85: 209.1
A86: n-Pentane | B86: C5H12 | C86: 13.3 | D86: 36.8 | E86: 6.84471 | F86: 1060.793 | G86: 231.541
A87: o-Xylene | B87: C8H10 | C87: 63.5 | D87: 145.4 | E87: 7.00154 | F87: 1476.393 | G87: 213.872
A88: Phenol | B88: C6H6O | C88: 107.2 | D88: 181.8 | E88: 7.13301 | F88: 1516.79 | G88: 174.954
A89: Propionic acid | B89: C3H6O2 | C89: 72.4 | D89: 128.3 | E89: 7.71423 | F89: 1733.418 | G89: 217.724
A90: Propylene oxide | B90: C3H6O | C90: -24.2 | D90: 34.8 | E90: 7.01443 | F90: 1086.369 | G90: 228.594
A91: p-Xylene | B91: C8H10 | C91: 58.3 | D91: 139.3 | E91: 6.9882 | F91: 1451.792 | G91: 215.111
A92: Pyridine | B92: C5H5N | C92: 67.3 | D92: 152.9 | E92: 7.04115 | F92: 1373.799 | G92: 214.979
A93: Styrene | B93: C8H8 | C93: 29.9 | D93: 144.8 | E93: 7.06623 | F93: 1507.434 | G93: 214.985
A94: Toluene | B94: C7H8 | C94: 35.3 | D94: 111.5 | E94: 6.95805 | F94: 1346.773 | G94: 219.693
A95: Trichoroethylene | B95: C2HCl3 | C95: 17.8 | D95: 86.5 | E95: 6.51827 | F95: 1018.603 | G95: 192.731
A96: Vinyl acetate | B96: C4H6O2 | C96: 21.8 | D96: 72 | E96: 7.2101 | F96: 1296.13 | G96: 226.655
A97: Water | B97: H2O | C97: 0 | D97: 60 | E97: 8.10765 | F97: 1750.286 | G97: 235
A98: Water | B98: H2O | C98: 60 | D98: 150 | E98: 7.96681 | F98: 1668.21 | G98: 228
A99: ZZZ

Sheet KOPPS (hidden)
A1: Atomic Heat Capacities for Kopp's Rule
B4: Cpa (J/(g-atom°C))
A5: Element | B5: Solids | C5: Liquids
A6: B | B6: 11 | C6: 20
A7: C | B7: 7.5 | C7: 12
A8: F | B8: 21 | C8: 29
A9: H | B9: 9.6 | C9: 18
A10: O | B10: 17 | C10: 25 | E10: C | F10: 1
A11: P | B11: 23 | C11: 31 | E11: H | F11: 4
A12: S | B12: 26 | C12: 31 | E12: N | F12: 2
A13: Si | B13: 16 | C13: 24
A14: ZZ | B14: 26 | C14: 33 | F14: =[0]!Kopps(E10:E12,F10:F12,"L") -> 

Sheet B3 (hidden)
A1: Vapor Pressure of Water
A3: Pv (mmHg) versus T (°C)
B5: T (°C) | C5: 0 | D5: 0.1 | E5: 0.2 | F5: 0.3 | G5: 0.4 | H5: 0.5 | I5: 0.6 | J5: 0.7 | K5: 0.8 | L5: 0.9
B6: -14 | C6: 1.361 | D6: 1.348 | E6: 1.336 | F6: 1.324 | G6: 1.312 | H6: 1.3 | I6: 1.288 | J6: 1.276 | K6: 1.264 | L6: 1.253
B7: -13 | C7: 1.49 | D7: 1.477 | E7: 1.464 | F7: 1.45 | G7: 1.437 | H7: 1.424 | I7: 1.411 | J7: 1.399 | K7: 1.386 | L7: 1.373
B8: -12 | C8: 1.632 | D8: 1.617 | E8: 1.602 | F8: 1.588 | G8: 1.574 | H8: 1.559 | I8: 1.546 | J8: 1.532 | K8: 1.518 | L8: 1.504
B9: -11 | C9: 1.785 | D9: 1.769 | E9: 1.753 | F9: 1.737 | G9: 1.722 | H9: 1.707 | I9: 1.691 | J9: 1.676 | K9: 1.661 | L9: 1.646
B10: -10 | C10: 1.95 | D10: 1.934 | E10: 1.916 | F10: 1.899 | G10: 1.883 | H10: 1.866 | I10: 1.849 | J10: 1.833 | K10: 1.817 | L10: 1.8
B11: -9 | C11: 2.131 | D11: 2.122 | E11: 2.093 | F11: 2.075 | G11: 2.057 | H11: 2.039 | I11: 2.021 | J11: 2.003 | K11: 1.985 | L11: 1.968
B12: -8 | C12: 2.326 | D12: 2.306 | E12: 2.285 | F12: 2.266 | G12: 2.246 | H12: 2.226 | I12: 2.207 | J12: 2.187 | K12: 2.168 | L12: 2.149
B13: -7 | C13: 2.537 | D13: 2.515 | E13: 2.493 | F13: 2.472 | G13: 2.45 | H13: 2.429 | I13: 2.408 | J13: 2.387 | K13: 2.367 | L13: 2.346
B14: -6 | C14: 2.765 | D14: 2.742 | E14: 2.718 | F14: 2.695 | G14: 2.672 | H14: 2.649 | I14: 2.626 | J14: 2.603 | K14: 2.581 | L14: 2.559
B15: -5 | C15: 3.013 | D15: 2.987 | E15: 2.962 | F15: 2.937 | G15: 2.912 | H15: 2.887 | I15: 2.862 | J15: 2.838 | K15: 2.813 | L15: 2.79
B16: -4 | C16: 3.28 | D16: 3.252 | E16: 3.225 | F16: 3.198 | G16: 3.171 | H16: 3.144 | I16: 3.117 | J16: 3.091 | K16: 3.065 | L16: 3.039
B17: -3 | C17: 3.568 | D17: 3.539 | E17: 3.509 | F17: 3.48 | G17: 3.451 | H17: 3.422 | I17: 3.393 | J17: 3.364 | K17: 3.336 | L17: 3.308
B18: -2 | C18: 3.88 | D18: 3.848 | E18: 3.816 | F18: 3.785 | G18: 3.753 | H18: 3.722 | I18: 3.691 | J18: 3.66 | K18: 3.63 | L18: 3.599
B19: -1 | C19: 4.217 | D19: 4.182 | E19: 4.147 | F19: 4.113 | G19: 4.079 | H19: 4.045 | I19: 4.012 | J19: 3.979 | K19: 3.946 | L19: 3.913
A20: Ice | B20: 0 | C20: 4.579 | D20: 4.542 | E20: 4.504 | F20: 4.467 | G20: 4.431 | H20: 4.395 | I20: 4.359 | J20: 4.323 | K20: 4.287 | L20: 4.252
A21: Liquid Water | B21: 0 | C21: 4.579 | D21: 4.613 | E21: 4.647 | F21: 4.681 | G21: 4.715 | H21: 4.75 | I21: 4.785 | J21: 4.82 | K21: 4.855 | L21: 4.89
B22: 1 | C22: 4.926 | D22: 4.962 | E22: 4.998 | F22: 5.034 | G22: 5.07 | H22: 5.107 | I22: 5.144 | J22: 5.181 | K22: 5.219 | L22: 5.256
B23: 2 | C23: 5.294 | D23: 5.332 | E23: 5.37 | F23: 5.408 | G23: 5.447 | H23: 5.486 | I23: 5.525 | J23: 5.565 | K23: 5.605 | L23: 5.645
B24: 3 | C24: 5.685 | D24: 5.725 | E24: 5.766 | F24: 5.807 | G24: 5.848 | H24: 5.889 | I24: 5.931 | J24: 5.973 | K24: 6.015 | L24: 6.058
B25: 4 | C25: 6.101 | D25: 6.144 | E25: 6.187 | F25: 6.23 | G25: 6.274 | H25: 6.318 | I25: 6.363 | J25: 6.408 | K25: 6.453 | L25: 6.498
B26: 5 | C26: 6.543 | D26: 6.589 | E26: 6.635 | F26: 6.681 | G26: 6.728 | H26: 6.775 | I26: 6.822 | J26: 6.869 | K26: 6.917 | L26: 6.965
B27: 6 | C27: 7.013 | D27: 7.062 | E27: 7.111 | F27: 7.16 | G27: 7.209 | H27: 7.259 | I27: 7.309 | J27: 7.36 | K27: 7.411 | L27: 7.462
B28: 7 | C28: 7.513 | D28: 7.565 | E28: 7.617 | F28: 7.669 | G28: 7.722 | H28: 7.775 | I28: 7.828 | J28: 7.882 | K28: 7.936 | L28: 7.99
B29: 8 | C29: 8.045 | D29: 8.1 | E29: 8.155 | F29: 8.211 | G29: 8.267 | H29: 8.323 | I29: 8.38 | J29: 8.437 | K29: 8.494 | L29: 8.551
B30: 9 | C30: 8.609 | D30: 8.668 | E30: 8.727 | F30: 8.786 | G30: 8.845 | H30: 8.905 | I30: 8.965 | J30: 9.025 | K30: 9.086 | L30: 9.147
B31: 10 | C31: 9.209 | D31: 9.271 | E31: 9.333 | F31: 9.395 | G31: 9.458 | H31: 9.521 | I31: 9.585 | J31: 9.649 | K31: 9.714 | L31: 9.779
B32: 11 | C32: 9.844 | D32: 9.91 | E32: 9.976 | F32: 10.042 | G32: 10.109 | H32: 10.176 | I32: 10.244 | J32: 10.312 | K32: 10.38 | L32: 10.449
B33: 12 | C33: 10.518 | D33: 10.588 | E33: 10.658 | F33: 10.728 | G33: 10.799 | H33: 10.87 | I33: 10.941 | J33: 11.013 | K33: 11.085 | L33: 11.158
B34: 13 | C34: 11.231 | D34: 11.305 | E34: 11.379 | F34: 11.453 | G34: 11.528 | H34: 11.604 | I34: 11.68 | J34: 11.756 | K34: 11.833 | L34: 11.91
B35: 14 | C35: 11.987 | D35: 12.065 | E35: 12.144 | F35: 12.223 | G35: 12.302 | H35: 12.382 | I35: 12.462 | J35: 12.543 | K35: 12.624 | L35: 12.706
B36: 15 | C36: 12.788 | D36: 12.87 | E36: 12.953 | F36: 13.037 | G36: 13.121 | H36: 13.205 | I36: 13.29 | J36: 13.375 | K36: 13.461 | L36: 13.547
B37: 16 | C37: 13.634 | D37: 13.721 | E37: 13.809 | F37: 13.898 | G37: 13.987 | H37: 14.076 | I37: 14.166 | J37: 14.256 | K37: 14.347 | L37: 14.438
B38: 17 | C38: 14.53 | D38: 14.622 | E38: 14.715 | F38: 14.809 | G38: 14.903 | H38: 14.997 | I38: 15.092 | J38: 15.188 | K38: 15.284 | L38: 15.38
B39: 18 | C39: 15.477 | D39: 15.575 | E39: 15.673 | F39: 15.772 | G39: 15.871 | H39: 15.971 | I39: 16.071 | J39: 16.171 | K39: 16.272 | L39: 16.374
B40: 19 | C40: 16.477 | D40: 16.581 | E40: 16.685 | F40: 16.789 | G40: 16.894 | H40: 16.999 | I40: 17.105 | J40: 17.212 | K40: 17.319 | L40: 17.427
B41: 20 | C41: 17.535 | D41: 17.644 | E41: 17.753 | F41: 17.863 | G41: 17.974 | H41: 18.085 | I41: 18.197 | J41: 18.309 | K41: 18.422 | L41: 18.536
B42: 21 | C42: 18.65 | D42: 18.765 | E42: 18.88 | F42: 18.996 | G42: 19.113 | H42: 19.231 | I42: 19.349 | J42: 19.468 | K42: 19.587 | L42: 19.707
B43: 22 | C43: 19.827 | D43: 19.948 | E43: 20.07 | F43: 20.193 | G43: 20.316 | H43: 20.44 | I43: 20.565 | J43: 20.69 | K43: 20.815 | L43: 20.941
B44: 23 | C44: 21.068 | D44: 21.196 | E44: 21.324 | F44: 21.453 | G44: 21.583 | H44: 21.714 | I44: 21.845 | J44: 21.977 | K44: 22.11 | L44: 22.243
B45: 24 | C45: 22.377 | D45: 22.512 | E45: 22.648 | F45: 22.785 | G45: 22.922 | H45: 23.06 | I45: 23.198 | J45: 23.337 | K45: 23.476 | L45: 23.616
B46: 25 | C46: 23.756 | D46: 23.897 | E46: 24.039 | F46: 24.182 | G46: 24.326 | H46: 24.471 | I46: 24.617 | J46: 24.764 | K46: 24.912 | L46: 25.06
B47: 26 | C47: 25.209 | D47: 25.359 | E47: 25.509 | F47: 25.66 | G47: 25.812 | H47: 25.964 | I47: 26.117 | J47: 26.271 | K47: 26.426 | L47: 26.582
B48: 27 | C48: 26.739 | D48: 26.897 | E48: 27.055 | F48: 27.214 | G48: 27.374 | H48: 27.535 | I48: 27.696 | J48: 27.858 | K48: 28.021 | L48: 28.185
B49: 28 | C49: 28.349 | D49: 28.514 | E49: 28.68 | F49: 28.847 | G49: 29.015 | H49: 29.184 | I49: 29.354 | J49: 29.525 | K49: 29.697 | L49: 29.87
B50: 29 | C50: 30.043 | D50: 30.217 | E50: 30.392 | F50: 30.568 | G50: 30.745 | H50: 30.923 | I50: 31.102 | J50: 31.281 | K50: 31.461 | L50: 31.642
B51: 30 | C51: 31.824 | D51: 32.007 | E51: 32.191 | F51: 32.376 | G51: 32.561 | H51: 32.747 | I51: 32.934 | J51: 33.122 | K51: 33.312 | L51: 33.503
B52: 31 | C52: 33.695 | D52: 33.888 | E52: 34.082 | F52: 34.276 | G52: 34.471 | H52: 34.667 | I52: 34.864 | J52: 35.062 | K52: 35.261 | L52: 35.462
B53: 32 | C53: 35.663 | D53: 35.865 | E53: 36.068 | F53: 36.272 | G53: 36.477 | H53: 36.683 | I53: 36.891 | J53: 37.099 | K53: 37.308 | L53: 37.518
B54: 33 | C54: 37.729 | D54: 37.942 | E54: 38.155 | F54: 38.369 | G54: 38.584 | H54: 38.801 | I54: 38.018 | J54: 39.237 | K54: 39.457 | L54: 39.677
B55: 34 | C55: 39.898 | D55: 40.121 | E55: 40.344 | F55: 40.569 | G55: 40.796 | H55: 41.023 | I55: 41.251 | J55: 41.48 | K55: 41.71 | L55: 41.942
B56: 35 | C56: 42.175 | D56: 42.409 | E56: 42.644 | F56: 42.88 | G56: 43.117 | H56: 43.355 | I56: 43.595 | J56: 43.836 | K56: 44.078 | L56: 44.32
B57: 36 | C57: 44.563 | D57: 44.808 | E57: 45.054 | F57: 45.301 | G57: 45.549 | H57: 45.799 | I57: 46.05 | J57: 46.302 | K57: 46.556 | L57: 46.811
B58: 37 | C58: 47.067 | D58: 47.324 | E58: 47.582 | F58: 47.841 | G58: 48.102 | H58: 48.364 | I58: 48.627 | J58: 48.891 | K58: 49.157 | L58: 49.424
B59: 38 | C59: 49.692 | D59: 49.961 | E59: 50.231 | F59: 50.502 | G59: 50.774 | H59: 51.048 | I59: 51.323 | J59: 51.6 | K59: 51.879 | L59: 52.16
B60: 39 | C60: 52.442 | D60: 52.725 | E60: 53.009 | F60: 53.294 | G60: 53.58 | H60: 53.867 | I60: 54.156 | J60: 54.446 | K60: 54.737 | L60: 55.03
B61: 40 | C61: 55.324 | D61: 55.61 | E61: 55.91 | F61: 56.21 | G61: 56.51 | H61: 56.81 | I61: 57.11 | J61: 57.41 | K61: 57.72 | L61: 58.03
B62: 41 | C62: 58.34 | D62: 58.65 | E62: 58.96 | F62: 59.27 | G62: 59.58 | H62: 59.9 | I62: 60.22 | J62: 60.54 | K62: 60.86 | L62: 61.18
B63: 42 | C63: 61.5 | D63: 61.82 | E63: 62.14 | F63: 62.47 | G63: 62.8 | H63: 63.13 | I63: 63.46 | J63: 63.79 | K63: 64.12 | L63: 64.46
B64: 43 | C64: 64.8 | D64: 65.14 | E64: 65.48 | F64: 65.82 | G64: 66.16 | H64: 66.51 | I64: 66.86 | J64: 67.21 | K64: 67.56 | L64: 67.91
B65: 44 | C65: 68.26 | D65: 68.61 | E65: 68.97 | F65: 69.33 | G65: 69.69 | H65: 70.05 | I65: 70.41 | J65: 70.77 | K65: 71.14 | L65: 71.51
B66: 45 | C66: 71.88 | D66: 72.25 | E66: 72.62 | F66: 72.99 | G66: 73.36 | H66: 73.74 | I66: 74.12 | J66: 74.5 | K66: 74.88 | L66: 75.26
B67: 46 | C67: 75.65 | D67: 76.04 | E67: 76.43 | F67: 76.82 | G67: 77.21 | H67: 77.6 | I67: 78 | J67: 78.4 | K67: 78.8 | L67: 79.2
B68: 47 | C68: 79.6 | D68: 80 | E68: 80.41 | F68: 80.82 | G68: 81.23 | H68: 81.64 | I68: 82.05 | J68: 82.46 | K68: 82.87 | L68: 83.29
B69: 48 | C69: 83.71 | D69: 84.13 | E69: 84.56 | F69: 84.99 | G69: 85.42 | H69: 85.85 | I69: 86.28 | J69: 86.71 | K69: 87.14 | L69: 87.58
B70: 49 | C70: 88.02 | D70: 88.46 | E70: 88.9 | F70: 89.34 | G70: 89.79 | H70: 90.24 | I70: 90.69 | J70: 91.14 | K70: 91.59 | L70: 92.05
B71: T (°C) | C71: 0 | D71: 1 | E71: 2 | F71: 3 | G71: 4 | H71: 5 | I71: 6 | J71: 7 | K71: 8 | L71: 9
B72: 50 | C72: 92.51 | D72: 97.2 | E72: 102.09 | F72: 107.2 | G72: 112.51 | H72: 118.04 | I72: 123.8 | J72: 129.82 | K72: 136.08 | L72: 142.6
B73: 60 | C73: 149.38 | D73: 156.43 | E73: 163.77 | F73: 171.38 | G73: 179.31 | H73: 187.54 | I73: 196.09 | J73: 204.96 | K73: 214.17 | L73: 223.73
B74: 70 | C74: 233.7 | D74: 243.9 | E74: 254.6 | F74: 265.7 | G74: 277.2 | H74: 289.1 | I74: 301.4 | J74: 314.1 | K74: 327.3 | L74: 341
B75: 80 | C75: 355.1 | D75: 369.7 | E75: 384.9 | F75: 400.6 | G75: 416.8 | H75: 433.6 | I75: 450.9 | J75: 468.7 | K75: 487.1 | L75: 506.1
B76: T (°C) | C76: 0 | D76: 0.1 | E76: 0.2 | F76: 0.3 | G76: 0.4 | H76: 0.5 | I76: 0.6 | J76: 0.7 | K76: 0.8 | L76: 0.9
B77: 90 | C77: 525.76 | D77: 527.76 | E77: 529.77 | F77: 531.78 | G77: 533.8 | H77: 535.82 | I77: 537.86 | J77: 539.9 | K77: 541.95 | L77: 544
B78: 91 | C78: 546.05 | D78: 548.11 | E78: 550.18 | F78: 552.26 | G78: 554.35 | H78: 556.44 | I78: 558.53 | J78: 560.64 | K78: 562.75 | L78: 564.87
B79: 92 | C79: 566.99 | D79: 569.12 | E79: 571.26 | F79: 573.4 | G79: 575.55 | H79: 577.71 | I79: 579.87 | J79: 582.04 | K79: 584.22 | L79: 586.41
B80: 93 | C80: 588.6 | D80: 590.8 | E80: 593 | F80: 595.21 | G80: 597.43 | H80: 599.66 | I80: 601.89 | J80: 604.13 | K80: 606.38 | L80: 608.64
B81: 94 | C81: 610.9 | D81: 613.17 | E81: 615.44 | F81: 617.72 | G81: 620.01 | H81: 622.31 | I81: 624.61 | J81: 626.92 | K81: 629.24 | L81: 631.57
B82: 95 | C82: 633.9 | D82: 636.24 | E82: 638.59 | F82: 640.94 | G82: 643.3 | H82: 645.67 | I82: 648.05 | J82: 650.43 | K82: 652.82 | L82: 655.22
B83: 96 | C83: 657.62 | D83: 660.03 | E83: 662.45 | F83: 664.88 | G83: 667.31 | H83: 669.75 | I83: 672.2 | J83: 674.66 | K83: 677.12 | L83: 679.69
B84: 97 | C84: 682.07 | D84: 684.55 | E84: 687.04 | F84: 689.54 | G84: 692.05 | H84: 694.57 | I84: 697.1 | J84: 699.63 | K84: 702.17 | L84: 704.71
B85: 98 | C85: 707.27 | D85: 709.83 | E85: 712.4 | F85: 714.98 | G85: 717.56 | H85: 720.15 | I85: 722.75 | J85: 725.36 | K85: 727.98 | L85: 730.61
B86: 99 | C86: 733.24 | D86: 735.88 | E86: 738.53 | F86: 741.18 | G86: 743.85 | H86: 746.52 | I86: 749.2 | J86: 751.89 | K86: 754.58 | L86: 757.29
B87: 100 | C87: 760 | D87: 762.72 | E87: 765.45 | F87: 768.19 | G87: 770.93 | H87: 773.68 | I87: 776.44 | J87: 779.22 | K87: 782 | L87: 784.78
B88: 101 | C88: 787.57 | D88: 790.37 | E88: 793.18 | F88: 796 | G88: 798.82 | H88: 801.66 | I88: 804.5 | J88: 807.35 | K88: 810.21 | L88: 813.08

Sheet Sheet1

Sheet Introduction (hidden)

Sheet Chapter2
A1: Slope examples
A3: Example 1:
A4: A series of meaurement of temperature versus time yields the following points:
B6: x | C6: y
B7: 0 | C7: =3.6*B7 -> 0
B8: 2 | C8: =3.6*B8 -> 7.2
B9: 4 | C9: 14.4
B10: 6 | C10: 21.6
B11: 7 | C11: 25.2
B12: 8 | C12: 28.8
B13: 10 | C13: 36
B14: 12 | C14: 43.2
B15: 14 | C15: 50.4
B16: 16 | C16: 57.6
B17: 18 | C17: 64.8
B18: 20 | C18: 72
A20: If the value of x is 7.89, what is the value of y?
A22: Solution:
B23: using vba function | E23: using microsoft excel:
B24: slope = | C24: =[0]!Slope1(C7:C18,B7:B18) -> 3.6 | E24: slope= | F24: =SLOPE(C7:C18,B7:B18) -> 3.6
E25: intercept= | F25: =INTERCEPT(C7:C18,B7:B18) -> 7.105427358e-15
B26: using slope intercept form to find y : y=slope *x
B28: y= | C28: =C24*7.89 -> 28.404
A34: Example 2:
A35: (Problem 2.42 from Elementary Priciples of Chemical Processes) | J35: Test Yourself, Problem 1, P. 23
K36: f | L36: t
B37: Lab 1 | D37: Lab 2 | F37: Lab3 | K37: 1 | L37: 1
B38: T= 275°C | D38: T=275°C | F38: T=275°C | K38: 4 | L38: 2
B39: CA0 (g/L) | D39: CA0 (g/L) | F39: CA0 (g/L) | K39: 8 | L39: 3
B40: 4.83 | C40: Linearized | D40: 5.14 | E40: Linearized | F40: 3.69 | G40: Linearized
A41: t(s) | B41: Cp(g/L) | C41: data | D41: Cp(g/L) | E41: data | F41: Cp(g/L) | G41: data
A42: 0 | B42: 0 | C42: =LN(1-B42/$B$40) -> 0 | D42: 0 | E42: =LN(1-D42/$D$40) -> 0 | F42: 0 | G42: =LN(1-F42/$F$40) -> 0 | L42: f(t=1.3)= | M42: =[0]!linterp(L37:L39,K37:K39,1.3) -> 1.9
A43: 10 | B43: 0.287 | C43: =LN(1-B43/$B$40) -> -0.06125888089 | D43: 0.31 | E43: -0.0622066118 | F43: 0.245 | G43: -0.06870255359 | L43: f(f=5)= | M43: =[0]!linterp(K37:K39,L37:L39,5) -> 2.25
A44: 20 | B44: 0.594 | C44: =LN(1-B44/$B$40) -> -0.1312270399 | D44: 0.614 | E44: -0.1272145323 | F44: 0.465 | G44: -0.1346935078 | L44: f(t=5)= | M44: =[0]!linterp(L37:L39,K37:K39,5) -> 16
A45: 30 | B45: 0.871 | C45: -0.1988549995 | D45: 0.885 | E45: -0.1889583174 | F45: 0.67 | G45: -0.2003696267 | L45: f(t=0)= | M45: =[0]!linterp(L37:L39,K37:K39,0) -> -2
A46: 60 | B46: 1.51 | C46: -0.3748816847 | D46: 1.64 | E46: -0.384290111 | F46: 1.2 | G46: -0.3933437476
A47: 120 | B47: 2.62 | C47: -0.7818539521 | D47: 2.66 | E47: -0.7287945193 | F47: 2.06 | G47: -0.8170464432 | J47: Problem 2.29
A48: 240 | B48: 3.91 | C48: -1.658228077 | D48: 3.87 | E48: -1.398036179 | F48: 3.03 | G48: -1.721141902 | K48: The vapor pressure of 1-chlorotetradecane at several temperatures are tabulated here.
A49: 360 | B49: 4.3 | C49: -2.20972474 | D49: 4.61 | E49: -2.271931352 | F49: 3.32 | G49: -2.299878731
A50: 480 | B50: 4.62 | C50: -3.135494216 | D50: 4.89 | E50: -3.023347441 | F50: 3.54 | G50: -3.202746443 | L50: T (°C) | M50: 98.5 | N50: 131.8 | O50: 148.2 | P50: 166.2 | Q50: 199.8 | R50: 215.5
A51: 600 | B51: 4.68 | C51: -3.471966453 | D51: 5.03 | E51: -3.844327993 | F51: 3.59 | G51: -3.608211551 | L51: p* (mmHg) | M51: 1 | N51: 5 | O51: 10 | P51: 20 | Q51: 60 | R51: 100
A53: Solution: | K53: Use two-point linear interpolation to estimate the value of p* at T=185°C
A54: Single Parameter Slope | F54: Two parameter slope
B55: Lab 1 | C55: Lab 2 | D55: Lab 3 | F55: Lab 1 | G55: Lab 2 | H55: Lab 3 | J55: Solution:
B56: =[0]!Slope1(C42:C51,A42:A51) -> -0.006157102754 | C56: =[0]!Slope1(E42:E51,A42:A51) -> -0.006311888823 | D56: =[0]!Slope1(G42:G51,A42:A51) -> -0.006366767636 | F56: =SLOPE(C42:C51,A42:A51) -> -0.006066628086 | G56: =SLOPE(E42:E51,A42:A51) -> -0.006352102991 | H56: =SLOPE(G42:G51,A42:A51) -> -0.00626728915 | K56: T= | L56: 185 | M56: °C
K57: p*= | L57: =[0]!linterp(M50:R50,M51:R51,L56) -> 42.38095238 | M57: mmHg
A58: %Error from using 2 parameter slope function:
B59: Lab 1 | C59: Lab 2 | D59: Lab 3
B60: =(F56-B56)/B56 -> -0.01469435738 | C60: =(G56-C56)/C56 -> 0.006371178124 | D60: -0.01562464521

Sheet Chapter 3
B15: Molecular Weights
B16: MW | C16: Acetone | D16: =[0]!MW("Acetone") ->  | E16: =[0]!MW(C16) -> 
C17: Mercury | D17: =[0]!MW("Mercury") ->  | E17: =[0]!MW(C17) -> 
C18: Water | D18: =[0]!MW("water") ->  | E18: =[0]!MW(C18) -> 
F21: H | G21: 2
F22: O | G22: 1
E23: MW of H2O | F23: =[0]!MWCalc(F21:F22,G21:G22) ->  | G23: =F23 -> 
F24: hydrogen | G24: 2
F25: oxygen | G25: 1
E26: MW of H2O | F26: =[0]!MWCalc(F24:F25,G24:G25) -> 
B30: Specific Gravity | E30: SG | F30: Density
A31: rref | F31: lbm/ft3 | G31: g/cm3 | H31: kg/m3
A32: 62.4 | B32: lbm/ft3 | C32: Acetone | E32: =[0]!SG(C32) ->  | F32: =E32*$A$32 ->  | G32: =E32*$A$33 ->  | H32: =E32*$A$34 -> 
A33: 1 | B33: g/cm3 | C33: Mercury | E33: =[0]!SG(C33) ->  | F33: =E33*$A$32 ->  | G33: =E33*$A$33 -> 
A34: 1000 | B34: kg/m3 | C34: methyl amine | E34: =[0]!SG(C34) -> 
A35: 1 | B35: kg/L
A36: 1 | B36: ton/m3
A37: 1 | B37: g/mL

Sheet Chapter 4

Sheet Chapter 5
M5: Function | N5: Trial of Function
M6: MW | N6: Acetone= | O6: =[0]!MW("Acetone") ->  | P6: Mercury= | Q6: =[0]!MW("Mercury") -> 
M7: SG | N7: Acetone= | O7: =[0]!SG("Acetone") ->  | P7: Mercury= | Q7: =[0]!SG("Mercury") -> 
M8: Tm | N8: Acetone= | O8: =[0]!Tm("Acetone") ->  | P8: Mercury= | Q8: =[0]!Tm("Mercury") -> 
M9: Hm | N9: Acetone= | O9: =[0]!Hm("acetone") ->  | P9: Carbon (Graphite)= | Q9: =[0]!Hm("carbon") -> 
M10: Tb | N10: Acetone= | O10: =[0]!tb("acetone") ->  | P10: Mercury= | Q10: =[0]!tb("mercury") -> 
M11: Decomp | N11: Acetone= | O11: =[0]!Decomp("acetone") ->  | P11: Ammonium Nitrate= | Q11: =[0]!Decomp("Ammonium nitrate") -> 
M12: Sublim | N12: Acetone= | O12: =[0]!Sublim("acetone") ->  | P12: Carbon dioxide= | Q12: =[0]!Sublim("carbon dioxide") -> 
M13: Ignite | N13: Acetone= | O13: =[0]!Ignite("acetone") ->  | P13: Phosphorus (red)= | Q13: =[0]!Ignite("Phosphorus (red)") -> 
M14: Hv | N14: Acetone= | O14: =[0]!Hv("acetone") ->  | P14: Methane= | Q14: =[0]!Hv("methane") -> 
M15: Tcrit | N15: Acetone= | O15: =[0]!Tcrit("acetone") ->  | P15: Methane= | Q15: =[0]!Tcrit("methane") -> 
M16: Pcrit | N16: Acetone= | O16: =[0]!Pcrit("acetone") ->  | P16: Methane= | Q16: =[0]!Pcrit("methane") -> 

Sheet Chapter 6
U2: Example 6.3-3
K3: Example 6.4-3 part 1 | P3: Example 6.4-3 part 2
K4: Xbenzene= | L4: 0.4 | P4: Ybenzene= | Q4: 0.1 | V4: T(°C) = | W4: 75
K5: Xtoluene= | L5: 0.6 | P5: Ytoluene= | Q5: 0.1 | V5: hr(air)= | W5: 0.3
K6: Temperature= | L6: 368.2959689 | M6: K or | N6: =L6-273.15 -> 95.14596889 | O6: °C | P6: Temperature= | Q6: 325.6075143 | R6: K or | S6: =Q6-273.15 -> 52.45751425 | T6: °C | V6: P(mmHg)= | W6: 825
K7: P*benzene= | L7: =[0]!AntoineP("Benzene",L6,"K") ->  | M7: mmHg | P7: P*benzene= | Q7: =[0]!AntoineP("Benzene",Q6,"K") ->  | U7: (1) Determine the molar flow rates of water, dry air, and oxygen entering the process unit
K8: P*toluene= | L8: =[0]!AntoineP("Toluene",L6,"K") ->  | M8: mmHg | P8: P*toluene= | Q8: =[0]!AntoineP("Toluene",Q6,"K") -> 
U9: p*H2O(mmHg)= | V9: =[0]!VPWater(75) ->  | W9: =Antoine("water",W4) -> 
K10: f(Tbp)= | L10: =L4*L7+L5*L8-760 ->  | P10: f(Tdp)= | Q10: =(Q4*Q12/Q7)+(Q5*Q12/Q8)-1 -> 
U11: pH2O(mmHg)= | V11: =V9*W5 -> 
K12: Pbenzene= | L12: =L4*L7 ->  | M12: mmHg | P12: P= | Q12: 760
K13: Ptoluene= | L13: =L5*L8 ->  | M13: mmHg | U13: yH20= | V13: =V11/W6 ->  | W13: mol H20/mol
P14: Xbenzene= | Q14: =Q4*Q12/Q7 ->  | R14: mol Benzene/mol | U14: n= | V14: =1000*1.1/(348*0.0831) -> 38.03753959 | W14: kmol/h
K15: P= | L15: =L12+L13 ->  | M15: mmHg | P15: Xtoluene= | Q15: =Q4*Q12/Q8 ->  | R15: mol Toluene/ mol | U15: nH2O= | V15: =V14*V13 ->  | W15: kmol H2O/h
U16: nBDA= | V16: =V14*(1-V13) ->  | W16: kmol BDA/h
K17: Ybenzene= | L17: =L12/L15 ->  | M17: mol Benzene/ mol | U17: nO2= | V17: =V16*0.21 ->  | W17: kmol O2/h
K18: Ytoluene= | L18: =1-L17 ->  | M18: mol Toluene/ mol
K19: Example 6.4-3 part 3 | P19: Inverse function | U19: (2) Determine the molar humidity, ablsolute humidity, and percentage humidity of the air
K20: Ybenzene= | L20: 0.15
K21: Ytoluene= | L21: 0.1 | U21: hm= | V21: =V11/(W6-V11) ->  | W21: mol H2O/mol BDA
K22: Temperature= | L22: 80 | M22: °C | U22: ha= | V22: =(V21*18)/29 ->  | W22: kg H2O/kg BDA
K23: P*benzene= | L23: =[0]!AntoineP("Benzene",L22,"C") ->  | M23: mmHg | P23: =[0]!AntoineT("benzene",L23) ->  | U23: h*m= | V23: =V9/(W6-V9) ->  | W23: kmol H2O/kmol BDA
K24: P*toluene= | L24: =[0]!AntoineP("Toluene",L22,"C") ->  | M24: mmHg | P24: =[0]!AntoineT("toluene",L24) ->  | U24: hp= | V24: =100*V21/V23 ->  | W24: %
K26: P= | L26: =1/((L20/L23)+(L21/L24)) ->  | M26: mmHg
U27: Example:
K28: Xbenzene= | L28: =L20*L26/L23 ->  | M28: mol Benzene/ mol | U28: 1) Find the vapor pressure of water at -13.897°C.
K29: Xtoluene= | L29: =1-L28 ->  | M29: mol Toluene/ mol | W29: p*H2O(mmHg)= | X29: =[0]!VPWater(-13.987,"c") -> 
U31: 2) Find the vapor pressure of water at 46.82°C.
A32: Problem 6.32 | W32: p*H2O(mmHg)= | X32: =[0]!VPWater(46.82) -> 
B34: A gas stream containing 40.0mole% hydrogen, 35.0% carbon monoxide, 20.0% carbon dioxide, and 5.0% methans is cooled from 1000°C to 10°C | U34: 3) Find the vapor pressure of ice at -0.84°C.
B35: at a constant absolute pressure of 35.0 atm. Gas enters the cooler at 120 m3/min and upon leaving the cooler is fed to an absorber, where it | W35: p*H2O(mmHg)= | X35: =[0]!VPWater(-0.84) -> 
B36: is contacted with refigerated liquid methanol. The methanol is fed to the absorber at a molar flow rate 1.2 times that of the inlet gas and absorbs
B37: essentially all of the CO2, 98% of the methane, and none of the other components of the feed gas. The gas leaving the absorber, which is saturated | U37: 4)Find the vapor pressure of water 51 °C.
B38: with methanol at -12°C, is fed to a cross-country pipeline. | W38: p*H2O(mmHg)= | X38: =[0]!VPWater(51) -> 
B40: Calculated the volumetric flow rate fo the gas stream entering the absorber (m3/min) and the molar flow rate of methanol in the gas leaving the absorber. | U40: 5) What is the boiling point of water at 800 mm Hg?
B41: Do not assume ideal gas behavior when doing PVT calculations. | U41: Using goal seek,
W42: p*H2O(mmHg)= | X42: =[0]!VPWater(X43) -> 
W43: Tb(oC)= | X43: 101.4418301
A62: Solution:
A63: Using VBA functions:
A64: Compound | B64: Tc(K) | C64: Pc(atm) | D64: (Tc)corr | E64: (Pc)corr | G64: Corrected values:
A65: H2 | B65: =[0]!Tcrit("hydrogen") ->  | C65: =[0]!Pcrit("hydrogen") ->  | D65: =B65+8 ->  | E65: =C65+8 ->  | H65: eqn(5.4-4) | I65: (Tc)corr = Tc + 8K
A66: CO | B66: =[0]!Tcrit("carbon monoxide") ->  | C66: =[0]!Pcrit("carbon monoxide") ->  | D66: - | E66: - | H66: eqn(5.4-5) | I66: (Pc)corr = Pc + 8atm
A67: CO2 | B67: =[0]!Tcrit("carbon dioxide") ->  | C67: =[0]!Pcrit("carbon dioxide") ->  | D67: - | E67: -
A68: CH4 | B68: =[0]!Tcrit("methane") ->  | C68: =[0]!Pcrit("methane") ->  | D68: - | E68: -
A71: Pseudocritical Values:
B72: eqn (5.4-9) | C72: Tc' = Sum(yiTci) | H72: R= | I72: =82.057*10^-3/1000 -> 8.2057e-05 | J72: (m3 atm)/(mol K)
C73: Tc' = | D73: =0.4*D65+0.35*B66+0.2*B67+0.05*B68 ->  | E73: K
B74: eqn (5.4-10) | C74: Pc' = Sum(yiPci)
C75: Pc' = | D75: =0.4*E65+0.35*C66+0.2*C67+0.05*C68 ->  | E75: atm
A77: Cooler inlet: | B77: T= | C77: 1000 | D77: C
C78: =+C77+273.15 -> 1273.15 | D78: K | G78: eqn (5.4-11) | H78: Tr = | I78: =C78/D73 -> 
B79: P= | C79: 35 | D79: atm | G79: eqn (5.4-12) | H79: Pr = | I79: =C79/D75 -> 
B80: V= | C80: 120 | D80: m3/min | G80: Fig(5.4-1) | H80: zin = | I80: =1.02 -> 1.02
B81: eqn (5.4-13) | C81: Vin = | D81: =(I80*I72*C78)/C79 -> 0.003044579627 | E81: m3/mol
C82: nF = | D82: =C80/D81 -> 39414.30828 | E82: mol/min
A84: Cooler outlet: | B84: T= | C84: 10 | D84: C
C85: =+C84+273.15 -> 283.15 | D85: K | G85: eqn (5.4-11) | H85: Tr = | I85: =C85/D73 ->  | J85: K
B86: P= | C86: 35 | D86: atm | G86: eqn (5.4-12) | H86: Pr = | I86: =C86/D75 ->  | J86: atm
G87: Fig (5.4-3) | H87: zout = | I87: 0.98
B88: eqn (5.4-13) | C88: Vout = | D88: =(I87*I72*C85)/(C86) -> 0.0006505643074 | E88: m3/mol
C89: VF = | D89: =D82*D88 -> 25.64154217 | E89: m3/min
A91: Raoult's law for methanol:
B92: eqn (6.3-1) | C92: y=p*/P
C93: p* = | D93: =[0]!AntoineP("methanol",-12,"c") ->  | E93: mmHg
C94: y1 = | D94: =(D93)/(C86*760) ->  | E94: molCH3OH/mol
A96: y1=nmethanol/(ntotal)=nmethanol/(nmethanol+nF*(yH2+0.02*yCH4+yCO)
B97: Solve for f(nmethanol)=0
B98: User solver or goalseek to vary nmethanol until f(nmethanol)=0
B99: f(nmethanol)= | D99: =D94-D100/(D100+D82*(0.4+0.02*0.05+0.35)) -> 
B100: nmethanol= | D100: 14.7188409 | E100: mol/min methanol in gas

Sheet Chapter 7
J1: te
M2: Example 8.3-4 (page 373)
S3: Problem 8.18
N4: n (mol/h)= | O4: 150
N5: nC2H6 = | O5: 0.6 | U5: T1 = | V5: 45 | W5: °C
N6: nC3H8 = | O6: 0.4 | U6: T2 = | V6: 20 | W6: °C
N7: T1(°C)= | O7: 0
N8: T2(°C)= | O8: 400 | U8: xa = | V8: 0.3 | W8: g acetone/g
U9: xm = | V9: 0.7 | W9: g 2-methyl-1-pentanol/g
N10: ∆ĤC2H6 = | O10: =[0]!Enthalpy("ethane",O7,O8,"c","g") -> 
N11: ∆ĤC3H8 = | O11: =[0]!Enthalpy("propane",O7,O8,"C","g") -> 
T12: Ĥa for acetone using table B.2
N13: ∆Ĥmix (kJ/mol)= | O13: =O5*O10+O6*O11 ->  | U13: Ĥa = | V13: =(0.123*(20-45)+18.6*10^-5*0.5*(20-45)^2)/[0]!MW("acetone") ->  | W13: KJ/g
V14: =V13*1000 ->  | W14: J/g
N15: Q (kJ/h) = | O15: =O13*O4 -> 
M19: Problem 8.18
T20: Ĥm for 2-methyl-1-pentanol using Kopps rule
N21: nC3H6O= | O21: 0.3
N22: nC6H14O= | O22: 0.7 | U22: C | V22: 6
N23: T1(°C)= | O23: 45 | U23: H | V23: 14
N24: T2(°C)= | O24: 20 | Q24: For C6H14O Cp estimate | U24: O | V24: 1
N25: Estimated Cp, C6H14O(J/mol C)= | O25: =[0]!Kopps(Q25:Q27,R25:R27,"l") ->  | Q25: C | R25: 6
N26: Cp, C6H14O(J/g C)= | O26: =+O25/102.17 ->  | Q26: H | R26: 14 | U26: Cpm= | V26: =[0]!Kopps(U22:U24,V22:V24,"L")/1000 ->  | W26: J/(mole °C)
Q27: O | R27: 1 | U27: Cpm= | V27: =V26/102 ->  | W27: J/(g °C)
N28: Enthalpy changes
N29: ∆ĤC3H6O(kJ/mol)= | O29: =[0]!Enthalpy("acetone",O23,O24,"C","l") ->  | U29: Ĥm = | V29: =V27*(V6-V5) ->  | W29: J/g
N30: ∆ĤC3H6O(kJ/g)= | O30: =O29/[0]!MW("acetone") -> 
N31: ∆ĤC6H14O(kJ/g)= | O31: =O26*(O24-O23)/1000 -> 
N33: ∆H (kJ/g) = | O33: =O21*O30+O22*O31 ->  | T33: ΔH = | U33: =0.7*V29+0.3*V14 ->  | V33: J/g

Sheet Chapter 8
N3: r | O3: HsHCl | P3: HsNaOH | Q3: HmH2SO4
N4: inf | O4: =[0]!HsHCl(N4) ->  | P4: =[0]!HsNaOH(N4) ->  | Q4: =[0]!HmH2SO4(N4) -> 
N5: 0.5
N6: 1
N7: 2
N8: 25
N9: 30
N10: 500000
N11: 1000000
M14: Problem 8.82
N15: Use Table B.11 to determine the specific enthalpy (kJ/mol HCl) of hydrochloric acid containing
N16: 1mol HCl/5mol H2O at 25°C relative to:
N17: (a) HCl(g) and H2O (l) at 25°C
N18: (b) H2O(l) and an infinately dilute HCl solution at 25°C.
M20: Solution (a):
N21: r = moles of solvent/ moles of solute
N22: r =5 mol H2O/mol HCl
N23: r = | O23: 5
N25: ΔĤs = | O25: =[0]!HsHCl(O23) ->  | P25: kJ/mol HCl
M27: eqn (8.5.1) | N27: Ĥ = | O27: =1*O25 ->  | P27: kJ/mol HCl
M29: Solution (b):
N30: r = | O30: 5
N31: r = | O31: inf
A32: Problem 8.22 | N32: ΔĤs (r=5) = | O32: =[0]!HsHCl(O30) ->  | P32: kJ/mol HCl
B33: A natural gas containing 95 mole% methane and the balance ethane is burned with 25% excess air. The stack | N33: ΔĤs (r=inf) = | O33: =[0]!HsHCl(O31) ->  | P33: kJ/mol HCl
B34: gas leaves the furnace at 900°C and 1 atm and contains no unburned hydrocarbons or carbon monoxide. The
B35: gas is cooled to 450°C in a waste heat boiler (a heat exchanger in which heat lost by cooling gases is used to | N35: Ĥ= | O35: =O32-O33 ->  | P35: kJ/mol HCl
B36: produce steam from liquid water for heating, power generation, or process applications) prior to being discharged
B37: into the atmosphere.
Q44: SI version
S45: Enthalpies relative to 25 °C 1atm, kJ/mol
R46: T(°C) | S46: Air | T46: Oxygen | U46: Nitrogen | V46: Hydrogen | W46: CO | X46: CO2 | Y46: water
R47: -25 | S47: =hgassi("air",R47) ->  | T47: =hgassi("o2",R47) ->  | U47: =hgassi("nitrogen",R47) ->  | V47: =hgassi("h2",R47) ->  | W47: =hgassi("Co",R47) ->  | X47: =hgassi("CO2",R47) ->  | Y47: =hgassi("water",R47) -> 
R48: 0
R49: 25
B50: Calculate the amount of heat (kJ) that must be transferred from the gas in the boiler to accomplish the indicated cooling. | R50: 500
R51: 1400
A52: Solution: | R52: 1500
R53: 1450
A54: References: O2, N2, CO2, H2O (v) at 25°C and 1 atm | R54: 1600
B55: nin (mol) | C55: Ĥin(kJ/mol) | D55: nout (mol) | E55: Ĥout(kJ/mol)
A56: O2 | B56: 51.9 | C56: =hgassi("oxygen",900) ->  | D56: 51.9 | E56: =hgassi("oxygen",450) -> 
A57: N2 | B57: 976 | C57: =hgassi("nitrogen",900) ->  | D57: 976 | E57: =hgassi("nitrogen",450) ->  | Q57: AES Verison | S57: Enthalpies relative to 77 °F 1atm, BTU/lb-mol
A58: CO2 | B58: 105 | C58: =hgassi("carbon dioxide",900) ->  | D58: 105 | E58: =hgassi("carbon dioxide",450) ->  | R58: T(°F) | S58: Air | T58: Oxygen | U58: Nitrogen | V58: Hydrogen | W58: CO | X58: CO2 | Y58: water
A59: H2O(v) | B59: 205 | C59: =hgassi("water",900) ->  | D59: 205 | E59: =hgassi("water",450) ->  | R59: 0 | S59: =hgasAES("air",R59,"C") ->  | T59: =hgasAES("o2",R59) ->  | U59: =hgasAES("nitrogen",R59) ->  | V59: =hgasAES("h2",R59) ->  | W59: =hgasAES("Co",R59) ->  | X59: =hgasAES("CO2",R59) ->  | Y59: =hgasAES("water",R59) -> 
R60: 32
R61: 77
A62: Energy Balance: Q = ΔH = sum(niĤi)out - sum(niĤi)in | R62: 500
R63: 1400
B64: Q= | C64: =B56*(E56-C56)+B57*(E57-C57)+B58*(E58-C58)+B59*(E59-C59) ->  | D64: kJ | R64: 2000
R65: 1950
R66: 2100

Sheet Chapter 9
J3: Problem 9.55
K5: Methane at 25°C is burned in a boiler furnace with 10.0% excess air preheated to 100°C. Ninety percent of the methane fed is consumed, the product
K6: gass contains 10.0 mol CO2/mol CO, and the combustion products leave the furnace at 400°C.
K8: Calculate the heat transferred from the furnace, Q(kW), for a basis of 1000 mol CH4 fed/s.( The great the value of Q, the more steam is produced in the
K9: boiler)
L12: CH4 + 2O2 → CO2 + 2H2O | P12: CH4 + 3/2O2 → CO + 2H2O
J29: Solution:
K30: Oxygen Feed Rate:
L31: n0 = 1000 molCH4/s * 2 molO2 required/ mol CH4 * 1.1 molO2 fed/mol O2 required
L32: n0 = | M32: =1000*2*1.1 -> 2200 | N32: mol O2/s
K34: 90% methane consumption:
A35: DeltaHfg | B35: Acetone= | C35: =[0]!DeltaHfg("acetone") ->  | D35: Methane= | E35: =[0]!DeltaHfg("methane") ->  | L35: n1=(1000 molCH4/fed)(0.1 mol CH4 unconsumed/mol CH4 fed)
A36: DeltaHfl | B36: Acetone= | C36: =[0]!DeltaHfl("acetone") ->  | D36: Sulfuric acid= | E36: =[0]!DeltaHfl("sulfuric acid") ->  | L36: n1 = | M36: =1000*0.1 -> 100 | N36: mol CH3 unconsumed
A37: DeltaHfaq | B37: Acetone= | C37: =[0]!DeltaHfaq("acetone") ->  | D37: Sulfuric acid= | E37: =[0]!DeltaHfaq("sulfuric acid") -> 
A38: DeltaHfc | B38: Acetone= | C38: =[0]!DeltaHfc("acetone") ->  | D38: sodium hydroxide= | E38: =[0]!DeltaHfc("sodium hydroxide") ->  | K38: C balance:
A39: DeltaHcg | B39: Acetone= | C39: =[0]!DeltaHcg("acetone") ->  | D39: m-Xylene= | E39: =[0]!DeltaHcg("m-xylene") ->  | L39: 1000 molCH4/s(1molCO/1molCH4) = 1n1 + 1n3 + 10n3
A40: DeltaHcl | B40: Acetone= | C40: =[0]!DeltaHcl("acetone") ->  | D40: m-Xylene= | E40: =[0]!DeltaHcl("m-xylene") ->  | L40: 1000 molC = 1n1 + 11n3
A41: DeltaHcc | B41: Acetone= | C41: =[0]!DeltaHcc("acetone") ->  | D41: Carbon (Graphite)= | E41: =[0]!DeltaHcc("carbon (graphite)") -> 
A42: DeltaHcs | B42: Acetone= | C42: =[0]!DeltaHcs("acetone") ->  | D42: Phenol= | E42: =[0]!DeltaHcs("phenol") ->  | K42: H balance:
L43: 1000molCH4/s (4molH/1molCH4) = 4n1 + 2n4
A44: Example 9.4-1 (p. 449):
A45: Calculate the standard heat of reaction for the dehydrogentaion of ethane: | K45: O balance:
B46: C6H6→C2H4 + H2 | L46: 2n0 = 2n2 + 1n3 + 2(10)n3 + 1n4
L47: 2n0 = 2n2 + 21n3 + 1n4
A48: Solution:
A49: Using VBA functions: | B49: (ΔĤc°)C2H6= | C49: =[0]!DeltaHcg("ethane") ->  | D49: kJ/mol | J49: References: C(s), H2(g),O2(g),N2(g) @ 25°C, 1 atm
B50: (ΔĤc°)C2H4= | C50: =[0]!DeltaHcg("ethylene") ->  | D50: kJ/mol | K50: nin(mol/s) | L50: Ĥin(kJ/mol) | M50: nout(mol/s) | N50: Ĥout(kJ/mol)
B51: (ΔĤc°)H2= | C51: =[0]!DeltaHcg("hydrogen") ->  | D51: kJ/mol | J51: CH4(g) | K51: 1000 | L51: ĤA | M51: n1 | N51: ĤD
J52: O2(g) | K52: n0 | L52: ĤB | M52: n2 | N52: ĤE
A53: eqn (9.4-1): | B53: ΔĤr°=(ΔĤc°)C2H6 -(ΔĤc°)C2H4 -(ΔĤc°)H2 | J53: N2(g) | K53: 3.76n0 | L53: ĤC | M53: 3.76n0 | N53: ĤF
J54: CO(g) | K54: - | L54: - | M54: n3 | N54: ĤG
B55: ΔĤr°= | C55: =C49-C50-C51 ->  | D55: kJ/mol | J55: CO2(g) | K55: - | L55: - | M55: 10n3 | N55: ĤH
J56: H2O(v) | K56: - | L56: - | M56: n4 | N56: ĤI
K59: UsingAdd-In Functions:
L60: ĤA= | M60: =[0]!DeltaHfg("methane") -> 
L61: ĤB= | M61: =[0]!Enthalpy("oxygen",25,100,"c","g") -> 
L62: ĤC= | M62: =[0]!Enthalpy("nitrogen",25,100,"c","g") -> 
L63: ĤD= | M63: =[0]!DeltaHfg("methane")+[0]!Enthalpy("methane",25,400,"c","g") -> 
L64: ĤE= | M64: =[0]!Enthalpy("oxygen",25,400,"c","g") -> 
L65: ĤF= | M65: =[0]!Enthalpy("nitrogen",25,400,"c","g") -> 
L66: ĤG= | M66: =[0]!DeltaHfg("carbon monoxide")+[0]!Enthalpy("carbon monoxide",25,400,"c","g") -> 
L67: ĤH= | M67: =[0]!DeltaHfg("carbon dioxide")+[0]!Enthalpy("carbon dioxide",25,400,"c","g") -> 
L68: ĤI= | M68: =[0]!DeltaHfg("water")+[0]!Enthalpy("water",25,400,"c","g") -> 
K70: Energy balance:
L71: Q = Sum(niĤi)out - Sum(niĤi)out
L72: Q = n1ĤD + n2ĤE + 3.76n0ĤF + n3ĤG + 10n3ĤH + n4ĤI - 1000ĤA - n0ĤB - 3.76n0Ĥc
J74: Solve using matrix methods:
J76: Atomic Balances: | L76: 1000 - n1 = 0n2 + 11n3 + 0n4
L77: 4000 - 4n1 = 0n2 + 0n3 + 2n4
L78: 2n0 - 0n1 = 2n2 + 21n3 + 1n4
K80: 0 | L80: 11 | M80: 0 | O80: =1000-M36 -> 900 | Q80: n2 = | R80: =MMULT(MINVERSE(K80:M82),O80:O82) -> 440.9090909
K81: 0 | L81: 0 | M81: 2 | O81: =4000-4*M36 -> 3600 | Q81: n3 = | R81: 81.81818182
K82: 2 | L82: 21 | M82: 1 | O82: =2*M32 -> 4400 | Q82: n4 = | R82: 1800
M84: n0 = | N84: =M32 -> 2200
M85: n1 = | N85: =M36 -> 100
M86: n2 = | N86: =R80 -> 440.9090909
M87: n3 = | N87: =R81 -> 81.81818182
M88: n4 = | N88: =R82 -> 1800
J89: Answer:
K90: Q = | L90: =N85*M63+N86*M64+3.76*N84*M65+N87*M66+10*N87*M67+N88*M68-1000*M60-N84*M61-3.76*N84*M62 ->  | M90: kW
K91: Q = | L91: =L90 ->  | M91: kW

Sheet Chapter 10

Sheet Chapter 11

Sheet B6 (hidden)
A1: Properties of Saturated Steam: Pressure Table
C2: V (m^3/kg) | D2: V (m^3/kg) | E2: U (kJ/kg) | F2: U (kJ/kg) | G2: H (kJ/kg) | H2: H (kJ/kg) | I2: H (kJ/kg)
A3: P(bar) | B3: T(°C) | C3: Water | D3: Steam | E3: Water | F3: Steam | G3: Water | H3: Evaporation | I3: Steam
A4: 0.00611 | B4: 0.01 | C4: 0.001 | D4: 206.2 | E4: zero | F4: 2375.6 | G4: 0 | H4: 2501.6 | I4: 2501.6
A5: 0.008 | B5: 3.8 | C5: 0.001 | D5: 159.7 | E5: 15.8 | F5: 2380.7 | G5: 15.8 | H5: 2492.6 | I5: 2508.5
A6: 0.01 | B6: 7 | C6: 0.001 | D6: 129.2 | E6: 29.3 | F6: 2385.2 | G6: 29.3 | H6: 2485 | I6: 2514.4
A7: 0.012 | B7: 9.7 | C7: 0.001 | D7: 108.7 | E7: 40.6 | F7: 2388.9 | G7: 40.6 | H7: 2478.7 | I7: 2519.3
A8: 0.014 | B8: 12 | C8: 0.001 | D8: 93.9 | E8: 50.3 | F8: 2392 | G8: 50.3 | H8: 2473.2 | I8: 2523.5
A9: 0.016 | B9: 14 | C9: 0.001001 | D9: 82.8 | E9: 58.9 | F9: 2394.8 | G9: 58.9 | H9: 2468.4 | I9: 2527.3
A10: 0.018 | B10: 15.9 | C10: 0.001001 | D10: 74 | E10: 66.5 | F10: 2397.4 | G10: 66.5 | H10: 2464.1 | I10: 2530.6
A11: 0.02 | B11: 17.5 | C11: 0.001001 | D11: 67 | E11: 73.5 | F11: 2399.6 | G11: 73.5 | H11: 2460.2 | I11: 2533.6
A12: 0.022 | B12: 19 | C12: 0.001002 | D12: 61.2 | E12: 79.8 | F12: 2401.7 | G12: 79.8 | H12: 2456.6 | I12: 2536.4
A13: 0.024 | B13: 20.4 | C13: 0.001002 | D13: 56.4 | E13: 85.7 | F13: 2403.6 | G13: 85.7 | H13: 2453.3 | I13: 2539
A14: 0.026 | B14: 21.7 | C14: 0.001002 | D14: 52.3 | E14: 91.1 | F14: 2405.4 | G14: 91.1 | H14: 2450.2 | I14: 2541.3
A15: 0.028 | B15: 23 | C15: 0.001002 | D15: 48.7 | E15: 96.2 | F15: 2407.1 | G15: 96.2 | H15: 2447.3 | I15: 2543.6
A16: 0.03 | B16: 24.1 | C16: 0.001003 | D16: 45.7 | E16: 101 | F16: 2408.6 | G16: 101 | H16: 2444.6 | I16: 2545.6
A17: 0.035 | B17: 26.7 | C17: 0.001003 | D17: 39.5 | E17: 111.8 | F17: 2412.2 | G17: 111.8 | H17: 2438.5 | I17: 2550.4
A18: 0.04 | B18: 29 | C18: 0.001004 | D18: 34.8 | E18: 121.4 | F18: 2415.3 | G18: 121.4 | H18: 2433.1 | I18: 2554.5
A19: 0.045 | B19: 31 | C19: 0.001005 | D19: 31.1 | E19: 130 | F19: 2418.1 | G19: 130 | H19: 2428.2 | I19: 2558.2
A20: 0.05 | B20: 32.9 | C20: 0.001005 | D20: 28.2 | E20: 137.8 | F20: 2420.6 | G20: 137.8 | H20: 2423.8 | I20: 2561.6
A21: 0.06 | B21: 36.2 | C21: 0.001006 | D21: 23.74 | E21: 151.5 | F21: 2425.1 | G21: 151.5 | H21: 2416 | I21: 2567.5
A22: 0.07 | B22: 39 | C22: 0.001007 | D22: 20.53 | E22: 163.4 | F22: 2428.9 | G22: 163.4 | H22: 2409.2 | I22: 2572.6
A23: 0.08 | B23: 41.5 | C23: 0.001008 | D23: 18.1 | E23: 173.9 | F23: 2432.3 | G23: 173.9 | H23: 2403.2 | I23: 2577.1
A24: 0.09 | B24: 43.8 | C24: 0.001009 | D24: 16.2 | E24: 183.3 | F24: 2435.3 | G24: 183.3 | H24: 2397.9 | I24: 2581.1
A25: 0.1 | B25: 45.8 | C25: 0.00101 | D25: 14.67 | E25: 191.8 | F25: 2438 | G25: 191.8 | H25: 2392.9 | I25: 2584.8
A26: 0.11 | B26: 47.7 | C26: 0.001011 | D26: 13.42 | E26: 199.7 | F26: 2440.5 | G26: 199.7 | H26: 2388.4 | I26: 2588.1
A27: 0.12 | B27: 49.4 | C27: 0.001012 | D27: 12.36 | E27: 206.9 | F27: 2442.8 | G27: 206.9 | H27: 2384.3 | I27: 2591.2
A28: 0.13 | B28: 51.1 | C28: 0.001013 | D28: 11.47 | E28: 213.7 | F28: 2445 | G28: 213.7 | H28: 2380.4 | I28: 2594
A29: 0.14 | B29: 52.6 | C29: 0.001013 | D29: 10.69 | E29: 220 | F29: 2447 | G29: 220 | H29: 2376.7 | I29: 2596.7
A30: 0.15 | B30: 54 | C30: 0.001014 | D30: 10.02 | E30: 226 | F30: 2448.9 | G30: 226 | H30: 2373.2 | I30: 2599.2
A31: 0.16 | B31: 55.3 | C31: 0.001015 | D31: 9.43 | E31: 231.6 | F31: 2450.6 | G31: 231.6 | H31: 2370 | I31: 2601.6
A32: 0.17 | B32: 56.6 | C32: 0.001015 | D32: 8.91 | E32: 236.9 | F32: 2452.3 | G32: 236.9 | H32: 2366.9 | I32: 2603.8
A33: 0.18 | B33: 57.8 | C33: 0.001016 | D33: 8.45 | E33: 242 | F33: 2453.9 | G33: 242 | H33: 2363.9 | I33: 2605.9
A34: 0.19 | B34: 59 | C34: 0.001017 | D34: 8.03 | E34: 246.8 | F34: 2455.4 | G34: 246.8 | H34: 2361.1 | I34: 2607.9
A35: 0.2 | B35: 60.1 | C35: 0.001017 | D35: 7.65 | E35: 251.5 | F35: 2456.9 | G35: 251.5 | H35: 2358.4 | I35: 2609.9
A36: 0.22 | B36: 62.2 | C36: 0.001018 | D36: 7 | E36: 260.1 | F36: 2459.6 | G36: 260.1 | H36: 2353.3 | I36: 2613.5
A37: 0.24 | B37: 64.1 | C37: 0.001019 | D37: 6.45 | E37: 268.2 | F37: 2462.1 | G37: 268.2 | H37: 2348.6 | I37: 2616.8
A38: 0.26 | B38: 65.9 | C38: 0.00102 | D38: 5.98 | E38: 275.6 | F38: 2464.4 | G38: 275.7 | H38: 2344.2 | I38: 2619.9
A39: 0.28 | B39: 67.5 | C39: 0.001021 | D39: 5.58 | E39: 282.7 | F39: 2466.5 | G39: 282.7 | H39: 2340 | I39: 2622.7
A40: 0.3 | B40: 69.1 | C40: 0.001022 | D40: 5.23 | E40: 289.3 | F40: 2468.6 | G40: 289.3 | H40: 2336.1 | I40: 2625.4
A41: 0.35 | B41: 72.7 | C41: 0.001025 | D41: 4.53 | E41: 304.3 | F41: 2473.1 | G41: 304.3 | H41: 2327.2 | I41: 2631.5
A42: 0.4 | B42: 75.9 | C42: 0.001027 | D42: 3.99 | E42: 317.6 | F42: 2477.1 | G42: 317.7 | H42: 2319.2 | I42: 2636.9
A43: 0.45 | B43: 78.7 | C43: 0.001028 | D43: 3.58 | E43: 329.6 | F43: 2480.7 | G43: 329.6 | H43: 2312 | I43: 2641.7
A44: 0.5 | B44: 81.3 | C44: 0.00103 | D44: 3.24 | E44: 340.5 | F44: 2484 | G44: 340.6 | H44: 2305.4 | I44: 2646
A45: 0.55 | B45: 83.7 | C45: 0.001032 | D45: 2.96 | E45: 350.6 | F45: 2486.9 | G45: 350.6 | H45: 2299.3 | I45: 2649.9
A46: 0.6 | B46: 86 | C46: 0.001033 | D46: 2.73 | E46: 359.9 | F46: 2489.7 | G46: 359.9 | H46: 2293.6 | I46: 2653.6
A47: 0.65 | B47: 88 | C47: 0.001035 | D47: 2.53 | E47: 368.5 | F47: 2492.2 | G47: 368.6 | H47: 2288.3 | I47: 2656.9
A48: 0.7 | B48: 90 | C48: 0.001036 | D48: 2.36 | E48: 376.7 | F48: 2494.5 | G48: 376.8 | H48: 2283.3 | I48: 2660.1
A49: 0.75 | B49: 91.8 | C49: 0.001037 | D49: 2.22 | E49: 384.4 | F49: 2496.7 | G49: 384.5 | H49: 2278.6 | I49: 2663
A50: 0.8 | B50: 93.5 | C50: 0.001039 | D50: 2.087 | E50: 391.6 | F50: 2498.8 | G50: 391.7 | H50: 2274.1 | I50: 2665.8
A51: 0.85 | B51: 95.2 | C51: 0.00104 | D51: 1.972 | E51: 398.5 | F51: 2500.8 | G51: 398.6 | H51: 2269.8 | I51: 2668.4
A52: 0.9 | B52: 96.7 | C52: 0.001041 | D52: 1.869 | E52: 405.1 | F52: 2502.6 | G52: 405.2 | H52: 2265.6 | I52: 2670.9
A53: 0.95 | B53: 98.2 | C53: 0.001042 | D53: 1.777 | E53: 411.4 | F53: 2504.4 | G53: 411.5 | H53: 2261.7 | I53: 2673.2
A54: 1 | B54: 99.6 | C54: 0.001043 | D54: 1.694 | E54: 417.4 | F54: 2506.1 | G54: 417.5 | H54: 2257.9 | I54: 2675.4
A55: 1.01325 | B55: 100 | C55: 0.001044 | D55: 1.673 | E55: 419 | F55: 2506.5 | G55: 419.1 | H55: 2256.9 | I55: 2676
A56: 1.1 | B56: 102.3 | C56: 0.001046 | D56: 1.549 | E56: 428.7 | F56: 2509.2 | G56: 428.8 | H56: 2250.8 | I56: 2679.6
A57: 1.2 | B57: 104.8 | C57: 0.001048 | D57: 1.428 | E57: 439.2 | F57: 2512.1 | G57: 439.4 | H57: 2244.1 | I57: 2683.4
A58: 1.3 | B58: 107.1 | C58: 0.001049 | D58: 1.325 | E58: 449.1 | F58: 2514.7 | G58: 449.2 | H58: 2237.8 | I58: 2687
A59: 1.4 | B59: 109.3 | C59: 0.001051 | D59: 1.236 | E59: 458.3 | F59: 2517.2 | G59: 458.4 | H59: 2231.9 | I59: 2690.3
A60: 1.5 | B60: 111.4 | C60: 0.001053 | D60: 1.159 | E60: 467 | F60: 2519.5 | G60: 467.1 | H60: 2226.2 | I60: 2693.4
A61: 1.6 | B61: 113.3 | C61: 0.001055 | D61: 1.091 | E61: 475.2 | F61: 2521.7 | G61: 475.4 | H61: 2220.9 | I61: 2696.2
A62: 1.7 | B62: 115.2 | C62: 0.001056 | D62: 1.031 | E62: 483 | F62: 2523.7 | G62: 483.2 | H62: 2215.7 | I62: 2699
A63: 1.8 | B63: 116.9 | C63: 0.001058 | D63: 0.977 | E63: 490.5 | F63: 2525.6 | G63: 490.7 | H63: 2210.8 | I63: 2701.5
A64: 1.9 | B64: 118.6 | C64: 0.001059 | D64: 0.929 | E64: 497.6 | F64: 2527.5 | G64: 497.8 | H64: 2206.1 | I64: 2704
A65: 2 | B65: 120.2 | C65: 0.001061 | D65: 0.885 | E65: 504.5 | F65: 2529.2 | G65: 504.7 | H65: 2201.6 | I65: 2706.3
A66: 2.2 | B66: 123.3 | C66: 0.001064 | D66: 0.81 | E66: 517.4 | F66: 2532.4 | G66: 517.6 | H66: 2193 | I66: 2710.6
A67: 2.4 | B67: 126.1 | C67: 0.001066 | D67: 0.746 | E67: 529.4 | F67: 2535.4 | G67: 529.6 | H67: 2184.9 | I67: 2714.5
A68: 2.6 | B68: 128.7 | C68: 0.001069 | D68: 0.693 | E68: 540.6 | F68: 2538.1 | G68: 540.9 | H68: 2177.3 | I68: 2718.2
A69: 2.8 | B69: 131.2 | C69: 0.001071 | D69: 0.646 | E69: 551.1 | F69: 2540.6 | G69: 551.4 | H69: 2170.1 | I69: 2721.5
A70: 3 | B70: 133.5 | C70: 0.001074 | D70: 0.606 | E70: 561.1 | F70: 2543 | G70: 561.4 | H70: 2163.2 | I70: 2724.7
A71: 3.2 | B71: 135.8 | C71: 0.001076 | D71: 0.57 | E71: 570.6 | F71: 2545.2 | G71: 570.9 | H71: 2156.7 | I71: 2727.6
A72: 3.4 | B72: 137.9 | C72: 0.001078 | D72: 0.538 | E72: 579.6 | F72: 2547.2 | G72: 579.9 | H72: 2150.4 | I72: 2730.3
A73: 3.6 | B73: 139.9 | C73: 0.00108 | D73: 0.51 | E73: 588.1 | F73: 2549.2 | G73: 588.5 | H73: 2144.4 | I73: 2732.9
A74: 3.8 | B74: 141.8 | C74: 0.001082 | D74: 0.485 | E74: 596.4 | F74: 2551 | G74: 596.8 | H74: 2138.6 | I74: 2735.3
A75: 4 | B75: 143.6 | C75: 0.001084 | D75: 0.462 | E75: 604.2 | F75: 2552.7 | G75: 604.7 | H75: 2133 | I75: 2737.6
A76: 4.2 | B76: 145.4 | C76: 0.001086 | D76: 0.442 | E76: 611.8 | F76: 2554.4 | G76: 612.3 | H76: 2127.5 | I76: 2739.8
A77: 4.4 | B77: 147.1 | C77: 0.001088 | D77: 0.423 | E77: 619.1 | F77: 2555.9 | G77: 619.6 | H77: 2122.3 | I77: 2741.9
A78: 4.6 | B78: 148.7 | C78: 0.001089 | D78: 0.405 | E78: 626.2 | F78: 2557.4 | G78: 626.7 | H78: 2117.2 | I78: 2743.9
A79: 4.8 | B79: 150.3 | C79: 0.001091 | D79: 0.389 | E79: 633 | F79: 2558.8 | G79: 633.5 | H79: 2112.2 | I79: 2745.7
A80: 5 | B80: 151.8 | C80: 0.001093 | D80: 0.375 | E80: 639.6 | F80: 2560.2 | G80: 640.1 | H80: 2107.4 | I80: 2747.5
A81: 5.5 | B81: 155.5 | C81: 0.001097 | D81: 0.342 | E81: 655.2 | F81: 2563.3 | G81: 655.8 | H81: 2095.9 | I81: 2751.7
A82: 6 | B82: 158.8 | C82: 0.001101 | D82: 0.315 | E82: 669.8 | F82: 2566.2 | G82: 670.4 | H82: 2085 | I82: 2755.5
A83: 6.5 | B83: 162 | C83: 0.001105 | D83: 0.292 | E83: 683.4 | F83: 2568.7 | G83: 684.1 | H83: 2074.7 | I83: 2758.9
A84: 7 | B84: 165 | C84: 0.001108 | D84: 0.273 | E84: 696.3 | F84: 2571.1 | G84: 697.1 | H84: 2064.9 | I84: 2762
A85: 7.5 | B85: 167.8 | C85: 0.001112 | D85: 0.2554 | E85: 708.5 | F85: 2573.3 | G85: 709.3 | H85: 2055.5 | I85: 2764.8
A86: 8 | B86: 170.4 | C86: 0.001115 | D86: 0.2403 | E86: 720 | F86: 2575.5 | G86: 720.9 | H86: 2046.5 | I86: 2767.5
A87: 8.5 | B87: 172.9 | C87: 0.001118 | D87: 0.2268 | E87: 731.1 | F87: 2577.1 | G87: 732 | H87: 2037.9 | I87: 2769.9
A88: 9 | B88: 175.4 | C88: 0.001121 | D88: 0.2148 | E88: 741.6 | F88: 2578.8 | G88: 742.6 | H88: 2029.5 | I88: 2772.1
A89: 9.5 | B89: 177.7 | C89: 0.001124 | D89: 0.204 | E89: 751.8 | F89: 2580.4 | G89: 752.8 | H89: 2021.4 | I89: 2774.2
A90: 10 | B90: 179.9 | C90: 0.001127 | D90: 0.1943 | E90: 761.5 | F90: 2581.9 | G90: 762.6 | H90: 2013.6 | I90: 2776.2
A91: 10.5 | B91: 182 | C91: 0.00113 | D91: 0.1855 | E91: 770.8 | F91: 2583.3 | G91: 772 | H91: 2005.9 | I91: 2778
A92: 11 | B92: 184.1 | C92: 0.001133 | D92: 0.1774 | E92: 779.9 | F92: 2584.5 | G92: 781.1 | H92: 1998.5 | I92: 2779.7
A93: 11.5 | B93: 186 | C93: 0.001136 | D93: 0.17 | E93: 788.6 | F93: 2585.8 | G93: 789.9 | H93: 1991.3 | I93: 2781.3
A94: 12 | B94: 188 | C94: 0.001139 | D94: 0.1632 | E94: 797.1 | F94: 2586.9 | G94: 798.4 | H94: 1984.3 | I94: 2782.7
A95: 12.5 | B95: 189.8 | C95: 0.001141 | D95: 0.1569 | E95: 805.3 | F95: 2588 | G95: 806.7 | H95: 1977.4 | I95: 2784.1
A96: 13 | B96: 191.6 | C96: 0.001144 | D96: 0.1511 | E96: 813.2 | F96: 2589 | G96: 814.7 | H96: 1970.7 | I96: 2785.4
A97: 14 | B97: 195 | C97: 0.001149 | D97: 0.1407 | E97: 828.5 | F97: 2590.8 | G97: 830.1 | H97: 1957.7 | I97: 2787.8
A98: 15 | B98: 198.3 | C98: 0.001154 | D98: 0.1317 | E98: 842.9 | F98: 2592.4 | G98: 844.7 | H98: 1945.2 | I98: 2789.9
A99: 16 | B99: 201.4 | C99: 0.001159 | D99: 0.1237 | E99: 856.7 | F99: 2593.8 | G99: 858.6 | H99: 1933.2 | I99: 2791.7
A100: 17 | B100: 204.3 | C100: 0.001163 | D100: 0.1166 | E100: 869.9 | F100: 2595.1 | G100: 871.8 | H100: 1921.5 | I100: 2793.4
A101: 18 | B101: 207.1 | C101: 0.001168 | D101: 0.1103 | E101: 882.5 | F101: 2596.3 | G101: 884.6 | H101: 1910.3 | I101: 2794.8
A102: 19 | B102: 209.8 | C102: 0.001172 | D102: 0.1047 | E102: 894.6 | F102: 2597.3 | G102: 896.8 | H102: 1899.3 | I102: 2796.1
A103: 20 | B103: 212.4 | C103: 0.001177 | D103: 0.0995 | E103: 906.2 | F103: 2598.2 | G103: 908.6 | H103: 1888.6 | I103: 2797.2
A104: 21 | B104: 214.9 | C104: 0.001181 | D104: 0.0949 | E104: 917.5 | F104: 2598.9 | G104: 920 | H104: 1878.2 | I104: 2798.2
A105: 22 | B105: 217.2 | C105: 0.001185 | D105: 0.0907 | E105: 928.3 | F105: 2599.6 | G105: 931 | H105: 1868.1 | I105: 2799.1
A106: 23 | B106: 219.6 | C106: 0.001189 | D106: 0.0868 | E106: 938.9 | F106: 2600.2 | G106: 941.6 | H106: 1858.2 | I106: 2799.8
A107: 24 | B107: 221.8 | C107: 0.001193 | D107: 0.0832 | E107: 949.1 | F107: 2600.7 | G107: 951.9 | H107: 1848.5 | I107: 2800.4
A108: 25 | B108: 223.9 | C108: 0.001197 | D108: 0.0799 | E108: 959 | F108: 2601.2 | G108: 962 | H108: 1839 | I108: 2800.9
A109: 26 | B109: 226 | C109: 0.001201 | D109: 0.0769 | E109: 968.6 | F109: 2601.5 | G109: 971.7 | H109: 1829.6 | I109: 2801.4
A110: 27 | B110: 228.1 | C110: 0.001205 | D110: 0.074 | E110: 978 | F110: 2601.8 | G110: 981.2 | H110: 1820.5 | I110: 2801.7
A111: 28 | B111: 230 | C111: 0.001209 | D111: 0.0714 | E111: 987.1 | F111: 2602.1 | G111: 990.5 | H111: 1811.5 | I111: 2802
A112: 29 | B112: 232 | C112: 0.001213 | D112: 0.0689 | E112: 996 | F112: 2602.3 | G112: 999.5 | H112: 1802.6 | I112: 2802.2
A113: 30 | B113: 233.8 | C113: 0.001216 | D113: 0.0666 | E113: 1004.7 | F113: 2602.4 | G113: 1008.4 | H113: 1793.9 | I113: 2802.3
A114: 32 | B114: 237.4 | C114: 0.001224 | D114: 0.0624 | E114: 1021.5 | F114: 2602.5 | G114: 1025.4 | H114: 1776.9 | I114: 2802.3
A115: 34 | B115: 240.9 | C115: 0.001231 | D115: 0.0587 | E115: 1037.6 | F115: 2602.5 | G115: 1041.8 | H115: 1760.3 | I115: 2802.1
A116: 36 | B116: 244.2 | C116: 0.001238 | D116: 0.0554 | E116: 1053.1 | F116: 2602.2 | G116: 1057.6 | H116: 1744.2 | I116: 2801.7
A117: 38 | B117: 247.3 | C117: 0.001245 | D117: 0.0524 | E117: 1068 | F117: 2601.9 | G117: 1072.7 | H117: 1728.4 | I117: 2801.1
A118: 40 | B118: 250.3 | C118: 0.001252 | D118: 0.0497 | E118: 1082.4 | F118: 2601.3 | G118: 1087.4 | H118: 1712.9 | I118: 2800.3
A119: 42 | B119: 253.2 | C119: 0.001259 | D119: 0.0473 | E119: 1096.3 | F119: 2600.7 | G119: 1101.6 | H119: 1697.8 | I119: 2799.4
A120: 44 | B120: 256 | C120: 0.001266 | D120: 0.0451 | E120: 1109.8 | F120: 2599.9 | G120: 1115.4 | H120: 1682.9 | I120: 2798.3
A121: 46 | B121: 258.8 | C121: 0.001272 | D121: 0.043 | E121: 1122.9 | F121: 2599.1 | G121: 1128.8 | H121: 1668.3 | I121: 2797.1
A122: 48 | B122: 261.4 | C122: 0.001279 | D122: 0.0412 | E122: 1135.6 | F122: 2598.1 | G122: 1141.8 | H122: 1653.9 | I122: 2795.7
A123: 50 | B123: 263.9 | C123: 0.001286 | D123: 0.0394 | E123: 1148 | F123: 2597 | G123: 1154.5 | H123: 1639.7 | I123: 2794.2
A124: 52 | B124: 266.4 | C124: 0.001292 | D124: 0.0378 | E124: 1160.1 | F124: 2595.9 | G124: 1166.8 | H124: 1625.7 | I124: 2792.6
A125: 54 | B125: 268.8 | C125: 0.001299 | D125: 0.0363 | E125: 1171.9 | F125: 2594.6 | G125: 1178.9 | H125: 1611.9 | I125: 2790.8
A126: 56 | B126: 271.1 | C126: 0.001306 | D126: 0.0349 | E126: 1183.5 | F126: 2593.3 | G126: 1190.8 | H126: 1598.2 | I126: 2789
A127: 58 | B127: 273.3 | C127: 0.001312 | D127: 0.0337 | E127: 1194.7 | F127: 2591.9 | G127: 1202.3 | H127: 1584.7 | I127: 2787
A128: 60 | B128: 275.6 | C128: 0.001319 | D128: 0.0324 | E128: 1205.8 | F128: 2590.4 | G128: 1213.7 | H128: 1571.3 | I128: 2785
A129: 62 | B129: 277.7 | C129: 0.001325 | D129: 0.0313 | E129: 1216.6 | F129: 2588.8 | G129: 1224.8 | H129: 1558 | I129: 2782.9
A130: 64 | B130: 279.8 | C130: 0.001332 | D130: 0.0302 | E130: 1227.2 | F130: 2587.2 | G130: 1235.7 | H130: 1544.9 | I130: 2780.6
A131: 66 | B131: 281.8 | C131: 0.001338 | D131: 0.0292 | E131: 1237.6 | F131: 2585.5 | G131: 1246.5 | H131: 1531.9 | I131: 2778.3
A132: 68 | B132: 283.8 | C132: 0.001345 | D132: 0.0283 | E132: 1247.9 | F132: 2583.7 | G132: 1257 | H132: 1518.9 | I132: 2775.9
A133: 70 | B133: 285.8 | C133: 0.001351 | D133: 0.0274 | E133: 1258 | F133: 2581.8 | G133: 1267.4 | H133: 1506 | I133: 2773.5
A134: 72 | B134: 287.7 | C134: 0.001358 | D134: 0.0265 | E134: 1267.9 | F134: 2579.9 | G134: 1277.6 | H134: 1493.3 | I134: 2770.9
A135: 74 | B135: 289.6 | C135: 0.001364 | D135: 0.0257 | E135: 1277.6 | F135: 2578 | G135: 1287.7 | H135: 1480.5 | I135: 2768.3
A136: 76 | B136: 291.4 | C136: 0.001371 | D136: 0.0249 | E136: 1287.2 | F136: 2575.9 | G136: 1297.6 | H136: 1467.9 | I136: 2765.5
A137: 78 | B137: 293.2 | C137: 0.001378 | D137: 0.0242 | E137: 1296.7 | F137: 2573.8 | G137: 1307.4 | H137: 1455.3 | I137: 2762.8
A138: 80 | B138: 295 | C138: 0.001384 | D138: 0.0235 | E138: 1306 | F138: 2571.7 | G138: 1317.1 | H138: 1442.8 | I138: 2759.9
A139: 82 | B139: 296.7 | C139: 0.001391 | D139: 0.0229 | E139: 1315.2 | F139: 2569.5 | G139: 1326.6 | H139: 1430.3 | I139: 2757
A140: 84 | B140: 298.4 | C140: 0.001398 | D140: 0.0222 | E140: 1324.3 | F140: 2567.2 | G140: 1336.1 | H140: 1417.9 | I140: 2754
A141: 86 | B141: 300.1 | C141: 0.001404 | D141: 0.0216 | E141: 1333.3 | F141: 2564.9 | G141: 1345.4 | H141: 1405.5 | I141: 2750.9
A142: 88 | B142: 301.7 | C142: 0.001411 | D142: 0.021 | E142: 1342.2 | F142: 2562.6 | G142: 1354.6 | H142: 1393.2 | I142: 2747.8
A143: 90 | B143: 303.3 | C143: 0.001418 | D143: 0.0205 | E143: 1351 | F143: 2560.1 | G143: 1363.7 | H143: 1380.9 | I143: 2744.6
A144: 92 | B144: 304.9 | C144: 0.001425 | D144: 0.01996 | E144: 1359.7 | F144: 2557.7 | G144: 1372.8 | H144: 1368.6 | I144: 2741.4
A145: 94 | B145: 306.4 | C145: 0.001432 | D145: 0.01945 | E145: 1368.2 | F145: 2555.2 | G145: 1381.7 | H145: 1356.3 | I145: 2738
A146: 96 | B146: 308 | C146: 0.001439 | D146: 0.01897 | E146: 1376.7 | F146: 2552.6 | G146: 1390.6 | H146: 1344.1 | I146: 2734.7
A147: 98 | B147: 309.5 | C147: 0.001446 | D147: 0.01849 | E147: 1385.2 | F147: 2550 | G147: 1399.3 | H147: 1331.9 | I147: 2731.2
A148: 100 | B148: 311 | C148: 0.001453 | D148: 0.01804 | E148: 1393.5 | F148: 2547.3 | G148: 1408 | H148: 1319.7 | I148: 2727.7
A149: 105 | B149: 314.6 | C149: 0.00147 | D149: 0.01698 | E149: 1414.1 | F149: 2540.4 | G149: 1429.5 | H149: 1289.2 | I149: 2718.7
A150: 110 | B150: 318 | C150: 0.001489 | D150: 0.01601 | E150: 1434.2 | F150: 2533.2 | G150: 1450.6 | H150: 1258.7 | I150: 2709.3
A151: 115 | B151: 321.4 | C151: 0.001507 | D151: 0.01511 | E151: 1454 | F151: 2525.7 | G151: 1471.3 | H151: 1228.2 | I151: 2699.5
A152: 120 | B152: 324.6 | C152: 0.001527 | D152: 0.01428 | E152: 1473.4 | F152: 2517.8 | G152: 1491.8 | H152: 1197.4 | I152: 2689.2
A153: 125 | B153: 327.8 | C153: 0.001547 | D153: 0.01351 | E153: 1492.7 | F153: 2509.4 | G153: 1512 | H153: 1166.4 | I153: 2678.4
A154: 130 | B154: 330.8 | C154: 0.001567 | D154: 0.0128 | E154: 1511.6 | F154: 2500.6 | G154: 1532 | H154: 1135 | I154: 2667
A155: 135 | B155: 333.8 | C155: 0.001588 | D155: 0.01213 | E155: 1530.4 | F155: 2491.3 | G155: 1551.9 | H155: 1103.1 | I155: 2655
A156: 140 | B156: 336.6 | C156: 0.001611 | D156: 0.0115 | E156: 1549.1 | F156: 2481.4 | G156: 1571.6 | H156: 1070.7 | I156: 2642.4
A157: 145 | B157: 339.4 | C157: 0.001634 | D157: 0.0109 | E157: 1567.5 | F157: 2471 | G157: 1591.3 | H157: 1037.7 | I157: 2629.1
A158: 150 | B158: 342.1 | C158: 0.001658 | D158: 0.01034 | E158: 1586.1 | F158: 2459.9 | G158: 1611 | H158: 1004 | I158: 2615
A159: 155 | B159: 344.8 | C159: 0.001683 | D159: 0.00981 | E159: 1604.6 | F159: 2448.2 | G159: 1630.7 | H159: 969.6 | I159: 2600.3
A160: 160 | B160: 347.3 | C160: 0.00171 | D160: 0.00931 | E160: 1623.2 | F160: 2436 | G160: 1650.5 | H160: 934.3 | I160: 2584.9
A161: 165 | B161: 349.8 | C161: 0.001739 | D161: 0.00883 | E161: 1641.8 | F161: 2423.1 | G161: 1670.5 | H161: 898.3 | I161: 2568.8
A162: 170 | B162: 352.3 | C162: 0.00177 | D162: 0.00837 | E162: 1661.6 | F162: 2409.3 | G162: 1691.7 | H162: 859.9 | I162: 2551.6
A163: 175 | B163: 354.6 | C163: 0.001803 | D163: 0.00793 | E163: 1681.8 | F163: 2394.6 | G163: 1713.3 | H163: 820 | I163: 2533.3
A164: 180 | B164: 357 | C164: 0.00184 | D164: 0.0075 | E164: 1701.7 | F164: 2378.9 | G164: 1734.8 | H164: 779.1 | I164: 2513.9
A165: 185 | B165: 359.2 | C165: 0.001881 | D165: 0.00708 | E165: 1721.7 | F165: 2362.1 | G165: 1756.5 | H165: 736.6 | I165: 2493.1
A166: 190 | B166: 361.4 | C166: 0.001926 | D166: 0.00668 | E166: 1742.1 | F166: 2343.8 | G166: 1778.7 | H166: 692 | I166: 2470.6
A167: 195 | B167: 363.6 | C167: 0.001977 | D167: 0.00628 | E167: 1763.2 | F167: 2323.6 | G167: 1801.8 | H167: 644.2 | I167: 2446
A168: 200 | B168: 365.7 | C168: 0.00204 | D168: 0.00588 | E168: 1785.7 | F168: 2300.8 | G168: 1826.5 | H168: 591.9 | I168: 2418.4
A169: 205 | B169: 367.8 | C169: 0.00211 | D169: 0.00546 | E169: 1810.7 | F169: 2274.4 | G169: 1853.9 | H169: 532.5 | I169: 2386.4
A170: 210 | B170: 369.8 | C170: 0.0022 | D170: 0.00502 | E170: 1840 | F170: 2242.1 | G170: 1886.3 | H170: 461.3 | I170: 2347.6
A171: 215 | B171: 371.8 | C171: 0.00234 | D171: 0.00451 | E171: 1878.6 | F171: 2198.1 | G171: 1928.9 | H171: 366.2 | I171: 2295.2
A172: 220 | B172: 373.7 | C172: 0.00267 | D172: 0.00373 | E172: 1952 | F172: 2114 | G172: 2011 | H172: 185 | I172: 2196
A173: 221.2 | B173: 374.15 | C173: 0.00317 | D173: 0.00317 | E173: 2038 | F173: 2038 | G173: 2108 | H173: 0 | I173: 2108

Sheet B5 (hidden)
C1: V(m3/kg) | D1: V(m3/kg) | E1: U(kJ/kg) | F1: U(kJ/kg) | G1: H(kJ/kg) | H1: H(kJ/kg) | I1: H(kJ/kg)
A2: T(°C) | B2: P(bar) | C2: Water | D2: Steam | E2: Water | F2: Steam | G2: Water | H2: Evaporation | I2: Steam
A3: 0.01 | B3: 0.00611 | C3: 0.001 | D3: 206.2 | E3: zero | F3: 2375.6 | G3: 0 | H3: 2501.6 | I3: 2501.6
A4: 2 | B4: 0.00705 | C4: 0.001 | D4: 179.9 | E4: 8.4 | F4: 2378.3 | G4: 8.4 | H4: 2496.8 | I4: 2505.2
A5: 4 | B5: 0.00813 | C5: 0.001 | D5: 157.3 | E5: 16.8 | F5: 2381.1 | G5: 16.8 | H5: 2492.1 | I5: 2508.9
A6: 6 | B6: 0.00935 | C6: 0.001 | D6: 137.8 | E6: 25.2 | F6: 2383.8 | G6: 25.2 | H6: 2487.4 | I6: 2512.6
A7: 8 | B7: 0.01072 | C7: 0.001 | D7: 121 | E7: 33.6 | F7: 2386.6 | G7: 33.6 | H7: 2482.6 | I7: 2516.2
A8: 10 | B8: 0.01227 | C8: 0.001 | D8: 106.4 | E8: 42 | F8: 2389.3 | G8: 42 | H8: 2477.9 | I8: 2519.9
A9: 12 | B9: 0.01401 | C9: 0.001 | D9: 93.8 | E9: 50.4 | F9: 2392.1 | G9: 50.4 | H9: 2473.2 | I9: 2523.6
A10: 14 | B10: 0.01597 | C10: 0.001001 | D10: 82.9 | E10: 58.8 | F10: 2394.8 | G10: 58.8 | H10: 2468.5 | I10: 2527.2
A11: 16 | B11: 0.01817 | C11: 0.001001 | D11: 73.4 | E11: 67.1 | F11: 2397.6 | G11: 67.1 | H11: 2463.8 | I11: 2530.9
A12: 18 | B12: 0.02062 | C12: 0.001001 | D12: 65.1 | E12: 75.5 | F12: 2400.3 | G12: 75.5 | H12: 2459 | I12: 2534.5
A13: 20 | B13: 0.0234 | C13: 0.001002 | D13: 57.8 | E13: 83.9 | F13: 2403 | G13: 83.9 | H13: 2454.3 | I13: 2538.2
A14: 22 | B14: 0.0264 | C14: 0.001002 | D14: 51.5 | E14: 92.2 | F14: 2405.8 | G14: 92.2 | H14: 2449.6 | I14: 2541.8
A15: 24 | B15: 0.0298 | C15: 0.001003 | D15: 45.9 | E15: 100.6 | F15: 2408.5 | G15: 100.6 | H15: 2444.9 | I15: 2545.5
A16: 25 | B16: 0.0317 | C16: 0.001003 | D16: 43.4 | E16: 104.8 | F16: 2409.9 | G16: 104.8 | H16: 2442.5 | I16: 2547.3
A17: 26 | B17: 0.0336 | C17: 0.001003 | D17: 41 | E17: 108.9 | F17: 2411.2 | G17: 108.9 | H17: 2440.2 | I17: 2549.1
A18: 28 | B18: 0.0378 | C18: 0.001004 | D18: 36.7 | E18: 117.3 | F18: 2414 | G18: 117.3 | H18: 2435.4 | I18: 2552.7
A19: 30 | B19: 0.0424 | C19: 0.001004 | D19: 32.9 | E19: 125.7 | F19: 2416.7 | G19: 125.7 | H19: 2430.7 | I19: 2556.4
A20: 32 | B20: 0.0475 | C20: 0.001005 | D20: 29.6 | E20: 134 | F20: 2419.4 | G20: 134 | H20: 2425.9 | I20: 2560
A21: 34 | B21: 0.0532 | C21: 0.001006 | D21: 26.6 | E21: 142.4 | F21: 2422.1 | G21: 142.4 | H21: 2421.2 | I21: 2563.6
A22: 36 | B22: 0.0594 | C22: 0.001006 | D22: 24 | E22: 150.7 | F22: 2424.8 | G22: 150.7 | H22: 2416.4 | I22: 2567.2
A23: 38 | B23: 0.0662 | C23: 0.001007 | D23: 21.6 | E23: 159.1 | F23: 2427.5 | G23: 159.1 | H23: 2411.7 | I23: 2570.8
A24: 40 | B24: 0.0738 | C24: 0.001008 | D24: 19.55 | E24: 167.4 | F24: 2430.2 | G24: 167.5 | H24: 2406.9 | I24: 2574.4
A25: 42 | B25: 0.082 | C25: 0.001009 | D25: 17.69 | E25: 175.8 | F25: 2432.9 | G25: 175.8 | H25: 2402.1 | I25: 2577.9
A26: 44 | B26: 0.091 | C26: 0.001009 | D26: 16.04 | E26: 184.2 | F26: 2435.6 | G26: 184.2 | H26: 2397.3 | I26: 2581.5
A27: 46 | B27: 0.1009 | C27: 0.00101 | D27: 14.56 | E27: 192.5 | F27: 2438.3 | G27: 192.5 | H27: 2392.5 | I27: 2585.1
A28: 48 | B28: 0.1116 | C28: 0.001011 | D28: 13.23 | E28: 200.9 | F28: 2440.9 | G28: 200.9 | H28: 2387.7 | I28: 2588.6
A29: 50 | B29: 0.1234 | C29: 0.001012 | D29: 12.05 | E29: 209.2 | F29: 2443.6 | G29: 209.3 | H29: 2382.9 | I29: 2592.2
A30: 52 | B30: 0.1361 | C30: 0.001013 | D30: 10.98 | E30: 217.7 | F30: 2446 | G30: 217.7 | H30: 2377 | I30: 2595
A31: 54 | B31: 0.15 | C31: 0.001014 | D31: 10.02 | E31: 226 | F31: 2449 | G31: 226 | H31: 2373 | I31: 2599
A32: 56 | B32: 0.1651 | C32: 0.001015 | D32: 9.158 | E32: 234.4 | F32: 2451 | G32: 234.4 | H32: 2368 | I32: 2602
A33: 58 | B33: 0.1815 | C33: 0.001016 | D33: 8.38 | E33: 242.8 | F33: 2454 | G33: 242.8 | H33: 2363 | I33: 2606
A34: 60 | B34: 0.1992 | C34: 0.001017 | D34: 7.678 | E34: 251.1 | F34: 2456 | G34: 251.1 | H34: 2358 | I34: 2609
A35: 62 | B35: 0.2184 | C35: 0.001018 | D35: 7.043 | E35: 259.5 | F35: 2459 | G35: 259.5 | H35: 2353 | I35: 2613
A36: 64 | B36: 0.2391 | C36: 0.001019 | D36: 6.468 | E36: 267.9 | F36: 2461 | G36: 267.9 | H36: 2348 | I36: 2616
A37: 66 | B37: 0.2615 | C37: 0.00102 | D37: 5.947 | E37: 276.2 | F37: 2464 | G37: 276.2 | H37: 2343 | I37: 2619
A38: 68 | B38: 0.2856 | C38: 0.001022 | D38: 5.475 | E38: 284.6 | F38: 2467 | G38: 284.6 | H38: 2338 | I38: 2623
A39: 70 | B39: 0.3117 | C39: 0.001023 | D39: 5.045 | E39: 293 | F39: 2469 | G39: 293 | H39: 2333 | I39: 2626
A40: 72 | B40: 0.3396 | C40: 0.001024 | D40: 4.655 | E40: 301.4 | F40: 2472 | G40: 301.4 | H40: 2329 | I40: 2630
A41: 74 | B41: 0.3696 | C41: 0.001025 | D41: 4.299 | E41: 309.8 | F41: 2474 | G41: 309.8 | H41: 2323 | I41: 2633
A42: 76 | B42: 0.4019 | C42: 0.001026 | D42: 3.975 | E42: 318.2 | F42: 2476 | G42: 318.2 | H42: 2318 | I42: 2636
A43: 78 | B43: 0.4365 | C43: 0.001028 | D43: 3.679 | E43: 326.4 | F43: 2479 | G43: 326.4 | H43: 2313 | I43: 2639
A44: 80 | B44: 0.4736 | C44: 0.001029 | D44: 3.408 | E44: 334.8 | F44: 2482 | G44: 334.9 | H44: 2308 | I44: 2643
A45: 82 | B45: 0.5133 | C45: 0.00103 | D45: 3.161 | E45: 343.2 | F45: 2484 | G45: 343.3 | H45: 2303 | I45: 2646
A46: 84 | B46: 0.5558 | C46: 0.001032 | D46: 2.934 | E46: 351.6 | F46: 2487 | G46: 351.7 | H46: 2298 | I46: 2650
A47: 86 | B47: 0.6011 | C47: 0.001033 | D47: 2.727 | E47: 360 | F47: 2489 | G47: 360.1 | H47: 2293 | I47: 2653
A48: 88 | B48: 0.6495 | C48: 0.001034 | D48: 2.536 | E48: 368.4 | F48: 2491 | G48: 368.5 | H48: 2288 | I48: 2656
A49: 90 | B49: 0.7011 | C49: 0.001036 | D49: 2.361 | E49: 376.9 | F49: 2493 | G49: 377 | H49: 2282 | I49: 2659
A50: 92 | B50: 0.756 | C50: 0.001037 | D50: 2.2 | E50: 385.3 | F50: 2496 | G50: 385.4 | H50: 2277 | I50: 2662
A51: 94 | B51: 0.8145 | C51: 0.001039 | D51: 2.052 | E51: 393.7 | F51: 2499 | G51: 393.8 | H51: 2272 | I51: 2666
A52: 96 | B52: 0.8767 | C52: 0.00104 | D52: 1.915 | E52: 402.1 | F52: 2501 | G52: 402.2 | H52: 2267 | I52: 2669
A53: 98 | B53: 0.9429 | C53: 0.001042 | D53: 1.789 | E53: 410.6 | F53: 2504 | G53: 410.7 | H53: 2262 | I53: 2673
A54: 100 | B54: 1.0131 | C54: 0.001044 | D54: 1.673 | E54: 419 | F54: 2507 | G54: 419.1 | H54: 2257 | I54: 2676
A55: 102 | B55: 1.0876 | C55: 0.001045 | D55: 1.566 | E55: 427.1 | F55: 2509 | G55: 427.5 | H55: 2251 | I55: 2679

Sheet B7 (hidden)
A1: P(Tsat) | B1: SatW | C1: SatS | D1: 50 | E1: 75 | F1: 100 | G1: 150 | H1: 200 | I1: 250 | J1: 300 | K1: 350 | L1: 400 | M1: 450 | N1: 500 | O1: 550 | P1: 600 | Q1: 650 | R1: 700 | S1: 750 | T1: H
A2: 0 | B2: — | C2: — | D2: 2595 | E2: 2642 | F2: 2689 | G2: 2784 | H2: 2880 | I2: 2978 | J2: 3077 | K2: 3177 | L2: 3280 | M2: 3384 | N2: 3497 | O2: 3597 | P2: 3706 | Q2: 3816 | R2: 3929 | S2: 4043
A3: 0.1 | B3: 191.8 | C3: 2584.8 | D3: 2593 | E3: 2640 | F3: 2688 | G3: 2783 | H3: 2880 | I3: 2977 | J3: 3077 | K3: 3177 | L3: 3280 | M3: 3384 | N3: 3489 | O3: 3596 | P3: 3706 | Q3: 3816 | R3: 3929 | S3: 4043
A4: 0.5 | B4: 340.6 | C4: 2646 | F4: 2683 | G4: 2780 | H4: 2878 | I4: 2979 | J4: 3076 | K4: 3177 | L4: 3279 | M4: 3383 | N4: 3489 | O4: 3596 | P4: 3705 | Q4: 3816 | R4: 3929 | S4: 4043
A5: 1 | B5: 417.5 | C5: 2675.4 | F5: 2676 | G5: 2776 | H5: 2875 | I5: 2975 | J5: 3074 | K5: 3176 | L5: 3278 | M5: 3382 | N5: 3488 | O5: 3596 | P5: 3705 | Q5: 3816 | R5: 3928 | S5: 4042
A6: 5 | B6: 640.1 | C6: 2747.5 | H6: 2855 | I6: 2961 | J6: 3065 | K6: 3168 | L6: 3272 | M6: 3379 | N6: 3484 | O6: 3592 | P6: 3702 | Q6: 3813 | R6: 3926 | S6: 4040
A7: 10 | B7: 762.6 | C7: 2776.2 | H7: 2827 | I7: 2943 | J7: 3052 | K7: 3159 | L7: 3264 | M7: 3371 | N7: 3478 | O7: 3587 | P7: 3697 | Q7: 3809 | R7: 3923 | S7: 4038
A8: 20 | B8: 908.6 | C8: 2797.2 | I8: 2902 | J8: 3025 | K8: 3139 | L8: 3249 | M8: 3358 | N8: 3467 | O8: 3578 | P8: 3689 | Q8: 3802 | R8: 3916 | S8: 4032
A9: 40 | B9: 1087.4 | C9: 2800.3 | J9: 2962 | K9: 3095 | L9: 3216 | M9: 3331 | N9: 3445 | O9: 3559 | P9: 3673 | Q9: 3788 | R9: 3904 | S9: 4021
A10: 60 | B10: 1213.7 | C10: 2785 | J10: 2885 | K10: 3046 | L10: 3180 | M10: 3303 | N10: 3422 | O10: 3539 | P10: 3657 | Q10: 3774 | R10: 3892 | S10: 4011
A11: 80 | B11: 1317.1 | C11: 2759.9 | J11: 2787 | K11: 2990 | L11: 3142 | M11: 3274 | N11: 3399 | O11: 3520 | P11: 3640 | Q11: 3759 | R11: 3879 | S11: 4000
A12: 100 | B12: 1408 | C12: 2727.7 | K12: 2926 | L12: 3100 | M12: 3244 | N12: 3375 | O12: 3500 | P12: 3623 | Q12: 3745 | R12: 3867 | S12: 3989
A13: 150 | B13: 1611 | C13: 2615 | K13: 2695 | L13: 2975 | M13: 3160 | N13: 3311 | O13: 3448 | P13: 3580 | Q13: 3708 | R13: 3835 | S13: 3962
A14: 200 | B14: 1826.5 | C14: 2418.4 | L14: 2820 | M14: 3064 | N14: 3241 | O14: 3394 | P14: 3536 | Q14: 3671 | R14: 3804 | S14: 3935
A15: 221.2 | B15: 2108 | C15: 2108 | L15: 2733 | M15: 3020 | N15: 3210 | O15: 3370 | P15: 3516 | Q15: 3655 | R15: 3790 | S15: 3923
A16: 250 | B16: — | C16: — | D16: 230.7 | E16: 334 | F16: 437.8 | G16: 647.7 | H16: 862.8 | I16: 1087.5 | J16: 1331.1 | K16: 1625 | L16: 2582 | M16: 2954 | N16: 3166 | O16: 3337 | P16: 3490 | Q16: 3633 | R16: 3772 | S16: 3908
A17: 300 | B17: — | C17: — | D17: 235 | E17: 338.1 | F17: 441.6 | G17: 650.9 | H17: 865.2 | I17: 1088.4 | J17: 1328.7 | K17: 1609.9 | L17: 2162 | M17: 2826 | N17: 3085 | O17: 3277 | P17: 3443 | Q17: 3595 | R17: 3740 | S17: 3880
A18: 500 | B18: — | C18: — | D18: 251.9 | E18: 354.2 | F18: 456.8 | G18: 664.1 | H18: 875.4 | I18: 1093.6 | J18: 1323.7 | K18: 1576.3 | L18: 1878 | M18: 2293 | N18: 2723 | O18: 3021 | P18: 3248 | Q18: 3439 | R18: 3610 | S18: 3771
A19: 1000 | B19: — | C19: — | D19: 293.9 | E19: 394.3 | F19: 495.1 | G19: 698 | H19: 903.5 | I19: 1113 | J19: 1328.7 | K19: 1550.5 | L19: 1798 | M19: 2051 | N19: 2316 | O19: 2594 | P19: 2857 | Q19: 3105 | R19: 3324 | S19: 3526
A20: P(Tsat) | B20: SatW | C20: SatS | D20: 50 | E20: 75 | F20: 100 | G20: 150 | H20: 200 | I20: 250 | J20: 300 | K20: 350 | L20: 400 | M20: 450 | N20: 500 | O20: 550 | P20: 600 | Q20: 650 | R20: 700 | S20: 750 | T20: U
A21: 0 | B21: — | C21: — | D21: 2446 | E21: 2481 | F21: 2517 | G21: 2589 | H21: 2662 | I21: 2736 | J21: 2812 | K21: 2890 | L21: 2969 | M21: 3050 | N21: 3132 | O21: 3217 | P21: 3303 | Q21: 3390 | R21: 3480 | S21: 3591
A22: 0.1 | B22: 191.8 | C22: 2438 | D22: 2444 | E22: 2480 | F22: 2516 | G22: 2588 | H22: 2661 | I22: 2736 | J22: 2812 | K22: 2890 | L22: 2969 | M22: 3050 | N22: 3132 | O22: 3217 | P22: 3303 | Q22: 3390 | R22: 3480 | S22: 3571
A23: 0.5 | B23: 340.6 | C23: 2484 | F23: 2512 | G23: 2586 | H23: 2660 | I23: 2735 | J23: 2811 | K23: 2889 | L23: 2969 | M23: 3049 | N23: 3132 | O23: 3216 | P23: 3302 | Q23: 3390 | R23: 3480 | S23: 3571
A24: 1 | B24: 417.5 | C24: 2506.1 | F24: 2507 | G24: 2583 | H24: 2658 | I24: 2734 | J24: 2811 | K24: 2889 | L24: 2968 | M24: 3049 | N24: 3132 | O24: 3216 | P24: 3302 | Q24: 3390 | R24: 3479 | S24: 3570
A25: 5 | B25: 639.6 | C25: 2560.2 | H25: 2643 | I25: 2724 | J25: 2803 | K25: 2883 | L25: 2964 | M25: 3045 | N25: 3128 | O25: 3213 | P25: 3300 | Q25: 3388 | R25: 3477 | S25: 3569
A26: 10 | B26: 761.5 | C26: 2582 | H26: 2621 | I26: 2710 | J26: 2794 | K26: 2876 | L26: 2958 | M26: 3041 | N26: 3124 | O26: 3210 | P26: 3296 | Q26: 3385 | R26: 3475 | S26: 3567
A27: 20 | B27: 906.2 | C27: 2598.2 | I27: 2679 | J27: 2774 | K27: 2862 | L27: 2946 | M27: 3031 | N27: 3115 | O27: 3202 | P27: 3290 | Q27: 3379 | R27: 3470 | S27: 3562
A28: 40 | B28: 1082.4 | C28: 2601.3 | J28: 2727 | K28: 2829 | L28: 2922 | M28: 3011 | N28: 3100 | O28: 3188 | P28: 3278 | Q28: 3368 | R28: 3460 | S28: 3554
A29: 60 | B29: 1205.8 | C29: 2590.4 | J29: 2668 | K29: 2792 | L29: 2896 | M29: 2991 | N29: 3083 | O29: 3174 | P29: 3265 | Q29: 3357 | R29: 3451 | S29: 3545
A30: 80 | B30: 1306 | C30: 2571.7 | J30: 2593 | K30: 2750 | L30: 2867 | M30: 2969 | N30: 3065 | O30: 3159 | P30: 3252 | Q30: 3346 | R30: 3441 | S30: 3537
A31: 100 | B31: 1393.5 | C31: 2547.3 | K31: 2702 | L31: 2836 | M31: 2946 | N31: 3047 | O31: 3144 | P31: 3240 | Q31: 3335 | R31: 3431 | S31: 3528
A32: 150 | B32: 1586.1 | C32: 2459.9 | K32: 2523 | L32: 2744 | M32: 2883 | N32: 2999 | O32: 3105 | P32: 3207 | Q32: 3307 | R32: 3407 | S32: 3507
A33: 200 | B33: 1785.7 | C33: 2300.8 | L33: 2622 | M33: 2810 | N33: 2946 | O33: 3063 | P33: 3172 | Q33: 3278 | R33: 3382 | S33: 3485
A34: 221.2 | B34: 2037.8 | C34: 2037.8 | L34: 2553 | M34: 2776 | N34: 2922 | O34: 3045 | P34: 3157 | Q34: 3265 | R34: 3371 | S34: 3476
A35: 250 | B35: — | C35: — | D35: 205.7 | E35: 308.7 | F35: 412.1 | G35: 620.8 | H35: 834.4 | I35: 1057 | J35: 1297.5 | K35: 1585 | L35: 2432 | M35: 2725 | N35: 2888 | O35: 3019 | P35: 3137 | Q35: 3248 | R35: 3356 | S35: 3463
A36: 300 | B36: — | C36: — | D36: 205 | E36: 307.7 | F36: 410.8 | G36: 618.7 | H36: 831.3 | I36: 1052.1 | J36: 1288.7 | K36: 1563.3 | L36: 2077 | M36: 2623 | N36: 2825 | O36: 2972 | P36: 3100 | Q36: 3218 | R36: 3330 | S36: 3441
A37: 500 | B37: — | C37: — | D37: 202.4 | E37: 304 | F37: 405.8 | G37: 611 | H37: 819.7 | I37: 1034.3 | J37: 1259.3 | K37: 1504.1 | L37: 1791 | M37: 2169 | N37: 2529 | O37: 2765 | P37: 2946 | Q37: 3091 | R37: 3224 | S37: 3350
A38: 1000 | B38: — | C38: — | D38: 196.5 | E38: 295.7 | F38: 395.1 | G38: 594.4 | H38: 795.3 | I38: 999 | J38: 1207.1 | K38: 1419 | L38: 1653 | M38: 1888 | N38: 2127 | O38: 2369 | P38: 2591 | Q38: 2795 | R38: 2971 | S38: 3131
A39: P(Tsat) | B39: SatW | C39: SatS | D39: 50 | E39: 75 | F39: 100 | G39: 150 | H39: 200 | I39: 250 | J39: 300 | K39: 350 | L39: 400 | M39: 450 | N39: 500 | O39: 550 | P39: 600 | Q39: 650 | R39: 700 | S39: 750 | T39: V
A40: 0
A41: 0.1 | B41: 0.00101 | C41: 14.7 | D41: 14.8 | E41: 16 | F41: 17.2 | G41: 19.5 | H41: 21.8 | I41: 24.2 | J41: 26.5 | K41: 28.7 | L41: 21.1 | M41: 33.3 | N41: 35.7 | O41: 38 | P41: 40.3 | Q41: 42.6 | R41: 44.8 | S41: 47.2
A42: 0.5 | B42: 0.00103 | C42: 3.24 | F42: 3.41 | G42: 3.89 | H42: 4.35 | I42: 4.83 | J42: 5.29 | K42: 5.75 | L42: 6.21 | M42: 6.67 | N42: 7.14 | O42: 7.58 | P42: 8.06 | Q42: 8.55 | R42: 9.01 | S42: 9.43
A43: 1 | B43: 0.00104 | C43: 1.69 | F43: 1.69 | G43: 1.94 | H43: 2.17 | I43: 2.4 | J43: 2.64 | K43: 2.87 | L43: 3.11 | M43: 3.33 | N43: 3.57 | O43: 3.8 | P43: 4.03 | Q43: 4.26 | R43: 4.48 | S43: 4.72
A44: 5 | B44: 0.00109 | C44: 0.375 | H44: 0.425 | I44: 0.474 | J44: 0.522 | K44: 0.571 | L44: 0.617 | M44: 0.664 | N44: 0.711 | O44: 0.758 | P44: 0.804 | Q44: 0.85 | R44: 0.897 | S44: 0.943
A45: 10 | B45: 0.00113 | C45: 0.194 | H45: 0.206 | I45: 0.233 | J45: 0.258 | K45: 0.282 | L45: 0.307 | M45: 0.33 | N45: 0.353 | O45: 0.377 | P45: 0.402 | Q45: 0.424 | R45: 0.448 | S45: 0.472
A46: 20 | B46: 0.00118 | C46: 0.0995 | I46: 0.111 | J46: 0.125 | K46: 0.139 | L46: 0.151 | M46: 0.163 | N46: 0.175 | O46: 0.188 | P46: 0.2 | Q46: 0.211 | R46: 0.223 | S46: 0.235
A47: 40 | B47: 0.00125 | C47: 0.04975 | J47: 0.0588 | K47: 0.0665 | L47: 0.0734 | M47: 0.0799 | N47: 0.0864 | O47: 0.0926 | P47: 0.0987 | Q47: 0.105 | R47: 0.111 | S47: 0.117
A48: 60 | B48: 0.00132 | C48: 0.0325 | J48: 0.0361 | K48: 0.0422 | L48: 0.0474 | M48: 0.0521 | N48: 0.0566 | O48: 0.0609 | P48: 0.0652 | Q48: 0.0693 | R48: 0.0735 | S48: 0.0776
A49: 80 | B49: 0.00139 | C49: 0.0235 | J49: 0.0243 | K49: 0.0299 | L49: 0.0344 | M49: 0.0382 | N49: 0.0417 | O49: 0.045 | P49: 0.0483 | Q49: 0.0515 | R49: 0.0547 | S49: 0.0578
A50: 100 | B50: 0.00145 | C50: 0.0181 | K50: 0.0224 | L50: 0.0264 | M50: 0.0298 | N50: 0.0328 | O50: 0.0356 | P50: 0.0383 | Q50: 0.041 | R50: 0.0435 | S50: 0.0461
A51: 150 | B51: 0.00166 | C51: 0.0103 | K51: 0.0115 | L51: 0.0157 | M51: 0.0185 | N51: 0.0208 | O51: 0.0229 | P51: 0.0249 | Q51: 0.0267 | R51: 0.0286 | S51: 0.0304
A52: 200 | B52: 0.00204 | C52: 0.005875 | L52: 0.00995 | M52: 0.0127 | N52: 0.0148 | O52: 0.0166 | P52: 0.0182 | Q52: 0.197 | R52: 0.211 | S52: 0.0225
A53: 221.2 | B53: 0.00317 | C53: 0.00317 | L53: 0.008157 | M53: 0.011 | N53: 0.013 | O53: 0.0147 | P53: 0.0162 | Q53: 0.0176 | R53: 0.019 | S53: 0.0202
A54: 250 | B54: — | C54: — | D54: 0.001 | E54: 0.00101 | F54: 0.00103 | G54: 0.00108 | H54: 0.00113 | I54: 0.00122 | J54: 0.00135 | K54: 0.0016 | L54: 0.006013 | M54: 0.009174 | N54: 0.0111 | O54: 0.0127 | P54: 0.0141 | Q54: 0.0143 | R54: 0.0166 | S54: 0.0178
A55: 300 | B55: — | C55: — | D55: 0.000999 | E55: 0.00101 | F55: 0.00103 | G55: 0.00107 | H55: 0.00113 | I55: 0.00121 | J55: 0.00133 | K55: 0.00155 | L55: 0.00283 | M55: 0.006734 | N55: 0.00868 | O55: 0.0102 | P55: 0.0114 | Q55: 0.0126 | R55: 0.0136 | S55: 0.0147
A56: 500 | B56: — | C56: — | D56: 0.0009911 | E56: 0.001 | F56: 0.00102 | G56: 0.00106 | H56: 0.00111 | I56: 0.00119 | J56: 0.00129 | K56: 0.00144 | L56: 0.001726 | M56: 0.002491 | N56: 0.003882 | O56: 0.005112 | P56: 0.006112 | Q56: 0.007 | R56: 0.007722 | S56: 0.008418
A57: 1000 | B57: — | C57: — | D57: 0.0009737 | E57: 0.0009852 | F57: 0.001 | G57: 0.00104 | H57: 0.00108 | I57: 0.00114 | J57: 0.00122 | K57: 0.00131 | L57: 0.001446 | M57: 0.001628 | N57: 0.001893 | O57: 0.002246 | P57: 0.002668 | Q57: 0.003106 | R57: 0.003536 | S57: 0.003953

Sheet B7L (hidden)
A1: P(Tsat) | B1: SatW | C1: SatS | D1: 50 | E1: 75 | F1: 100 | G1: 150 | H1: 200 | I1: 250 | J1: 300 | K1: 350 | L1: 400 | M1: 450 | N1: 500 | O1: 550 | P1: 600 | Q1: 650 | R1: 700 | S1: 750 | T1: H
A2: 0 | B2: — | C2: —
A3: 0.1 | B3: 191.8 | C3: 2584.8
A4: 0.5 | B4: 340.6 | C4: 2646 | D4: 209.3 | E4: 313.9
A5: 1 | B5: 417.5 | C5: 2675.4 | D5: 209.3 | E5: 314
A6: 5 | B6: 640.1 | C6: 2747.5 | D6: 209.7 | E6: 314.3 | F6: 419.4 | G6: 632.2
A7: 10 | B7: 762.6 | C7: 2776.2 | D7: 210.1 | E7: 314.7 | F7: 419.7 | G7: 632.5
A8: 20 | B8: 908.6 | C8: 2797.2 | D8: 211 | E8: 315.5 | F8: 420.5 | G8: 633.1 | H8: 852.6
A9: 40 | B9: 1087.4 | C9: 2800.3 | D9: 212.7 | E9: 317.1 | F9: 422 | G9: 634.3 | H9: 853.4 | I9: 1085.8
A10: 60 | B10: 1213.7 | C10: 2785 | D10: 214.4 | E10: 318.7 | F10: 423.5 | G10: 635.6 | H10: 854.2 | I10: 1085.8
A11: 80 | B11: 1317.1 | C11: 2759.9 | D11: 216.1 | E11: 320.3 | F11: 425 | G11: 636.8 | H11: 855.1 | I11: 1085.8
A12: 100 | B12: 1408 | C12: 2727.7 | D12: 217.8 | E12: 322.9 | F12: 426.5 | G12: 638.1 | H12: 855.9 | I12: 1085.8 | J12: 1343.4
A13: 150 | B13: 1611 | C13: 2615 | D13: 222.1 | E13: 326 | F13: 430.3 | G13: 641.3 | H13: 858.1 | I13: 1086.2 | J13: 1338.2
A14: 200 | B14: 1826.5 | C14: 2418.4 | D14: 226.4 | E14: 330 | F14: 434 | G14: 644.5 | H14: 860.4 | I14: 1086.7 | J14: 1334.3 | K14: 1647.1
A15: 221.2 | B15: 2108 | C15: 2108 | D15: 228.2 | E15: 331.7 | F15: 435.7 | G15: 645.8 | H15: 861.4 | I15: 1087 | J15: 1332.8 | K15: 1635.5
A16: 250 | B16: — | C16: —
A17: 300 | B17: — | C17: —
A18: 500 | B18: — | C18: —
A19: 1000 | B19: — | C19: —
A20: P(Tsat) | B20: SatW | C20: SatS | D20: 50 | E20: 75 | F20: 100 | G20: 150 | H20: 200 | I20: 250 | J20: 300 | K20: 350 | L20: 400 | M20: 450 | N20: 500 | O20: 550 | P20: 600 | Q20: 650 | R20: 700 | S20: 750 | T20: U
A21: 0 | B21: — | C21: —
A22: 0.1 | B22: 191.8 | C22: 2438
A23: 0.5 | B23: 340.6 | C23: 2484 | D23: 209.2 | E23: 313.9
A24: 1 | B24: 417.5 | C24: 2506.1 | D24: 209.2 | E24: 313.9
A25: 5 | B25: 639.6 | C25: 2560.2 | D25: 209.2 | E25: 313.8 | F25: 418.8 | G25: 631.6
A26: 10 | B26: 761.5 | C26: 2582 | D26: 209.1 | E26: 313.7 | F26: 418.7 | G26: 631.4
A27: 20 | B27: 906.2 | C27: 2598.2 | D27: 209 | E27: 313.5 | F27: 418.4 | G27: 603.9 | H27: 850.2
A28: 40 | B28: 1082.4 | C28: 2601.3 | D28: 208.6 | E28: 313 | F28: 417.8 | G28: 630 | H28: 848.8 | I28: 1080.8
A29: 60 | B29: 1205.8 | C29: 2590.4 | D29: 208.3 | E29: 312.6 | F29: 417.3 | G29: 629.1 | H29: 847.3 | I29: 1078.3
A30: 80 | B30: 1306 | C30: 2571.7 | D30: 208.1 | E30: 312.3 | F30: 416.7 | G30: 628.2 | H30: 845.9 | I30: 1075.8
A31: 100 | B31: 1393.5 | C31: 2547.3 | D31: 207.8 | E31: 311.7 | F31: 416.1 | G31: 627.3 | H31: 844.4 | I31: 1073.4 | J31: 1329.4
A32: 150 | B32: 1586.1 | C32: 2459.9 | D32: 207 | E32: 310.7 | F32: 414.7 | G32: 625 | H32: 841 | I32: 1067.7 | J32: 1317.6
A33: 200 | B33: 1785.7 | C33: 2300.8 | D33: 206.3 | E33: 309.7 | F33: 413.2 | G33: 622.9 | H33: 837.7 | I33: 1062.2 | J33: 1307.1 | K33: 1613.7
A34: 221.2 | B34: 2037.8 | C34: 2037.8 | D34: 206 | E34: 309.2 | F34: 412.8 | G34: 622 | H34: 836.3 | I34: 1060 | J34: 1302.9 | K34: 1600.3
A35: 250 | B35: — | C35: —
A36: 300 | B36: — | C36: —
A37: 500 | B37: — | C37: —
A38: 1000 | B38: — | C38: —
A39: P(Tsat) | B39: SatW | C39: SatS | D39: 50 | E39: 75 | F39: 100 | G39: 150 | H39: 200 | I39: 250 | J39: 300 | K39: 350 | L39: 400 | M39: 450 | N39: 500 | O39: 550 | P39: 600 | Q39: 650 | R39: 700 | S39: 750 | T39: V
A40: 0
A41: 0.1 | B41: 0.00101 | C41: 14.7
A42: 0.5 | B42: 0.00103 | C42: 3.24 | D42: 0.00101 | E42: 0.00103
A43: 1 | B43: 0.00104 | C43: 1.69 | D43: 0.00101 | E43: 0.00103
A44: 5 | B44: 0.00109 | C44: 0.375 | D44: 0.00101 | E44: 0.00103 | F44: 0.00104 | G44: 0.00109
A45: 10 | B45: 0.00113 | C45: 0.194 | D45: 0.00101 | E45: 0.00103 | F45: 0.00104 | G45: 0.00109
A46: 20 | B46: 0.00118 | C46: 0.0995 | D46: 0.00101 | E46: 0.00102 | F46: 0.00104 | G46: 0.00109 | H46: 0.00116
A47: 40 | B47: 0.00125 | C47: 0.04975 | D47: 0.00101 | E47: 0.00102 | F47: 0.00104 | G47: 0.00109 | H47: 0.00115 | I47: 0.00125
A48: 60 | B48: 0.00132 | C48: 0.0325 | D48: 0.00101 | E48: 0.00103 | F48: 0.00104 | G48: 0.00109 | H48: 0.00115 | I48: 0.00125
A49: 80 | B49: 0.00139 | C49: 0.0235 | D49: 0.00101 | E49: 0.00102 | F49: 0.00104 | G49: 0.00109 | H49: 0.00115 | I49: 0.00124
A50: 100 | B50: 0.00145 | C50: 0.0181 | D50: 0.00101 | E50: 0.00102 | F50: 0.00104 | G50: 0.00109 | H50: 0.00115 | I50: 0.00124 | J50: 0.0014
A51: 150 | B51: 0.00166 | C51: 0.0103 | D51: 0.00101 | E51: 0.00102 | F51: 0.00104 | G51: 0.00108 | H51: 0.00114 | I51: 0.00123 | J51: 0.00138
A52: 200 | B52: 0.00204 | C52: 0.005875 | D52: 0.001 | E52: 0.00102 | F52: 0.00103 | G52: 0.00108 | H52: 0.00114 | I52: 0.00122 | J52: 0.00136 | K52: 0.00167
A53: 221.2 | B53: 0.00317 | C53: 0.00317 | D53: 0.001 | E53: 0.00102 | F53: 0.00103 | G53: 0.00108 | H53: 0.00114 | I53: 0.00122 | J53: 0.00135 | K53: 0.00163
A54: 250 | B54: — | C54: —
A55: 300 | B55: — | C55: —
A56: 500 | B56: — | C56: —
A57: 1000 | B57: — | C57: —

Sheet Steam Tables (hidden)
A1: ST
A3: Temperature | B3: P | D3: 102
A4: =[0]!SteamSatT(50,"t","p") ->  | D4: T
A5: =[0]!SteamSatT(51,"t","p") ->  | B5: =+(0.1361+0.1234)/2 -> 0.12975 | D5: h | J5: Input | K5: 40 | L5: P
D6: e | J6: Input2 | K6: 0.00106 | L6: V
D7: =[0]!SteamSatT(D3,D4,D5,D6) ->  | G7: =[0]!SteamSH(90,625,"P","T","H") ->  | H7: =3640+3759 -> 7399 | I7: =[0]!SteamSH(625,90,"T","P","H") ->  | J7: T | K7: =[0]!SteamSH(K5,K6,L5,L6,J7,"l") ->  | M7: =MATCH(3252, 'B7'!P21:P38, -1) -> 10
G8: =[0]!SteamSH(90,600,"P","T","H") ->  | H8: =+H7/2 -> 3699.5 | I8: =[0]!SteamSH(90,600,"P","T","H") -> 
A9: Pressure | D9: 102 | G9: =[0]!SteamSH(90,650,"P","T","H") ->  | I9: =[0]!SteamSH(90,650,"P","T","H") -> 
A10: =[0]!SteamSatP(1.1,"p","t") ->  | D10: T | G10: =AVERAGE(G8:G9) -> 
A11: =[0]!SteamSatP(51,"t","p") ->  | B11: =+(0.1361+0.1234)/2 -> 0.12975 | D11: h | L11: 3303 | M11: =MATCH(3240,L11:L28,-1) -> 11
D12: e | L12: 3303
D13: =[0]!SteamSatP(D9,D10,D11,D12) ->  | L13: 3302
L14: 3302
L15: 3300
F16: =[0]!SteamSatP(20,"P","U","V") ->  | L16: 3296
F17: =[0]!SteamSatP(2598.2,"U","P","V","U") ->  | L17: 3290
F18: =[0]!SteamSatP(2598.2,"U","H","V","U") ->  | L18: 3278
F19: =[0]!SteamSatP(2787,"H","P","V","U") ->  | L19: 3265
B20: =[0]!Enthalpy("Benzene",10,80.1) ->  | L20: 3252
B21: =[0]!AntoineP("ethanol", 10) ->  | L21: 3240
B22: =[0]!AntoineT("ethanol",B21) ->  | L22: 3207
L23: 3172
L24: 3157
L25: 3137
L26: 3100
L27: 2946
L28: 2591

Sheet Species
A1: Text Name | B1: CAS | C1: Formula | D1: Synonyms, tradenames, variations | H1: Source: en.wikipedia.org, CDC-NIOSH Pocket Guide to Chemical Hazards
A2: acetaldehyde | B2: 75-07-0 | C2: CH3CHO | D2: Acetic aldehyde | E2: Ethanal | F2: Ethyl aldehyde | G2: C2H4O
A3: acetic acid | B3: 64-19-7 | C3: CH3COOH | D3: Acetic acid (aqueous) | E3: Ethanoic acid | F3: Glacial acetic acid | G3: Methanecarboxylic acid | H3: vinegar | I3: C2H4O2
A4: acetic anhydride | B4: 108-24-7 | C4: (CH3CO)2O | D4: Acetic acid anhydride | E4: Acetic oxide | F4: Acetyl oxide | G4: Ethanoic anhydride | H4: C4H6O3
A5: acetone | B5: 67-64-1 | C5: (ch3)2co | D5: dimethyl ketone | E5: 2-propanone | F5: ketone propane
A6: acetylene | B6: 74-86-2 | C6: c2h2 | D6: ethine | E6: ethyne | F6: hcch | G6: hc≡ch
A7: acrylic acid | B7: 79-10-7 | C7: CH2CHCOOH | D7: CH2=CHCOOH | E7: Acroleic acid | F7: Aqueous acrylic acid | G7: Ethylenecarboxylic acid | H7: Glacial acrylic acid | I7: 2-Propenoic acid | J7: C3H4O2
A8: air
A9: ammonia | B9: 7664-41-7 | C9: nh3 | D9: anhydrous ammonia | E9: aqua ammonia | F9: aqueous ammonia
A10: ammonium hydroxide | B10: 1336-21-6 | C10: NH4OH | D10: ammonia water | E10: ammonical liquor | F10: ammonia liquor | G10: aqua ammonia
A11: ammonium nitrate | B11: 6484-52-2 | C11: (NH4)(NO3) | D11: NH4NO3
A12: ammonium sulfate | B12: 7783-20-2 | C12: (nh4)2so4 | D12: ammonium sulphate | E12: diazanium sulfate | F12: diammonium sulfate | G12: sulfuric acid diammonium salt | H12: mascagnite | I12: actamaster | J12: dolamin
A13: aniline | B13: 62-53-3 | C13: C6H5NH2 | D13: Aminobenzene | E13: Aniline oil | F13: Benzenamine | G13: Phenylamine | H13: C6H7N
A14: benzaldehyde | B14: 100-52-7 | C14: C7H6O | D14: Phenylmethanal | E14: Benzenecarboxaldehyde | F14: Benzoic aldehyde
A15: benzene | B15: 71-43-2 | C15: c6h6 | D15: phenyl hydride | E15: benzol
A16: benzoic acid | B16: 65-85-0 | C16: C6H5COOH | D16: Carboxybenzene | E16: Benzenecarboxylic acid | F16: Dracylic acid
A17: benzyl alcohol | B17: 100-51-6 | C17: C7H8O | D17: Phenylmethanol | E17: Phenylcarbinol
A18: 1,2-butadiene | B18: 590-19-2 | C18: C4H6 | D18: Methylallene
A19: 1,3-butadiene | B19: 106-99-0 | C19: CH2CHCHCH2 | D19: CH2=CHCH=CH2 | E19: Biethylene | F19: Bivinyl | G19: Butadiene | H19: Divinyl | I19: Erythrene | J19: Vinylethylene | K19: C4H6
A20: bromine | B20: 7726-95-6 | C20: Br2 | D20: Molecular bromine
A21: isobutane | B21: 75-28-5 | C21: c4h10 | D21: 2-methylpropane | E21: i-butane | F21: differs on b1, b4
A22: n-butane | B22: 106-97-8 | C22: c4h10 | D22: normal-butane | E22: butyl hydride | F22: ch3ch2ch2ch3 | G22: diethyl | H22: methylethylmethane
A23: 1-butanol | B23: 71-36-3 | C23: C4h9OH | D23: n-Butyl alcohol | E23: CH3CH2CH2CH2OH | F23: C4H10O | G23: n-Butanol | H23: Butyl alcohol | I23: 1-Hydroxybutane | J23: n-Propyl carbinol
A24: 2-butanol | B24: 78-92-2 | C24: CH3CH(OH)CH2CH3 | D24: sec-Butyl alcohol | E24: Butylene hydrate | F24: 2-Hydroxybutane | G24: Methyl ethyl carbinol | H24: C4H10O | I24: C4H9OH
A25: 1-butene | B25: 106-98-9 | C25: C4H8 | D25: but-1-ene | E25: ethylethylene | F25: 1-butylene | G25: α-butylene | H25: but-1-ene
A26: butyric acid | B26: 107-92-6 | C26: C4H8O2 | D26: Butanoic acid | E26: 1-Propanecarboxylic acid | F26: Propanecarboxylic acid
A27: isobutene | B27: 115-11-7 | C27: c4h8 | D27: 2-methylpropene | E27: γ-butylene | F27: 2-methylpropylene | G27: isobutylene
A28: calcium carbide | B28: 75-20-7 | C28: cac2 | D28: calcium acetylide | E28: calcium dicarbide
A29: calcium carbonate | B29: 471-34-1 | C29: caco3 | D29: 1317-65-3
A30: calcium chloride | B30: 10043-52-4 | C30: CaCl2 | D30: Calcium dichloride | E30: Calcium(II) chloride
A31: calcium hydroxide | B31: 1305-62-0 | C31: ca(oh)2 | D31: calcium hydrate | E31: caustic lime | F31: hydrated lime | G31: slaked lime
A32: calcium oxide | B32: 1305-78-8 | C32: cao | D32: burned lime | E32: burnt lime | F32: lime | G32: pebble lime | H32: quick lime | I32: unslaked lime
A33: calcium phosphate | B33: 7758-87-4 | C33: Ca3(PO4)2 | D33: tricalcium diphosphate | E33: Ca3O8P2
A34: calcium silicate | B34: 1344-95-2 | C34: CaSiO3 | D34: Calcium hydrosilicate | E34: Calcium metasilicate | F34: Calcium monosilicate
A35: calcium suflate | B35: 7778-18-9 | C35: CaSO4 | D35: gypsum | E35: Anhydrous calcium sulfate | F35: Anhydrous gypsum
A36: carbon | B36: 1333-86-4 | C36: c | D36: 1333-86-4 | E36: carbon black | F36: acetylene black | G36: channel black | H36: furnace black | I36: lamp black | J36: thermal black | K36: graphite | L36: carbon (graphite)
A37: carbon dioxide | B37: 124-38-9 | C37: co2 | D37: carbonic acid gas | E37: dry ice
A38: carbon disulfide | B38: 75-15-0 | C38: CS2 | D38: Carbon bisulfide
A39: carbon monoxide | B39: 630-08-0 | C39: co | D39: flue gas | E39: monoxide
A40: carbon tetrachloride | B40: 56-23-5 | C40: ccl4 | D40: carbon chloride | E40: carbon tet | F40: freon® 10 | G40: halon® 104 | H40: tetrachloromethane | I40: freon 10 | J40: freon10 | K40: halon10
A41: chlorine | B41: 7782-50-5 | C41: cl2 | D41: molecular chlorine
A42: chlorbenzene | B42: 108-90-7 | C42: C6H5Cl | D42: Benzene chloride | E42: Chlorobenzol | F42: MCB | G42: Monochlorobenzene | H42: Phenyl chloride
A43: chloroform | B43: 67-66-3 | C43: CHCl3 | D43: Methane trichloride | E43: Trichloromethane
A44: copper | B44: 7440-50-8 | C44: cu | D44: copper metal dusts | E44: copper metal fumes
A45: cupric sulfate | B45: 7758-98-7 | C45: CuSO4 | D45: Copper(II) sulfate | E45: Cupper(II)sulphate | F45: Blue vitriol | G45: Bluestone | H45: Chalcanthite
A46: cumene | B46: 98-82-8 | C46: c6h5ch(ch3)2 | D46: isopropyl benzene | E46: cumol | F46: 2-phenyl propane
A47: cyclohexane | B47: 110-82-7 | C47: c6h12 | D47: benzene hexahydride | E47: hexahydrobenzene | F47: hexamethylene | G47: hexanaphthene
A48: cyclohexanol | B48: 108-93-0 | C48: C6H11OH | D48: Anol | E48: Cyclohexyl alcohol
A49: cyclopentane | B49: 287-92-3 | C49: c5h10 | D49: pentamethylene | E49: Hexahydrophenol | F49: Hexalin | G49: Hydralin | H49: Hydroxycyclohexane
A50: n-decane | B50: 124-18-5 | C50: C10H22 | D50: decane
A51: 1-decene | B51: 872-05-9 | C51: C10H20 | D51: decene
A52: diethyl ether | B52: 60-29-7 | C52: C2H5OC2H5 | D52: Ethyl ether | E52: Diethyl oxide | F52: Ethyl oxide | G52: Ether | H52: Solvent ether
A53: 1,1-dichloroethane | B53: 75-34-3 | C53: CHCl2CH3 | D53: Asymmetrical dichloroethane | E53: Ethylidene chloride | F53: 1,1-Ethylidene dichloride
A54: 1,2-dichloroethane | B54: 107-06-2 | C54: ClCH2CH2Cl | D54: Ethylene dichloride | E54: Ethylene chloride | F54: Glycol dichloride
A55: dichloromethane | B55: 75-09-2 | C55: CH2Cl2 | D55: Methylene chloride | E55: Methylene dichloride
A56: diethyl ketone | B56: 96-22-0 | C56: CH3CH2COCH2CH3 | D56: DEK | E56: Dimethylacetone | F56: Ethyl ketone | G56: Metacetone | H56: 3-Pentanone | I56: Propione
A57: diethylene glycol | B57: 111-46-6 | C57: C4H10O3 | D57: (2-hydroxyethoxy)ethan-2-ol | E57: ethylene diglycol | F57: diglycol | G57: dihydroxy diethyl ether
A58: dimethyl ether | B58: 115-10-6 | C58: C2H6O | D58: DME | E58: Wood ether | F58: Methyl ether | G58: Dymel A | H58: Dimethyl oxide | I58: Demeon | J58: Methoxymethane
A59: dimethylamine | B59: 124-40-3 | C59: (CH3)2NH | D59: N-Methylmethanamine
A60: n,n-dimethylformamide | B60: 68-12-2 | C60: C3H7NO | D60: N,N-dimethylmethanamide | E60: DMF | F60: dimethylformamide | G60: DMFA
A61: 1,4-dioxane | B61: 123-91-1 | C61: C4H8O2 | D61: Diethylene dioxide | E61: Diethylene ether | F61: Dioxan | G61: p-Dioxane | H61: Dioxane
A62: ethane | B62: 74-84-0 | C62: c2h6
A63: ethyl acetate | B63: 141-78-6 | C63: CH3COOC2H5 | D63: Acetic ester | E63: Acetic ether | F63: Ethyl ethanoate
A64: ethyl alcohol | B64: 64-17-5 | C64: ch3ch2oh | D64: ethanol | E64: alcohol | F64: cologne spirit | G64: etoh | H64: grain alcohol | I64: c2h6o | J64: c2h5oh | K64: deffers in b1,b4
A65: ethyl benzene | B65: 100-41-4 | C65: CH3CH2C6H5 | D65: Ethylbenzol | E65: Phenylethane | F65: ethylbenzene | K65: differs in b1, b4
A66: ethyl bromide | B66: 74-96-4 | C66: CH3CH2Br | D66: Bromoethane | E66: Monobromoethane
A67: ethyl chloride | B67: 75-00-3 | C67: CH3CH2Cl | D67: chloroethane | E67: Hydrochloric ether | F67: Monochloroethane | G67: Muriatic ether
A68: 3-ethyl hexane | B68: 619-99-8 | C68: C8H18 | D68: 3-ethylhexane
A69: ethanolamine | B69: 141-43-5 | C69: NH2CH2CH2OH | D69: 2-Aminoethanol | E69: β-Aminoethyl alcohol | F69: Ethylolamine | G69: 2-Hydroxyethylamine | H69: Monoethanolamine
A70: ethylene | B70: 74-85-1 | C70: c2h4 | D70: ethene
A71: ethylene glycol | B71: 107-21-1 | C71: HOCH2CH2OH | D71: 1,2-Dihydroxyethane | E71: 1,2-Ethanediol | F71: Glycol | G71: Glycol alcohol | H71: Monoethylene glycol
A72: ethylene oxide | B72: 75-21-8 | C72: C2H4O | D72: Dimethylene oxide | E72: 1,2-Epoxy ethane | F72: Oxirane
A73: 1,2-ethylenediamine | B73: 107-15-3 | C73: NH2CH2CH2NH2 | D73: Ethylenediamine | E73: 1,2-Diaminoethane | F73: 1,2-Ethanediamine
A74: ferric oxide | B74: 1309-37-1 | C74: fe2o3 | D74: iron(iii) oxide
A75: ferrous oxide | B75: 1345-25-1 | C75: FeO | D75: Iron(II) oxide
A76: ferrous sulfide | B76: 1317-37-9 | C76: FeS | D76: Iron(II) sulfide | E76: Iron sulfide | F76: black iron sulfide
A77: formaldehyde | B77: 50-00-0 | C77: hcho | D77: h2co | E77: methanal | F77: methyl aldehyde | G77: methylene oxide
A78: formic acid | B78: 64-18-6 | C78: CH2O2 | D78: Methanoic acid | E78: Aminic acid | F78: Formylic acid | G78: Hydrogen carboxylic acid | H78: Hydroxymethanone | I78: Hydroxy(oxo)methane | J78: Metacarbonoic acid | K78: Oxomethanol | L78: Oxocarbinic acid
A79: glycerol | B79: 56-81-5 | C79: HOCH2CH(OH)CH2OH | D79: Glycerin | E79: Glycyl alcohol | F79: 1,2,3-Propanetriol | G79: Trihydroxypropane
A80: helium | B80: 7440-59-7 | C80: he
A81: n-heptane | B81: 142-82-5 | C81: CH3((CH2)5CH3 | D81: heptane | E81: normal-heptane
A82: i-heptane | B82: 591-76-4 | C82: C7H16 | D82: 2-Methylhexane | E82: isoheptane | F82: ethylisobutylmethane
A83: 1-heptene | B83: 592-76-7 | C83: C7H14 | D83: heptene | E83: hept-1-ene
A84: n-hexane | B84: 110-54-3 | C84: c614 | D84: ch3(ch2)4ch3 | E84: hexane | F84: hexyl hydride | G84: normal-hexane | H84: normal hexane
A85: i-hexane | B85: 107-83-5 | C85: C6H14 | D85: 2-methylpentane | E85: isohexane
A86: 1-hexene | B86: 592-41-6 | C86: C6H12 | D86: Hex-1-ene | E86: Hexene | F86: Hexylene | G86: butyl ethylene
A87: hydrogen | B87: 1333-74-0 | C87: h2
A88: hydrogen bromide | B88: 10035-10-6 | C88: hbr | D88: anhydrous hydrogen bromide | E88: aqueous hydrogen bromide | F88: hydrobromic acid
A89: hydrogen chloride | B89: 7647-01-0 | C89: hcl | D89: anhydrous hydrogen chloride | E89: aqueous hydrogen chloride | F89: hydrochloric acid | G89: muriatic acid
A90: hydrogen cyanide | B90: 74-90-8 | C90: hcn | D90: formonitrile | E90: hydrocyanic acid | F90: prussic acid
A91: hydrogen fluoride | B91: 7664-39-3 | C91: HF | D91: HF-A | E91: hydrofluoric acid
A92: hydrogen sulfide | B92: 7783-06-4 | C92: h2s | D92: hydrosulfuric acid | E92: sewer gas | F92: sulfuretted hydrogen
A93: iodine | B93: 7553-56-2 | C93: I2 | D93: 7553-56-2
A94: iron | B94: 7439-89-6 | C94: Fe | D94: ferrum
A95: lead | B95: 7439-92-1 | C95: Pb | D95: Plumbum
A96: lead oxide | B96: 1317-36-8 | C96: PbO | D96: Lead(II) oxide | E96: Lead monoxide | F96: Lead monoxide | G96: Massicot | H96: Plumbous oxide
A97: magnesium | B97: 7439-95-4 | C97: Mg
A98: magnesium chloride | B98: 7786-30-3 | C98: mgcl2 | D98: magnesium dichloride
A99: magnesium hydroxide | B99: 1309-42-8 | C99: Mg(OH)2 | D99: Milk of Magnesia
A100: magnesium oxide | B100: 1309-48-4 | C100: mgo
A101: mercury | B101: 7439-97-6 | C101: hg
A102: methane | B102: 74-82-8 | C102: ch4 | D102: methyl hydride | E102: marsh gas | F102: biogas
A103: methyl acetate | B103: 79-20-9 | C103: CH3COOCH3 | D103: Methyl ethanoate
A104: methyl alcohol | B104: 67-56-1 | C104: ch3oh | D104: carbinol | E104: columbian spirits | F104: methanol | G104: pyroligneous spirit | H104: wood alcohol | I104: wood naphtha | J104: wood spirit | K104: differs in b1, b4
A105: methyl amine | B105: 74-89-5 | C105: CH3NH2 | D105: Methylamine | E105: Aminomethane | F105: Monomethylamine | K105: differs in b1, b4
A106: methyl bromide | B106: 74-83-9 | C106: CH3Br | D106: Bromomethane | E106: Monobromomethane | F106: Halon 1001 | G106: Curafume | H106: Embafume | I106: Terabol
A107: methyl chloride | B107: 74-87-3 | C107: CH3Cl | D107: Chloromethane | E107: Monochloromethane
A108: methyl cyclohexane | B108: 108-87-2 | C108: ch3c6h11 | D108: methylcyclohexane | E108: c7h14 | K108: differs in b1, b4
A109: methyl cyclopentane | B109: 96-37-7 | C109: ch3c5h9 | D109: methylcyclopentane | E109: c6h12
A110: methyl ethyl ketone | B110: 78-93-3 | C110: CH3COCH2CH3 | D110: Ethyl methyl ketone | E110: MEK | F110: 2-Butanone | G110: Methyl acetone
A111: methyl isobutyl ketone | B111: 108-10-1 | C111: CH3COCH2CH(CH3)2 | D111: Isobutyl methyl ketone | E111: Hexone | F111: 4-Methyl 2-pentanone | G111: MIBK
A112: methyl methacrylate | B112: 80-62-6 | C112: CH2C(CH3)COOCH3 | D112: Methacrylate monomer | E112: Methyl-2-methyl-2-propenoate
A113: napthalene | B113: 91-20-3 | C113: C10H8 | D113: Naphthalin | E113: Tar camphor | F113: White tar
A114: nickel | B114: 7440-02-0 | C114: Ni
A115: nitric acid | B115: 7697-37-2 | C115: hno3 | D115: aqua fortis | E115: engravers acid | F115: hydrogen nitrate
A116: nitric oxide | B116: 10102-43-9 | C116: no | D116: mononitrogen monoxide | E116: nitrogen monoxide
A117: nitromethane | B117: 75-52-5 | C117: CH3NO2 | D117: Nitrocarbol
A118: nitrobenzene | B118: 98-95-3 | C118: C6H5NO2 | D118: Essence of mirbane | E118: Oil of mirbane | F118: Nitrobenzol
A119: nitrogen | B119: 7727-37-9 | C119: n2
A120: nitrogen dioxide | B120: 10102-44-0 | C120: no2 | D120: nitrogen peroxide
A121: nitrogen pentoxide | B121: 10102-03-1 | C121: N2O5 | D121: Nitric acid anhydride | E121: Dinitrogen pentaoxide
A122: nitrogen tetraoxide | B122: 10544-72-6 | C122: n2o4 | D122: dinitrogen tetroxide | E122: nitrogen tetroxide | F122: nitrogen peroxide
A123: nitrous oxide | B123: 10024-97-2 | C123: n2o | D123: dinitrogen monoxide | E123: hyponitrous acid anhydride | F123: laughing gas
A124: n-nonane | B124: 111-84-2 | C124: CH3(CH2)7CH3 | D124: Nonyl hydride | E124: Nonane
A125: 1-nonene | B125: 124-11-8 | C125: C9H18 | D125: alpha-Nonene | E125: nonene | F125: Non-1-ene
A126: n-octane | B126: 111-65-9 | C126: CH3(CH2)6CH3 | D126: normal-Octane | E126: normal Octane | F126: octane
A127: i-octane | B127: 540-84-1 | C127: C8H18 | D127: 2,2,4-Trimethylpentane | E127: isooctane | F127: I octane
A128: 1-octene | B128: 111-66-0 | C128: C8H16 | D128: Oct-1-ene | E128: octene | F128: octylene | G128: Octene-1 | H128: 1-n-ctene | I128: hexylethylene
A129: oxalic acid | B129: 144-62-7 | C129: HOOCCOOH • 2H2O | D129: Ethanedioic acid | E129: Oxalic acid dihydrate
A130: oxygen | B130: 7782-44-7 | C130: o2
A131: n-pentane | B131: 109-66-0 | C131: c5h12 | D131: pentane | E131: normal-pentane | F131: ch3(ch2)3ch3
A132: isopentane | B132: 78-78-4 | C132: C5H12 | D132: i-pentane | E132: 2-Methylbutane | F132: Methylbutane | K132: differs in b1, b4
A133: 1-pentanol | B133: 71-41-0 | C133: C5H12O | D133: C5H11OH | E133: Amyl alcohol | F133: pentanol | G133: Amylic alcohol | H133: Butylcarbinol | I133: Hydroxypentane | J133: n-pentanol | K133: Pentalcohol
A134: 1-pentene | B134: 109-67-1 | C134: C5H10 | D134: Propylethylene
A135: phenol | B135: 108-95-2 | C135: C6H5OH | D135: Carbolic acid | E135: Hydroxybenzene | F135: Monohydroxybenzene | G135: Phenyl alcohol | H135: Phenyl hydroxide
A136: phosphoric acid | B136: 7664-38-2 | C136: H3PO4 | D136: Orthophosphoric acid | E136: White phosphoric acid
A137: phosphorus (red) | B137: 7723-14-0 | C137: P | D137: red phosphorus | E137: phosphorus
A138: phosphorus (white) | B138: 7723-14-0 | C138: P | D138: white phosphorus
A139: phosphorus pentoxide | B139: 1314-56-3 | C139: O10P4 | D139: Phosphoric anhydride | E139: Phosphorus(V) oxide | F139: Diphosphorus pentoxide
A140: propane | B140: 74-98-6 | C140: c3h8 | D140: ch3ch2ch3 | E140: dimethyl methane | F140: n-propane | G140: propyl hydride
A141: propylene | B141: 115-07-1 | C141: c3h6 | D141: propene
A142: n-propyl alcohol | B142: 71-23-8 | C142: CH3CH2CH2OH | D142: 1-propanol | E142: n-propanol | F142: Ethyl carbinol | G142: Propyl alcohol | K142: differs in b1, b4
A143: isopropyl alcohol | B143: 67-63-0 | C143: (CH3)2CHOH | D143: 2-propanol | E143: isopropanol | F143: Dimethyl carbinol | G143: IPA | H143: sec-Propyl alcohol | I143: Rubbing alcohol | K143: differs in b1, b4
A144: n-propyl benzene | B144: 103-65-1 | C144: C9H12 | D144: N-PROPYLBENZENE | E144: 1-PHENYLPROPANE | F144: PROPYLBENZENE | G144: N-PROPYLBENZENE | H144: 1-Propylbenzene | I144: Isocumene; | J144: Phenylpropane
A145: propionic acid | B145: 79-09-4 | C145: CH3CH2COOH | D145: Carboxyethane | E145: Ethanecarboxylic acid | F145: Ethylformic acid | G145: Metacetonic acid | H145: Methyl acetic acid | I145: Propanoic acid
A146: propylene oxide | B146: 75-56-9 | C146: C3H6O | D146: 1,2-Epoxy propane | E146: Methyl ethylene oxide | F146: Methyloxirane | G146: Propene oxide | H146: 1,2-Propylene oxide
A147: pyridine | B147: 110-86-1 | C147: C5H5N | D147: Azabenzene | E147: Azine
A148: silicon dioxide | B148: 7631-86-9 | C148: SiO2 | D148: silica
A149: sodium bicarbonate | B149: 144-55-8 | C149: CHNaO3 | D149: Sodium hydrogen carbonate | E149: baking soda | F149: bicarbonate of soda | G149: nahcolite | H149: sodium hydrogencarbonate
A150: sodium bisulfate | B150: 7681-38-1 | C150: NaHSO4 | D150: Sodium hydrogen sulfate | E150: Sodium acid sulfate | F150: Bisulfate of soda
A151: sodium carbonate | B151: 497-19-8 | C151: na2co3 | D151: soda ash | E151: washing soda | F151: soda crystals
A152: sodium carbonate decahydrate | B152: 6132-02-1 | C152: na2co3·10h2o | D152: na2co310h2o
A153: sodium chloride | B153: 7647-14-5 | C153: NaCl | D153: salt | E153: table salt | F153: common salt | G153: halite | H153: rock salt | I153: saline | J153: sodium chloric
A154: sodium cyanide | B154: 143-33-9 | C154: NaCN
A155: sodium hydroxide | B155: 1310-73-2 | C155: NaOH | D155: Caustic soda | E155: Lye | F155: Soda lye | G155: Sodium hydrate
A156: sodium nitrate | B156: 7631-99-4 | C156: NaNO3 | D156: Caliche | E156: Chile saltpeter | F156: Nitrate of soda | G156: Nitratine | H156: Peru saltpeter | I156: soda niter | J156: cublic niter | K156: saltpeter
A157: sodium nitrite | B157: 7632-00-0 | C157: NaNO2
A158: sodium sulfate | B158: 7757-82-6 | C158: Na2SO4 | D158: Thenardite | E158: Glauber's salt | F158: Sal mirabilis | G158: Mirabilite
A159: sodium sulfide | B159: 1313-82-2 | C159: Na2S | D159: Disodium sulfide
A160: sodium sulfite | B160: 7757-83-7 | C160: Na2SO3 | D160: hypo clear
A161: sodium thiosulfate | B161: 7772-98-7 | C161: Na2S2O3 | D161: Sodium hyposulfite | E161: Hyposulphite of soda
A162: styrene | B162: 100-42-5 | C162: C6H5CHCH2 | D162: Ethenyl benzene | E162: Phenylethylene | F162: Styrol | G162: Vinyl benzene
A163: sulfur (rhombic) | B163: 7704-34-9 | C163: S8 | D163: rhombic sulfur | E163: sulfur rhombic | F163: orthorhombic sulfur | G163: flowers of sulfur | H163: roll sulfur | I163: milk of sulfur | J163: α-sulfur | K163: alpha sulfur
A164: sulfur (monoclinic) | B164: 7704-34-9 | C164: S8 | D164: monoclinic sulfur | E164: sulfur monoclinic | F164: prismatic sulfur | G164: β-sulfur | H164: beta sulfur | I164: b-sulfur
A165: sulfuric acid | B165: 7664-93-9 | C165: H2SO4 | D165: Battery acid | E165: Hydrogen sulfate | F165: Oil of vitriol
A166: sulfur dioxide | B166: 7446-09-5 | C166: SO2 | D166: Sulfurous acid anhydride | E166: Sulfurous oxide | F166: Sulfur oxide
A167: sulfur trioxide | B167: 7446-11-9 | C167: SO3 | D167: Sulfuric anhydride | E167: Sulfan | F167: Sulfonylideneoxidane
A168: toluene | B168: 108-88-3 | C168: C6H5CH3 | D168: C7H8 | E168: Methyl benzene | F168: Methyl benzol | G168: Phenyl methane | H168: Toluol
A169: 1,1,1-trichlorothane | B169: 71-55-6 | C169: CH3CCl3 | D169: Chlorothene | E169: Methyl chloroform
A170: 1,1,2-trichlorothane | B170: 79-00-5 | C170: CHCl2CH2Cl | D170: Ethane trichloride | E170: β-Trichloroethane | F170: Vinyl trichloride
A171: trichloroethylene | B171: 79-01-6 | C171: ClCHCCl2 | D171: Ethylene trichloride | E171: TCE | F171: Trichloroethene | G171: Trilene
A172: vinyl acetate | B172: 108-05-4 | C172: CH2CHOOCCH3 | D172: 1-Acetoxyethylene | E172: Ethenyl acetate | F172: Ethenyl ethanoate | G172: VAC | H172: Vinyl ethanoate
A173: water | B173: 7732-18-5 | C173: H2O | D173: Oxidane | E173: Hydrogen oxide | F173: Dihydrogen monoxide | G173: Hydrogen monoxide | H173: Hydrogen hydroxide
A174: m-xylene | B174: 108-38-3 | C174: C6H4(CH3)2 | D174: 1,3-Dimethylbenzene | E174: meta-Xylene | F174: m-Xylol
A175: o-xylene | B175: 95-47-6 | C175: C6H4(CH3)3 | D175: 1,2-Dimethylbenzene | E175: ortho-Xylene | F175: o-Xylol
A176: p-xylene | B176: 106-42-3 | C176: C6H4(CH3)4 | D176: 1,4-Dimethylbenzene | E176: para-Xylene | F176: p-Xylol
A177: zinc | B177: 7440-66-6 | C177: Zn | D177: spelter

Sheet B1 (hidden)
A1: Physical Properties
A3: Compound | B3: Formula | C3: Mol Wt | D3: SG | F3: Tm | G3: ΔĤ m (Tm ) | H3: Tb | I3: T(decomp) | J3: T(sublim) | K3: T(ingite) | L3: ΔĤ v (Tb) | M3: Tc | N3: Pc | O3: ΔĤf° (kJ/mol) | S3: ΔĤc° (kJ/mol)
D4: ref. Temp | E4: value | F4: °C | G4: kJ/mol | H4: °C | I4: °C | J4: °C | K4: °C | L4: kJ/mol | M4: K | N4: atm | O4: (g) | P4: (l) | Q4: (aq) | R4: ( c) | S4: (g) | T4: (l) | U4: (c ) | V4: (s)
A5: Acetaldehyde | B5: CH3CHO | C5: 44.05 | D5: 18 | E5: 0.783 | F5: -123.7 | H5: 20.2 | L5: 25.1 | M5: 461 | O5: -166.2 | S5: -1192.4
A6: Acetic acid | B6: CH3COOH | C6: 60.05 | D6: 20/4 | E6: 1.049 | F6: 16.6 | G6: 12.09 | H6: 118.2 | L6: 24.39 | M6: 594.8 | N6: 57.1 | O6: -438.15 | P6: -486.18 | S6: -919.73 | T6: -871.69
A7: Acetone | B7: C3H6O | C7: 58.08 | D7: 20/4 | E7: 0.791 | F7: -95 | G7: 5.69 | H7: 56 | L7: 30.2 | M7: 508 | N7: 47 | O7: -216.7 | P7: -248.2 | S7: -1821.4 | T7: -1785.7
A8: Acetylene | B8: C2H2 | C8: 26.04 | H8: -81.5 | L8: 17.6 | M8: 309.5 | N8: 61.6 | O8: 226.75 | S8: -1299.6
A9: Ammonia | B9: NH3 | C9: 17.03 | F9: -77.8 | G9: 5.653 | H9: -33.43 | L9: 23.351 | M9: 405.5 | N9: 111.3 | O9: -46.19 | P9: -67.2 | S9: -382.58
A10: Ammonium hydroxide | B10: NH4OH | C10: 35.03 | Q10: -366.48
A11: Ammonium nitrate | B11: NH4NO3 | C11: 80.05 | D11: 25 | E11: 1.725 | F11: 169.6 | G11: 5.4 | I11: 210 | Q11: -399.36 | R11: -365.14
A12: Ammonium sulfate | B12: N2H8SO4 | C12: 132.14 | D12: 20/4 | E12: 1.769 | F12: 513 | I12: 513 | Q12: -1173.1 | R12: -1179.3
A13: Aniline | B13: C6H7N | C13: 93.12 | D13: 20/4 | E13: 1.022 | F13: -6.3 | H13: 184.2 | M13: 699 | N13: 52.4
A14: Benzaldehyde | B14: C6H5CHO | C14: 106.12 | D14: 20/4 | E14: 1.046 | F14: -26 | H14: 179 | L14: 38.4 | O14: -40.04 | P14: -88.83 | T14: -3520
A15: Benzene | B15: C6H6 | C15: 78.11 | D15: 20/4 | E15: 0.879 | F15: 5.53 | G15: 9.837 | H15: 80.1 | L15: 30.765 | M15: 562.6 | N15: 48.6 | O15: 82.93 | P15: 48.66 | S15: -3301.5 | T15: -3267.6
A16: Benzoic acid | B16: C7H6O2 | C16: 122.12 | D16: 15 | E16: 1.266 | F16: 122.2 | H16: 249.8 | S16: -3226.7
A17: Benzyl alcohol | B17: C7H8O | C17: 108.13 | D17: 20/4 | E17: 1.045 | F17: -15.4 | H17: 205.2 | T17: -3741.8
A18: Bromine | B18: Br2 | C18: 159.83 | D18: 20/4 | E18: 3.119 | F18: -7.4 | G18: 10.8 | H18: 58.6 | L18: 31 | M18: 584 | N18: 102 | P18: 0
A19: 1,2-Butadiene | B19: C4H6 | C19: 54.09 | F19: -136.5 | H19: 10.1 | M19: 446
A20: 1,3-Butadiene | B20: C4H6 | C20: 54.09 | F20: -109.1 | H20: -4.6 | M20: 425 | N20: 42.7
A21: n-Butane | B21: C4H10 | C21: 58.12 | F21: -138.3 | G21: 4.661 | H21: -0.6 | L21: 22.305 | M21: 425.17 | N21: 37.47 | O21: -124.7 | P21: -147 | S21: -2878.5 | T21: -2855.6
A22: Isobutane | B22: C4H10 | C22: 58.12 | F22: -159.6 | G22: 4.54 | H22: -11.73 | L22: 21.292 | M22: 408.1 | N22: 36 | O22: -134.5 | P22: -158.4 | S22: -2868.8 | T22: -2849
A23: 1-Butene | B23: C4H8 | C23: 56.1 | F23: -185.3 | G23: 3.848 | H23: -6.25 | L23: 21.916 | M23: 419.6 | N23: 39.7 | O23: 1.17 | S23: -2718.6
A24: Calcium carbide | B24: CaC2 | C24: 64.1 | D24: 18 | E24: 2.22 | F24: 2300 | R24: -62.76
A25: Calcium carbonate | B25: CaCO3 | C25: 100.09 | D25: 20/4 | E25: 2.93 | I25: 825 | R25: -1206.9
A26: Calcium chloride | B26: CaCl2 | C26: 110.99 | D26: 15 | E26: 2.152 | F26: 782 | G26: 28.37 | H26: >1600 | R26: -794.96
A27: Calcium hydroxide | B27: CaO2H2 | C27: 74.1 | D27: 20/4 | E27: 2.24 | R27: -986.59
A28: Calcium oxide | B28: CaO | C28: 56.08 | D28: 20/4 | E28: 3.32 | F28: 2570 | G28: 50 | H28: 2850 | R28: -635.6
A29: Calcium phosphate | B29: Ca3P2O8 | C29: 310.19 | D29: 20/4 | E29: 3.14 | F29: 1670 | R29: -4138
A30: Calcium silicate | B30: CaSiO3 | C30: 116.17 | D30: 20/4 | E30: 2.915 | F30: 1530 | G30: 48.62 | R30: -1584
A31: Calcium sulfate | B31: CaSO4 | C31: 136.15 | D31: 20/4 | E31: 2.96 | Q31: -1450.4 | R31: -1432.7
A32: Calcium sulfate | B32: CaSO4*2H2O | C32: 172.18 | D32: 20/4 | E32: 2.32 | R32: -2021
A33: Carbon | B33: C | C33: 12.01 | D33: 20/4 | E33: 2.26 | F33: 3600 | G33: 46 | H33: 4200 | R33: 0 | U33: -393.51
A34: Carbon dioxide | B34: CO2 | C34: 44.01 | F34: -56.6 | G34: 8.33 | J34: -78 | M34: 304.2 | N34: 72.9 | O34: -393.5 | P34: -412.9
A35: Carbon disulfide | B35: CS2 | C35: 76.14 | D35: 22/20 | E35: 1.261 | F35: -112.1 | G35: 4.39 | H35: 46.25 | L35: 26.8 | M35: 552 | N35: 78 | O35: 115.3 | P35: 87.9 | S35: 1102.6 | T35: -1075.2
A36: Carbon monoxide | B36: CO | C36: 28.01 | F36: -205.1 | G36: 0.837 | H36: -191.5 | L36: 6.042 | M36: 133 | N36: 34.5 | O36: -110.52 | S36: -282.99
A37: Carbon tetrachloride | B37: CCl4 | C37: 153.84 | D37: 20/4 | E37: 1.595 | F37: -22.9 | G37: 2.51 | H37: 76.7 | L37: 30 | M37: 556.4 | N37: 45 | O37: -106.7 | P37: -139.5 | S37: -385 | T37: -352.2
A38: Chlorine | B38: Cl2 | C38: 70.91 | F38: -101 | G38: 6.406 | H38: -34.06 | L38: 20.4 | M38: 417 | N38: 76.1 | O38: 0
A39: Chlorobenzene | B39: C6H5Cl | C39: 112.56 | D39: 20/4 | E39: 1.107 | F39: -45 | H39: 132.1 | L39: 36.5 | M39: 632.4 | N39: 44.6
A40: Chloroform | B40: CHCl3 | C40: 119.39 | D40: 20/4 | E40: 1.489 | F40: -63.7 | H40: 61 | M40: 536 | N40: 54 | P40: -131.8 | T40: -373
A41: Copper | B41: Cu | C41: 63.54 | D41: 20/4 | E41: 8.92 | F41: 1083 | G41: 13.01 | H41: 2595 | L41: 304.6 | R41: 0
A42: Cupric sulfate | B42: CuSO4 | C42: 159.61 | D42: 15 | E42: 3.606 | I42: >600 | Q42: -843.1 | R42: -769.9
A43: Cyclohexane | B43: C6H12 | C43: 84.16 | D43: 20/4 | E43: 0.779 | F43: 6.7 | G43: 2.677 | H43: 80.7 | L43: 30.1 | M43: 553.7 | N43: 40.4 | O43: -123.1 | P43: -156.2 | S43: -3953 | T43: -3919.9
A44: Cyclopentane | B44: C5H10 | C44: 70.13 | D44: 20/4 | E44: 0.745 | F44: -93.4 | G44: 0.609 | H44: 49.3 | L44: 27.3 | M44: 511.8 | N44: 44.55 | O44: -77.2 | P44: -105.9 | S44: -3319.5 | T44: -3290.9
A45: n-Decane | B45: C10H22 | C45: 142.28 | D45: 20/4 | E45: 0.73 | F45: -29.9 | H45: 173.8 | M45: 619 | N45: 20.8 | P45: -249.7 | S45: -6829.7 | T45: -6778.3
A46: Diethyl ether | B46: C4H10O | C46: 74.12 | D46: 25 | E46: 0.708 | F46: -116.3 | G46: 7.3 | H46: 34.6 | L46: 26.05 | M46: 467 | N46: 35.6 | P46: -272.8 | T46: -2726.7
A47: Ethane | B47: C2H6 | C47: 30.07 | F47: -183.3 | G47: 2.859 | H47: -88.6 | L47: 14.72 | M47: 305.4 | N47: 48.2 | O47: -84.67 | S47: -1559.9
A48: Ethyl acetate | B48: C4H8O2 | C48: 88.1 | D48: 20/4 | E48: 0.901 | F48: -83.8 | H48: 77 | M48: 523.1 | N48: 37.8 | O48: -426.8 | P48: -463.2 | T48: -2246.4
A49: Ethyl alcohol | B49: C2H5OH | C49: 46.07 | D49: 20/4 | E49: 0.789 | F49: -114.6 | G49: 5.021 | H49: 78.5 | L49: 38.58 | M49: 516.3 | N49: 63 | O49: -235.31 | P49: -277.63 | S49: -1409.25 | T49: -1366.91
A50: Ethyl benzene | B50: C8H10 | C50: 106.16 | D50: 20/4 | E50: 0.867 | F50: -94.67 | G50: 9.163 | H50: 136.2 | L50: 35.98 | M50: 619.7 | N50: 37 | O50: 29.79 | P50: -12.46 | S50: -4607.1 | T50: -4564.9
A51: Ethyl bromide | B51: C2H5Br | C51: 108.98 | D51: 20/4 | E51: 1.46 | F51: -119.1 | H51: 38.2 | M51: 504 | N51: 61.5 | O51: -54.4
A52: Ethyl chloride | B52: C2H5Cl | C52: 64.52 | D52: 15 | E52: 0.903 | F52: -138.3 | G52: 4.452 | H52: 13.1 | L52: 24.7 | M52: 460.4 | N52: 52 | O52: -105
A53: 3-Ethyl hexane | B53: C8H18 | C53: 114.22 | D53: 20/4 | E53: 0.717 | H53: 118.5 | L53: 34.27 | M53: 567 | N53: 26.4 | O53: -210.9 | P53: -250.5 | S53: -5509.8 | T53: -5407.1
A54: Ethylene | B54: C2H4 | C54: 28.05 | F54: -169.2 | G54: 3.35 | H54: -103.7 | L54: 13.54 | M54: 283.1 | N54: 50.5 | O54: 52.28 | S54: -1410.99
A55: Ethylene glycol | B55: C2H6O2 | C55: 62.07 | D55: 19 | E55: 1.113 | F55: -13 | G55: 11.23 | H55: 197.2 | L55: 56.9 | O55: -387.1 | P55: -451.5 | T55: -1179.5
A56: Ferric oxide | B56: Fe2O3 | C56: 159.7 | D56: 20/4 | E56: 5.12 | I56: 1560 | R56: -822.2
A57: Ferrous oxide | B57: FeO | C57: 71.85 | D57: 20/4 | E57: 5.7 | R57: -266.5
A58: Ferrous sulfide | B58: FeS | C58: 87.92 | D58: 20/4 | E58: 4.84 | F58: 1193 | R58: -95.1
A59: Formaldehyde | B59: H2CO | C59: 30.03 | D59: -20 | E59: 0.815 | F59: -92 | H59: -19.3 | L59: 24.48 | O59: -115.9 | S59: -563.46
A60: Formic Acid | B60: CH2O2 | C60: 46.03 | D60: 20/4 | E60: 1.22 | F60: 8.3 | G60: 12.68 | H60: 100.5 | L60: 22.25 | O60: -362.6 | P60: -409.2 | T60: -262.8
A61: Glycerol | B61: C3H8O3 | C61: 92.09 | D61: 50 | E61: 1.26 | F61: 18.2 | G61: 18.3 | H61: 290 | P61: -665.9 | T61: -1661.1
A62: Helium | B62: He | C62: 4 | F62: -269.7 | G62: 0.02 | H62: -268.9 | L62: 0.084 | M62: 5.26 | N62: 2.26 | O62: 0
A63: n-Heptane | B63: C7H16 | C63: 100.2 | D63: 20/4 | E63: 0.684 | F63: -90.59 | G63: 14.03 | H63: 98.43 | L63: 31.69 | M63: 540.2 | N63: 27 | O63: -187.8 | P63: -224.4 | S63: -4853.5 | T63: -4816.9
A64: n-Hexane | B64: C6H14 | C64: 86.17 | D64: 20/4 | E64: 0.659 | F64: -95.32 | G64: 13.03 | H64: 68.74 | L64: 28.85 | M64: 507.9 | N64: 29.9 | O64: -167.2 | P64: -198.8 | S64: -4194.8 | T64: -4163.1
A65: Hydrogen | B65: H2 | C65: 2.016 | F65: -259.19 | G65: 0.12 | H65: -252.76 | L65: 0.904 | M65: 33.3 | N65: 12.8 | O65: 0 | S65: -285.84
A66: Hydrogen bromide | B66: HBr | C66: 80.92 | F66: -86 | H66: -67 | O66: -36.23
A67: Hydrogen chloride | B67: HCl | C67: 36.47 | F67: -114.2 | G67: 1.99 | H67: -85 | L67: 16.1 | M67: 324.6 | N67: 81.5 | O67: -92.31
A68: Hydrogen cyanide | B68: HCN | C68: 27.03 | F68: -14 | H68: 26 | O68: 130.54
A69: Hydrogen fluoride | B69: HF | C69: 20 | F69: -83 | H69: 20 | M69: 503.2 | O69: -268.6 | Q69: -316.9
A70: Hydrogen sulfide | B70: H2S | C70: 34.08 | F70: -85.5 | G70: 2.38 | H70: -60.3 | L70: 18.67 | M70: 373.6 | N70: 88.9 | O70: -19.96 | S70: -562.59
A71: Iodine | B71: I2 | C71: 253.8 | D71: 20/4 | E71: 4.93 | F71: 113.3 | H71: 184.2 | M71: 826 | R71: 0
A72: Iron | B72: Fe | C72: 55.85 | D72: 20/4 | E72: 7.7 | F72: 1535 | G72: 15.1 | H72: 2800 | L72: 354 | R72: 0
A73: Lead | B73: Pb | C73: 207.21 | D73: 20/20 | E73: 11.337 | F73: 327.4 | G73: 5.1 | H73: 1750 | L73: 179.9 | R73: 0
A74: Lead Oxide | B74: PbO | C74: 223.21 | D74: 20/4 | E74: 9.5 | F74: 886 | G74: 11.7 | H74: 1472 | L74: 213 | R74: -219.2
A75: Magnesium | B75: Mg | C75: 24.32 | D75: 20/4 | E75: 1.74 | F75: 650 | G75: 9.2 | H75: 1120 | L75: 131.8 | R75: 0
A76: Magnesium chloride | B76: MgCl2 | C76: 95.23 | D76: 25 | E76: 2.325 | F76: 714 | G76: 43.1 | H76: 1418 | L76: 136.8 | R76: -641.8
A77: Magnesium hydroxide | B77: MgO2H2 | C77: 58.34 | D77: 20/4 | E77: 2.4 | I77: 350
A78: Magnesium oxide | B78: MgO | C78: 40.32 | D78: 20/4 | E78: 3.65 | F78: 2900 | G78: 77.4 | H78: 3600 | R78: -601.8
A79: Mercury | B79: Hg | C79: 200.61 | D79: 20/4 | E79: 13.546 | F79: -38.87 | H79: -356.9 | R79: 0
A80: Methane | B80: CH4 | C80: 16.04 | F80: -182.5 | G80: 0.94 | H80: -161.5 | L80: 8.179 | M80: 190.7 | N80: 45.8 | O80: -74.85 | S80: -890.36
A81: Methyl acetate | B81: C3H6O2 | C81: 74.08 | D81: 20/4 | E81: 0.933 | F81: -98.9 | H81: 57.1 | M81: 506.7 | N81: 46.3 | P81: -409.4 | T81: -1595
A82: Methyl alcohol | B82: CH3OH | C82: 32.04 | D82: 20/4 | E82: 0.792 | F82: -97.9 | G82: 3.167 | H82: 64.7 | L82: 35.27 | M82: 513.2 | N82: 78.5 | O82: -201.2 | P82: -238.6 | S82: -764 | T82: -726.6
A83: Methyl amine | B83: CH5N | C83: 31.06 | D83: -11 | E83: 0.699 | F83: -92.7 | H83: -6.9 | M83: 429.9 | N83: 73.6 | O83: -28 | T83: -1071.5
A84: Methyl chloride | B84: CH3Cl | C84: 50.49 | F84: -97.9 | H84: -24 | M84: 416.1 | N84: 65.8 | O84: -81.92
A85: Methyl ethyl ketone | B85: C4H8O | C85: 72.1 | D85: 20/4 | E85: 0.805 | F85: -87.1 | H85: 78.2 | L85: 32 | T85: -2436
A86: Naphthalene | B86: C10H8 | C86: 128.16 | D86: 20/4 | E86: 1.145 | F86: 80 | H86: 217.8 | S86: -5157
A87: Nickel | B87: Ni | C87: 58.69 | D87: 20/4 | E87: 8.9 | F87: 1452 | H87: 2900 | R87: 0
A88: Nitric acid | B88: HNO3 | C88: 63.02 | D88: 20/4 | E88: 1.502 | F88: -41.6 | G88: 10.47 | H88: 86 | L88: 30.3 | P88: -173.23 | Q88: -206.57
A89: Nitrobenzene | B89: C6H5O2N | C89: 123.11 | D89: 20/4 | E89: 1.203 | F89: 5.5 | H89: 210.7 | T89: -3092.8
A90: Nitrogen | B90: N2 | C90: 28.02 | F90: -210 | G90: 0.72 | H90: -195.8 | L90: 5.577 | M90: 126.2 | N90: 33.5 | O90: 0
A91: Nitrogen dioxide | B91: NO2 | C91: 46.01 | F91: -9.3 | G91: 7.335 | H91: 21.3 | L91: 14.73 | M91: 431 | N91: 100 | O91: 33.8
A92: Nitric oxide | B92: NO | C92: 30.01 | F92: -163.6 | G92: 2.301 | H92: -151.8 | L92: 13.78 | M92: 179.2 | N92: 65 | O92: 90.37
A93: Nitrogen pentoxide | B93: N2O5 | C93: 108.02 | D93: 18 | E93: 1.63 | F93: 30 | H93: 47
A94: Nitrogen tetraoxide | B94: N2O4 | C94: 92 | D94: 20/4 | E94: 1.448 | F94: -9.5 | H94: 21.1 | M94: 431 | N94: 99 | O94: 9.3
A95: Nitrous oxide | B95: N2O | C95: 44.02 | D95: -89 | E95: 1.226 | F95: -91.1 | H95: -88.8 | M95: 309.5 | N95: 71.7 | O95: 81.5
A96: n-Nonane | B96: C9H20 | C96: 128.25 | D96: 20/4 | E96: 0.718 | F96: -53.8 | H96: 150.6 | M96: 595 | N96: 23 | P96: -229 | S96: -6171 | T96: -6124.5
A97: n-Octane | B97: C8H18 | C97: 114.22 | D97: 20/4 | E97: 0.703 | F97: -57 | H97: 125.5 | M97: 568.8 | N97: 24.5 | O97: -208.4 | P97: -249.9 | S97: -5512.2 | T97: -5470.7
A98: Oxalic acid | B98: C2H2O4 | C98: 90.04 | D98: 20/4 | E98: 1.9 | I98: 186 | R98: -826.8 | V98: -251.9
A99: Oxygen | B99: O2 | C99: 32 | F99: -218.75 | G99: 0.444 | H99: -182.97 | L99: 6.82 | M99: 154.4 | N99: 49.7 | O99: 0
A100: n-Pentane | B100: C5H12 | C100: 72.15 | D100: 18 | E100: 0.63 | F100: -129.6 | G100: 8.393 | H100: 36.07 | L100: 25.77 | M100: 469.8 | N100: 33.3 | O100: -146.4 | P100: -173 | S100: -3536.1 | T100: -3509.5
A101: Isopentane | B101: C5H12 | C101: 72.15 | D101: 19 | E101: 0.62 | F101: -160.1 | H101: 27.7 | M101: 461 | N101: 32.9 | O101: -152 | P101: -179.3 | S101: -3529.2 | T101: -3507.5
A102: 1-Pentene | B102: C5H10 | C102: 70.13 | D102: 20/4 | E102: 0.641 | F102: -165.2 | G102: 4.94 | H102: 29.97 | M102: 474 | N102: 39.9 | O102: -20.9 | S102: -3375.8
A103: Phenol | B103: C6H5OH | C103: 94.11 | D103: 25 | E103: 1.071 | F103: 42.5 | G103: 11.43 | H103: 181.4 | M103: 692.1 | N103: 60.5 | O103: -90.8 | P103: -158.1 | V103: -3063.5
A104: Phosphoric acid | B104: H3PO4 | C104: 98 | D104: 18 | E104: 1.834 | F104: 42.3 | G104: 10.54 | Q104: -1278.6 | R104: -1281.1
A105: Phosphorus (red) | B105: P4 | C105: 123.9 | D105: 20/4 | E105: 2.2 | F105: 590 | G105: 81.17 | K105: 725 | R105: -17.6
A106: Phosphorus (white) | B106: P4 | C106: 123.9 | D106: 20/4 | E106: 1.82 | F106: 44.2 | G106: 2.51 | H106: 280 | L106: 49.71 | R106: 0
A107: Phosphorus pentoxide | B107: P2O5 | C107: 141.95 | D107: 20/4 | E107: 2.387 | J107: 250 | R107: -1506.2
A108: Propane | B108: C3H8 | C108: 44.09 | F108: -187.69 | G108: 3.52 | H108: -42.07 | L108: 18.77 | M108: 369.9 | N108: 42 | O108: -103.8 | P108: -119.8 | S108: -2220 | T108: -2204
A109: Propylene | B109: C3H6 | C109: 42.08 | F109: -185.2 | G109: 3 | H109: -47.7 | L109: 18.42 | M109: 365.1 | N109: 45.4 | O109: 20.41 | S109: -2058.4
A110: n-Propyl alcohol | B110: C3H7OH | C110: 60.09 | D110: 20/4 | E110: 0.804 | F110: -127 | H110: 97.04 | M110: 536.7 | N110: 49.95 | O110: -255.2 | P110: -300.7 | S110: -2068.6 | T110: -2010.4
A111: Isopropyl alcohol | B111: C3H7OH | C111: 60.09 | D111: 20/4 | E111: 0.785 | F111: -89.7 | H111: 82.24 | M111: 508.8 | N111: 53 | P111: -310.9 | T111: -1986.6
A112: n-Propyl benzene | B112: C9H12 | C112: 120.19 | D112: 20/4 | E112: 0.862 | F112: -99.5 | G112: 8.54 | H112: 159.2 | L112: 38.24 | M112: 638.7 | N112: 31.3 | O112: 7.82 | P112: -38.4 | S112: -5264.48 | T112: -5218.2
A113: Silicon dioxide | B113: SiO2 | C113: 60.09 | D113: 20/4 | E113: 2.25 | F113: 1710 | G113: 14.2 | H113: 2230 | R113: -851
A114: Sodium bicarbonate | B114: NaHCO3 | C114: 84.01 | D114: 20/4 | E114: 2.2 | I114: 270 | R114: -945.6
A115: Sodium bisulfate | B115: NaHSO4 | C115: 120.07 | D115: 20/4 | E115: 2.742 | R115: -1126.3
A116: Sodium carbonate | B116: Na2CO3 | C116: 105.99 | D116: 20/4 | E116: 2.533 | I116: 854 | R116: -1130.9
A117: Sodium chloride | B117: NaCl | C117: 58.45 | D117: 20/4 | E117: 2.163 | F117: 808 | G117: 28.5 | H117: 1465 | L117: 170.7 | R117: -411
A118: Sodium cyanide | B118: NaCN | C118: 49.01 | F118: 562 | G118: 16.7 | H118: 1497 | L118: 155 | R118: -89.79
A119: Sodium hydroxide | B119: NaOH | C119: 40 | D119: 20/4 | E119: 2.13 | F119: 319 | G119: 8.34 | H119: 1390 | Q119: -469.4 | R119: -426.6
A120: Sodium nitrate | B120: NaNO3 | C120: 85 | D120: 20/4 | E120: 2.257 | F120: 310 | G120: 15.9 | I120: 380 | R120: -466.7
A121: Sodium nitrite | B121: NaNO2 | C121: 69 | D121: 0 | E121: 2.168 | F121: 271 | I121: 320 | R121: -359.4
A122: Sodium sulfate | B122: Na2SO4 | C122: 142.05 | D122: 20/4 | E122: 2.698 | F122: 890 | G122: 24.3 | R122: -1384.5
A123: Sodium sulfide | B123: Na2S | C123: 78.05 | D123: 20/4 | E123: 1.856 | F123: 950 | G123: 6.7 | R123: -373.2
A124: Sodium sulfite | B124: Na2SO3 | C124: 126.05 | D124: 15 | E124: 2.633 | I124: 25 | R124: -1090.3
A125: Sodium thiosulfate | B125: Na2S2O3 | C125: 158.11 | D125: 20/4 | E125: 1.667 | R125: -1117.1
A126: Sulfur (rhombic) | B126: S8 | C126: 256.53 | D126: 20/4 | E126: 2.07 | F126: 113 | G126: 10.04 | H126: 444.6 | L126: 83.7 | R126: 0
A127: Sulfur (monoclinic) | B127: S8 | C127: 256.53 | D127: 20/4 | E127: 1.96 | F127: 119 | G127: 14.17 | H127: 444.6 | L127: 83.7 | R127: 0.3
A128: Sulfur dioxide | B128: SO2 | C128: 64.07 | F128: -75.48 | G128: 7.402 | H128: -10.02 | L128: 24.91 | M128: 430.7 | N128: 77.8 | O128: -296.9
A129: Sulfur trioxide | B129: SO3 | C129: 80.07 | F129: 16.84 | G129: 25.48 | H129: 43.3 | L129: 41.8 | M129: 491.4 | N129: 83.8 | O129: -395.18
A130: Sulfuric acid | B130: H2SO4 | C130: 98.08 | D130: 18 | E130: 1.834 | F130: 10.35 | G130: 9.87 | I130: 340 | P130: -811.32 | Q130: -907.51
A131: Toluene | B131: C7H8 | C131: 92.13 | D131: 20/4 | E131: 0.866 | F131: -94.99 | G131: 6.619 | H131: 110.62 | L131: 33.47 | M131: 593.9 | N131: 40.3 | O131: 50 | P131: 12 | S131: -3947.9 | T131: -3909.9
A132: Water | B132: H20 | C132: 18.016 | D132: 4 | E132: 1 | F132: 0 | G132: 6.0095 | H132: 100 | L132: 40.656 | M132: 647.4 | N132: 218.3 | O132: -241.83 | P132: -285.84
A133: m-Xylene | B133: C8H10 | C133: 106.16 | D133: 20/4 | E133: 0.864 | F133: -47.87 | G133: 11.569 | H133: 139.1 | L133: 36.4 | M133: 619 | N133: 34.6 | O133: 17.24 | P133: -25.42 | S133: -4594.5 | T133: -4551.9
A134: o-Xylene | B134: C8H10 | C134: 106.16 | D134: 20/4 | E134: 0.88 | F134: -25.18 | G134: 13.598 | H134: 144.42 | L134: 36.82 | M134: 631.5 | N134: 35.7 | O134: 18.99 | P134: -24.44 | S134: -4596.3 | T134: -4552.9
A135: p-Xylene | B135: C8H10 | C135: 106.16 | D135: 20/4 | E135: 0.861 | F135: 13.26 | G135: 17.11 | H135: 138.35 | L135: 36.07 | M135: 618 | N135: 33.9 | O135: 17.95 | P135: -24.43 | S135: -4595.2 | T135: -4552.91
A136: Zinc | B136: Zn | C136: 65.38 | D136: 20/4 | E136: 7.14 | F136: 419.5 | G136: 6.674 | H136: 907 | L136: 114.77 | R136: 0

Sheet B2 (hidden)
A1: Heat Capacities
A3: Compound | B3: Formula | C3: Mol. Wt. | D3: State | E3: Form | F3: Temp. Unit | G3: a*10^3 | H3: b*10^5 | I3: c*10^8 | J3: d*10^12 | K3: Lower limit | L3: Upper limit
A4: Acetone | B4: CH3COCH3 | C4: 58.08 | D4: l | E4: 1 | F4: C | G4: 123 | H4: 18.6 | K4: -30 | L4: 60
A5: Acetone | B5: CH3COCH3 | C5: 58.08 | D5: g | E5: 1 | F5: C | G5: 71.96 | H5: 20.1 | I5: -12.78 | J5: 34.76 | K5: 0 | L5: 1200
A6: Acetylene | B6: C2H2 | C6: 26.04 | D6: g | E6: 1 | F6: C | G6: 42.43 | H6: 6.053 | I6: -5.033 | J6: 18.2 | K6: 0 | L6: 1200
A7: Air | C7: 29 | D7: g | E7: 1 | F7: C | G7: 28.94 | H7: 0.4147 | I7: 0.3191 | J7: -1.965 | K7: 0 | L7: 1500
A8: Air | C8: 29 | D8: g | E8: 1 | F8: K | G8: 28.09 | H8: 0.1965 | I8: 0.4799 | J8: -1.965 | K8: 273 | L8: 1800
A9: Ammonia | B9: NH3 | C9: 17.03 | D9: g | E9: 1 | F9: C | G9: 35.15 | H9: 2.954 | I9: 0.4421 | J9: -6.686 | K9: 0 | L9: 1200
A10: Ammonium Sulfate | B10: N2H8SO4 | C10: 132.15 | D10: c | E10: 1 | F10: K | G10: 215.9 | K10: 275 | L10: 328
A11: Benzene | B11: C6H6 | C11: 78.11 | D11: l | E11: 1 | F11: C | G11: 126.5 | H11: 23.4 | K11: 6 | L11: 67
A12: Benzene | B12: C6H6 | C12: 78.11 | D12: g | E12: 1 | F12: C | G12: 74.06 | H12: 32.95 | I12: -25.2 | J12: 77.57 | K12: 0 | L12: 1200
A13: Isobutane | B13: C4H10 | C13: 58.12 | D13: g | E13: 1 | F13: C | G13: 89.46 | H13: 30.13 | I13: -18.91 | J13: 49.87 | K13: 0 | L13: 1200
A14: n-Butane | B14: C4H10 | C14: 58.12 | D14: g | E14: 1 | F14: C | G14: 92.3 | H14: 27.88 | I14: -15.47 | J14: 34.98 | K14: 0 | L14: 1200
A15: Isobutene | B15: C4H8 | C15: 56.1 | D15: g | E15: 1 | F15: C | G15: 82.88 | H15: 25.64 | I15: -17.27 | J15: 50.5 | K15: 0 | L15: 1200
A16: Calcium carbide | B16: CaC2 | C16: 64.1 | D16: c | E16: 2 | F16: K | G16: 68.62 | H16: 1.19 | I16: =-8.66*10^10 -> -86600000000 | K16: 298 | L16: 720
A17: Calcium carbonate | B17: CaCO3 | C17: 100.09 | D17: c | E17: 2 | F17: K | G17: 82.34 | H17: 4.975 | I17: =-12.87*10^10 -> -1.287e+11 | K17: 273 | L17: 1033
A18: Calcium hydroxide | B18: CaO2H2 | C18: 74.1 | D18: c | E18: 1 | F18: K | G18: 89.5 | K18: 276 | L18: 373
A19: Calcium oxide | B19: CaO | C19: 56.08 | D19: c | E19: 2 | F19: K | G19: 41.84 | H19: 2.03 | I19: =-4.52*10^10 -> -4.52e+10 | K19: 273 | L19: 1173
A20: Carbon | B20: C | C20: 12.01 | D20: c | E20: 2 | F20: K | G20: 11.18 | H20: 1.095 | I20: =-4.891*10^10 -> -48910000000 | K20: 273 | L20: 1373
A21: Carbon dioxide | B21: CO2 | C21: 44.01 | D21: g | E21: 1 | F21: C | G21: 36.11 | H21: 4.233 | I21: -2.887 | J21: 7.464 | K21: 0 | L21: 1500
A22: Carbon monoxide | B22: CO | C22: 28.01 | D22: g | E22: 1 | F22: C | G22: 28.95 | H22: 0.411 | I22: 0.3548 | J22: -2.22 | K22: 0 | L22: 1500
A23: Carbon tetrachloride | B23: CCl4 | C23: 153.84 | D23: l | E23: 1 | F23: K | G23: 93.39 | H23: 12.98 | K23: 273 | L23: 343
A24: Chlorine | B24: Cl2 | C24: 70.91 | D24: g | E24: 1 | F24: C | G24: 33.6 | H24: 1.367 | I24: -1.607 | J24: 6.473 | K24: 0 | L24: 1200
A25: Copper | B25: Cu | C25: 63.54 | D25: c | E25: 1 | F25: K | G25: 22.76 | H25: 0.6117 | K25: 273 | L25: 1357
A26: Cumene (Isopropyl benzene) | B26: C9H12 | C26: 120.19 | D26: g | E26: 1 | F26: C | G26: 139.2 | H26: 53.76 | I26: -39.79 | J26: 120.5 | K26: 0 | L26: 1200
A27: Cyclohexane | B27: C6H12 | C27: 84.16 | D27: g | E27: 1 | F27: C | G27: 94.14 | H27: 49.62 | I27: -31.9 | J27: 80.63 | K27: 0 | L27: 1200
A28: Cyclopentane | B28: C5H10 | C28: 70.13 | D28: g | E28: 1 | F28: C | G28: 73.39 | H28: 39.28 | I28: -25.54 | J28: 68.66 | K28: 0 | L28: 1200
A29: Ethane | B29: C2H6 | C29: 30.07 | D29: g | E29: 1 | F29: C | G29: 49.37 | H29: 13.92 | I29: -5.816 | J29: 7.28 | K29: 0 | L29: 1200
A30: Ethyl alcohol | B30: C2H5OH | C30: 46.07 | D30: l | E30: 1 | F30: C | G30: 103.1 | K30: 0
A31: Ethyl alcohol | B31: C2H5OH | C31: 46.07 | D31: l | E31: 1 | F31: C | G31: 158.8 | K31: 100
A32: Ethyl alcohol | B32: C2H5OH | C32: 46.07 | D32: g | E32: 1 | F32: C | G32: 61.34 | H32: 15.72 | I32: -8.749 | J32: 19.83 | K32: 0 | L32: 1200
A33: Ethylene | B33: C2H4 | C33: 28.05 | D33: g | E33: 1 | F33: C | G33: 40.75 | H33: 11.47 | I33: -6.891 | J33: 17.66 | K33: 0 | L33: 1200
A34: Ferric oxide | B34: Fe2O3 | C34: 159.7 | D34: c | E34: 2 | F34: K | G34: 103.4 | H34: 6.711 | I34: =-17.72*10^10 -> -177200000000 | K34: 273 | L34: 1097
A35: Formaldehyde | B35: CH2O | C35: 30.03 | D35: g | E35: 1 | F35: C | G35: 34.28 | H35: 4.268 | I35: 0 | J35: -8.694 | K35: 0 | L35: 1200
A36: Helium | B36: He | C36: 4 | D36: g | E36: 1 | F36: C | G36: 20.8 | K36: 0 | L36: 1200
A37: n-Hexane | B37: C6H14 | C37: 86.17 | D37: l | E37: 1 | F37: C | G37: 216.3 | K37: 20 | L37: 100
A38: n-Hexane | B38: C6H14 | C38: 86.17 | D38: g | E38: 1 | F38: C | G38: 137.44 | H38: 40.85 | I38: -23.92 | J38: 57.66 | K38: 0 | L38: 1200
A39: Hydrogen | B39: H2 | C39: 2.016 | D39: g | E39: 1 | F39: C | G39: 28.84 | H39: 0.00765 | I39: 0.3288 | J39: -0.8698 | K39: 0 | L39: 1500
A40: Hydrogen bromide | B40: HBr | C40: 80.92 | D40: g | E40: 1 | F40: C | G40: 29.1 | H40: -0.0227 | I40: 0.9887 | J40: -4.858 | K40: 0 | L40: 1200
A41: Hydrogen chloride | B41: HCl | C41: 36.47 | D41: g | E41: 1 | F41: C | G41: 29.13 | H41: -0.1341 | I41: 0.9715 | J41: -4.335 | K41: 0 | L41: 1200
A42: Hydrogen cyanide | B42: HCN | C42: 27.03 | D42: g | E42: 1 | F42: C | G42: 35.3 | H42: 2.908 | I42: -1.092 | K42: 0 | L42: 1200
A43: Hydrogen sulfide | B43: H2S | C43: 34.08 | D43: g | E43: 1 | F43: C | G43: 33.51 | H43: 1.547 | I43: 0.3012 | J43: -3.292 | K43: 0 | L43: 1500
A44: Magnesium chloride | B44: MgCl2 | C44: 95.23 | D44: c | E44: 1 | F44: K | G44: 72.4 | H44: 1.58 | K44: 273 | L44: 991
A45: Magnesium oxide | B45: MgO | C45: 40.32 | D45: c | E45: 2 | F45: K | G45: 45.44 | H45: 0.5008 | I45: =-8.732*10^10 -> -87320000000 | K45: 273 | L45: 2073
A46: Methane | B46: CH4 | C46: 16.04 | D46: g | E46: 1 | F46: C | G46: 34.31 | H46: 5.469 | I46: 0.3661 | J46: -11 | K46: 0 | L46: 1200
A47: Methane | B47: CH4 | C47: 16.04 | D47: g | E47: 1 | F47: K | G47: 19.87 | H47: 5.021 | I47: 1.268 | J47: -11 | K47: 273 | L47: 1500
A48: Methyl alcohol | B48: CH3OH | C48: 32.04 | D48: l | E48: 1 | F48: C | G48: 75.86 | H48: 16.83 | K48: 0 | L48: 65
A49: Methyl alcohol | B49: CH3OH | C49: 32.04 | D49: g | E49: 1 | F49: C | G49: 42.93 | H49: 8.301 | I49: -1.87 | J49: -8.03 | K49: 0 | L49: 700
A50: Methyl cyclohexane | B50: C7H14 | C50: 98.18 | D50: g | E50: 1 | F50: C | G50: 121.3 | H50: 56.53 | I50: -37.72 | J50: 100.8 | K50: 0 | L50: 1200
A51: Methyl cyclopentane | B51: C6H12 | C51: 84.16 | D51: g | E51: 1 | F51: C | G51: 98.83 | H51: 45.857 | I51: -30.44 | J51: 83.81 | K51: 0 | L51: 1200
A52: Nitric acid | B52: NHO3 | C52: 63.02 | D52: l | E52: 1 | F52: C | G52: 110 | K52: 25
A53: Nitric oxide | B53: NO | C53: 30.01 | D53: g | E53: 1 | F53: C | G53: 29.5 | H53: 0.8188 | I53: -0.2925 | J53: 0.3652 | K53: 0 | L53: 3500
A54: Nitrogen | B54: N2 | C54: 28.02 | D54: g | E54: 1 | F54: C | G54: 29 | H54: 0.2199 | I54: 0.5723 | J54: -2.871 | K54: 0 | L54: 1500
A55: Nitrogen dioxide | B55: NO2 | C55: 46.01 | D55: g | E55: 1 | F55: C | G55: 36.07 | H55: 3.97 | I55: -2.88 | J55: 7.87 | K55: 0 | L55: 1200
A56: Nitrogen tetraoxide | B56: N2O4 | C56: 92.02 | D56: g | E56: 1 | F56: C | G56: 75.7 | H56: 12.5 | I56: -11.3 | K56: 0 | L56: 300
A57: Nitrous oxide | B57: N2O | C57: 44.02 | D57: g | E57: 1 | F57: C | G57: 37.66 | H57: 4.151 | I57: -2.694 | J57: 10.57 | K57: 0 | L57: 1200
A58: Oxygen | B58: O2 | C58: 32 | D58: g | E58: 1 | F58: C | G58: 29.1 | H58: 1.158 | I58: -0.6076 | J58: 1.311 | K58: 0 | L58: 1500
A59: n-Pentane | B59: C5H12 | C59: 72.15 | D59: l | E59: 1 | F59: C | G59: 155.4 | H59: 43.68 | K59: 0 | L59: 36
A60: n-Pentane | B60: C5H12 | C60: 72.15 | D60: g | E60: 1 | F60: C | G60: 114.8 | H60: 34.09 | I60: -18.99 | J60: 42.26 | K60: 0 | L60: 1200
A61: Propane | B61: C3H8 | C61: 44.09 | D61: g | E61: 1 | F61: C | G61: 68.032 | H61: 22.59 | I61: -13.11 | J61: 31.71 | K61: 0 | L61: 1200
A62: Propylene | B62: C3H6 | C62: 42.08 | D62: g | E62: 1 | F62: C | G62: 59.58 | H62: 17.71 | I62: -10.17 | J62: 24.6 | K62: 0 | L62: 1200
A63: Sodium carbonate | B63: Na2CO3 | C63: 105.99 | D63: c | E63: 1 | F63: K | G63: 121 | K63: 288 | L63: 371
A64: Sodium carbonate decahydrate | B64: Na2CO3*10H2O | C64: 286.15 | D64: c | E64: 1 | F64: K | G64: 535.6 | K64: 298
A65: Sulfur (Rhombic) | B65: S | C65: 32.07 | D65: c | E65: 1 | F65: K | G65: 15.2 | H65: 2.68 | K65: 273 | L65: 368
A66: Sulfur (Monoclinic) | B66: S | C66: 32.07 | D66: c | E66: 1 | F66: K | G66: 18.3 | H66: 1.84 | K66: 368 | L66: 392
A67: Sulfuric acid | B67: H2SO4 | C67: 98.08 | D67: l | E67: 1 | F67: C | G67: 139.1 | H67: 15.59 | K67: 10 | L67: 45
A68: Sulfur dioxide | B68: SO2 | C68: 64.07 | D68: g | E68: 1 | F68: C | G68: 38.91 | H68: 3.904 | I68: -3.104 | J68: 8.606 | K68: 0 | L68: 1500
A69: Sulfur trioxide | B69: SO3 | C69: 80.07 | D69: g | E69: 1 | F69: C | G69: 48.5 | H69: 9.188 | I69: -8.54 | J69: 32.4 | K69: 0 | L69: 1000
A70: Toluene | B70: C7H8 | C70: 92.13 | D70: l | E70: 1 | F70: C | G70: 148.8 | H70: 32.4 | K70: 0 | L70: 110
A71: Toluene | B71: C7H8 | C71: 92.13 | D71: g | E71: 1 | F71: C | G71: 94.18 | H71: 38 | I71: -27.86 | J71: 80.33 | K71: 0 | L71: 1200
A72: Water | B72: H2O | C72: 18.016 | D72: l | E72: 1 | F72: C | G72: 75.4 | K72: 0 | L72: 100
A73: Water | B73: H2O | C73: 18.016 | D73: g | E73: 1 | F73: C | G73: 33.46 | H73: 0.688 | I73: 0.7604 | J73: -3.593 | K73: 0 | L73: 1500

Sheet Solver
A2: Variables: | B2: n1 | C2: n2 | D2: n3 | E2: n4 | F2: n5 | G2: n6 | H2: n7 | I2: n8
A3: Values: | B3: 17.69675087 | C3: 23.09003178 | D3: 44.58487927 | E3: 14.63102442 | F3: 42.74822211 | G3: 20.5678533 | H3: 5.000022298 | I3: 13.99241942
A4: 8 variables require 8 equations
B5: LHS | C5: RHS | D5: (LHS-RHS)^2
A6: 1 | B6: 35 | C6: =0.673*B3+C3 -> 34.99994512 | D6: =(B6-C6)^2 -> 3.011910562e-09
A7: 2 | B7: 50 | C7: =0.306*B3+D3 -> 50.00008503 | D7: =(B7-C7)^2 -> 7.230905324e-09
A8: 3 | B8: 15 | C8: =0.021*B3+E3 -> 15.00265619 | D8: 7.055322305e-06
A9: 4 | B9: =+C3 -> 23.09003178 | C9: =0.059*F3+G3 -> 23.0899984 | D9: 1.114411137e-09
A10: 5 | B10: =+D3 -> 44.58487927 | C10: =0.926*F3+H3 -> 44.58487597 | D10: 1.085086003e-11
A11: 6 | B11: =+E3 -> 14.63102442 | C11: =0.015*F3+I3 -> 14.63364275 | D11: 6.855657693e-06
A12: 7 | B12: =+H3 -> 5.000022298 | C12: =0.1*50 -> 5 | D12: 4.972091793e-10
A13: 8 | B13: =+I3 -> 13.99241942 | C13: =0.933*15 -> 13.995 | D13: 6.659409622e-06
C14: Sum | D14: =SUM(D6:D13) -> 2.058225491e-05
A17: Variables | B17: n0 | C17: n1 | D17: n2 | E17: n3 | F17: n4 | G17: n5 | H17: n6 | I17: ntot | J17: e1 | K17: e2
B18: 89.73090303 | C18: 10.80957576 | D18: 83.06300152 | E18: 6.127422723 | F18: 95.31784697 | G18: 0.5404787878 | H18: 10.26909697 | I18: 195.317847 | J18: 83.06300152 | K18: 6.127422723
A19: 10 variables require 10 equations
B20: LHS | C20: RHS | D20: (LHS-RHS)^2
A21: 1 | B21: =+B18+H18 -> 100 | C21: 100 | D21: =(B21-C21)^2 -> 2.602008112e-20
A22: 2 | B22: =+C18 -> 10.80957576 | C22: =100-J18-K18 -> 10.80957575 | D22: 4.954312113e-20
A23: 3 | B23: =+D18 -> 83.06300152 | C23: =+J18 -> 83.06300152 | D23: 4.733591542e-22
A24: 4 | B24: =+E18 -> 6.127422723 | C24: =+K18 -> 6.127422723 | D24: 1.751350096e-26
A25: 5 | B25: =+F18 -> 95.31784697 | C25: =+J18+2*K18 -> 95.31784697 | D25: 2.84251441e-20
A26: 6 | B26: =+I18 -> 195.317847 | C26: =+C18+D18+E18+F18 -> 195.317847 | D26: 2.294852666e-22
A27: 7 | B27: =+J18*(J18+2*K18)/(100-J18-K18)/(100+J18+2*K18) -> 3.749999991 | C27: 3.75 | D27: 7.826862361e-17
A28: 8 | B28: =+K18*(J18+2*K18)^2/(100-J18-K18)/(100+J18+2*K18)^2 -> 0.135000005 | C28: 0.135 | D28: 2.522229786e-17
A29: 9 | B29: =+G18 -> 0.5404787878 | C29: =0.05*C18 -> 0.5404787878 | D29: 3.640999452e-24
A30: 10 | B30: =+C18 -> 10.80957576 | C30: =+G18+H18 -> 10.80957576 | D30: 2.113435358e-23
D31: =SUM(D21:D30) -> 1.035956375e-16
